{"text_format":"1","workbook":"xlsx","n_sheets":3,"sheets":["Hoja1","PAI 2020 Nivel Central","PAI 2020 Nivel Central (2)"],"not_rendered":{"charts":0,"images":1,"macros":1,"external_links":0,"defined_names":5,"comments":2,"pivot_tables":0},"unopened":[],"bounds":{"document_bytes":16777216,"sheet_cells":100000,"rows_first":2000,"rows_last":500,"rows_between":2000,"halvings":0,"cell_chars":16384,"cell_head_chars":4096},"cells_cut":0,"cells_raw":0,"read":"whole","date_system":"1900"}

{"sheet":"Hoja1","index":0,"n_rows":34,"n_cols":2,"rows_kept":34,"cut":false,"hidden":true,"merged":[]}
["Planeación y Direccionamiento Estratégico","Servicio al Colombiano"]
["Gestión de Comunicación  Publica y Estratégica","Planeación de la gestión institucional"]
["Registro civil e Identificación","Sistema de gestión y mejoramiento Institucional"]
["Electoral","Comunicación organizacional"]
["Gestion del Talento Humano","Registro y actualización del sistema"]
["Gestión Tecnológica de la Información y las Comunicaciones","Certificación, documentación  y servicios"]
["Gestión Jurídica","Debates electorales"]
["Gestión Administrativa y Financiera","Mecanismos de participación "]
["Gestión y Control Disciplinario","Vinculación del talento humano"]
["Gestión del Sistema de Control Interno","Permanencia del talento humano"]
["Fondo Social de Vivienda","Retiro del talento humano"]
[null,"Gestión de infraestructura tecnológica"]
[null,"Gestión de software"]
[null,"Soporte técnico"]
[null,"Representación judicial"]
[null,"Gestión de los recursos financieros"]
[null,"Gestión contractual"]
[null,"Gestión de los recursos físicos"]
[null,"Gestion documental"]
[null,"Actuaciones disciplinarias"]
[null,"Auditoria Interna"]
[null,"Seguimiento a la gestión institucional"]
[null,"Proyecto: Fortalecimiento de la plataforma tecnológica que soporta el sistema de identificación y registro civil PMT II"]
[null,"Proyecto: Fortalecimiento de la Red Corporativa de Telecomunicaciones - PMT, Electoral y Administrativa Nacional"]
[null,"Proyecto: Mejoramiento y mantenimiento de la infraestructura administrativa a nivel Nacional"]
[null,"Proyecto: Mejoramiento de la Red Eléctrica y de Comunicaciones a Nivel Nacional"]
[null,"Proyecto: Mejoramiento y renovación de la infraestructura tecnológica para la Registraduría Nacional del Estado Civil Nacional"]
[null,"Proyecto: Fortalecimiento del servicio del Sistema del Archivo Nacional de Identificación ANI y Sistemas conexos Nacional"]
[null,"Proyecto: Servicio de respaldo de los sistemas de información de procesos de identificación, electorales y administrativos a nivel Nacional"]
[null,"Proyecto: Implementación Sistema de Gestión Documental Registraduría Nacional "]
[null,"Proyecto: Formación permanente para los servidores de la Registraduría Nacional del Estado Civil, en la gestión del desarrollo y en técnicas y competencias de aplicación misional. Nacional"]
[null,"Proyecto: Fortalecimiento de la capacidad de atención en Identificación para la población en condición de vulnerabilidad, APD. Nacional"]
[null,"Proyecto: Fortalecimiento del Sistema de Información de Registro Civil Nacional"]
[null,"Proyecto: Fortalecimiento del Centro de Estudios en Democracia y Asuntos Electorales - CEDAE - Nacional"]

{"sheet":"PAI 2020 Nivel Central","index":1,"n_rows":275,"n_cols":22,"rows_kept":275,"cut":false,"hidden":false,"merged":[[4,19,5,19],[4,20,4,21],[4,6,5,6],[4,7,5,7],[4,8,5,8],[4,9,5,9],[4,10,5,10],[4,13,4,18],[4,11,5,11],[4,12,5,12],[0,1,1,1],[0,3,0,19],[1,3,1,19],[2,1,2,21],[3,1,3,21],[4,1,5,1],[4,2,5,2],[4,3,5,3],[4,4,5,4],[4,5,5,5]]}
[null,null,"PROCESO","PLANEACIÓN DE LA GESTIÓN INSTITUCIONAL",null,null,null,null,null,null,null,null,null,null,null,null,null,null,null,null,"CÓDIGO ","PGFT20"]
[null,null,"FORMATO","PROGRAMACIÓN PLAN DE ACCIÓN NIVEL CENTRAL",null,null,null,null,null,null,null,null,null,null,null,null,null,null,null,null,"VERSIÓN",6]
[null,"Aprobado: 21/02/2020"]
[]
[null,"Macroproceso","Proceso o proyecto","Número de la actividad","Actividad\n","N°. Objetivo  \nEstratégico","Planes Institucionales y / o estratégico al cual se integra","Nombre del producto ","Indicador de producto","Meta anual ","Unidad de medida","Evidencia","Fuente de verificación","Meta por bimestre",null,null,null,null,null,"Responsables ","Fecha"]
[null,null,null,null,null,null,null,null,null,null,null,null,null,"Enero - Febrero","Marzo - Abril","Mayo - Junio","Julio - Agosto","Septiembre - Octubre","Noviembre - Diciembre",null," Inicio"," Finalización"]
[null,"Planeación y direccionamiento estratégico","Planeación de la Gestión Institucional",1,"Realizar una capacitación sobre la formulación del Plan de Acción Institucional nivel central",null,"N/A","Capacitación","Capacitación realizada",1,"Número","Listado de asistencia","Oficina de Planeación",1,null,null,null,null,null,"Oficina de Planeación","01/012/2020","2020-02-10"]
[null,"Planeación y direccionamiento estratégico","Planeación de la Gestión Institucional",2,"Elaborar reporte del seguimiento al plan de acción institucional a nivel central y delegaciones último bimestre de 2019.",null,"N/A","Informe de seguimiento PAI ultimo bimestre","Informe de seguimiento PAI elaborado",1,"Número","Informes de seguimiento de Plan de Acción Institucional","Oficina de Planeación",1,null,null,null,null,null,"Oficina de Planeación","2020-01-15","2020-01-30"]
[null,"Planeación y Direccionamiento Estratégico","Planeación de la Gestión Institucional",3,"Realizar seguimiento del segundo semestre de 2019  a los acuerdos de gestión de los Registradores Especiales ",null,"N/A","Reporte de seguimiento a los acuerdo de gestión","Reporte de seguimiento a los acuerdo de gestión realizado ",1,"Número","Reportes de seguimiento a los acuerdo de gestión","Oficina de Planeación",1,null,null,null,null,null,"Oficina de Planeación","2020-01-01","2020-02-07"]
[null,"Planeación y Direccionamiento Estratégico","Planeación de la Gestión Institucional",4,"Consolidar el plan de acción institucional del Nivel Central 2020",null,"N/A","Plan de Acción Institucional Nivel Central","Documento PAI consolidado",1,"Número","Plan de Acción Institucional Nivel Central","Página Web",1,null,null,null,null,null,"Oficina de Planeación","2020-01-15","2020-01-29"]
[null,"Planeación y Direccionamiento Estratégico","Planeación de la Gestión Institucional",5,"Consolidar el plan de acción institucional del Nivel Desconcentrado",null,"N/A","Plan de Acción Institucional Nivel Desconcentrado","Documento PAI consolidado",1,"Número","Plan de Acción Institucional Nivel Desconcentrado","Página Web",1,null,null,null,null,null,"Oficina de Planeación","2020-01-15","2020-02-29"]
[null,"Planeación y Direccionamiento Estratégico","Planeación de la Gestión Institucional",6,"Elaborar reporte del seguimiento al plan de acción nivel central y desconcentrado vigencia 2020 (I - V Bimestre)",null,"N/A","Reporte de seguimiento PAI ","Cantidad de Reportes realizados ",5,"Número","Reporte de seguimiento PAI ","Oficina de Planeación",null,1,1,1,1,1,"Oficina de Planeación","2020-03-02","2020-12-22"]
[null,"Planeación y Direccionamiento Estratégico","Planeación de la Gestión Institucional",7,"Rediseñar el tablero de Control  para el cuatrienio 2020-2023",null,"N/A","Tablero de Control Rediseñado","Tablero rediseñado y puesto en funcionamiento",1,"Porcentaje","Tablero de Control Rediseñado","Oficina de Planeación",null,null,1,null,null,null,"Oficina de Planeación","2020-03-01","2020-06-30"]
[null,"Planeación y Direccionamiento Estratégico","Planeación de la Gestión Institucional",8,"Cargar datos en el Tablero de Control",null,"N/A","Datos cargados en el tablero de control","Cantidad de solicitudes de cargue de datos atendidas/(n)*Cantidad solicitudes de cargue de datos programadas a realizar en el periodo",1,"Porcentaje","Correo electrónico de solicitudes\nTablero de control","Oficina de Planeación",0.16667000000000001,0.16667000000000001,0.16667000000000001,0.16667000000000001,0.16667000000000001,0.16667000000000001,"Oficina de Planeación","2020-01-01","2020-12-31"]
[null,"Planeación y Direccionamiento Estratégico","Planeación de la Gestión Institucional",9,"Consolidar el Informe  de la Gestión Institucional 2019",null,"N/A","Informe de Gestión Institucional","Informe consolidado y publicado",1,"Número","Informe de Gestión Institucional","Página Web",1,null,null,null,null,null,"Oficina de Planeación","2020-01-01","2020-01-31"]
[null,"Planeación y Direccionamiento Estratégico","Planeación de la Gestión Institucional",10,"Elaborar informe de seguimiento de los proyectos de inversión vigencia 2019",null,"N/A","Informe seguimiento a Proyectos de Inversión "," Informe elaborado",1,"Número","Informe seguimiento a Proyectos de Inversión ","Oficina de Planeación",1,null,null,null,null,null,"Oficina de Planeación","2020-02-03","2020-02-29"]
[null,"Planeación y Direccionamiento Estratégico","Planeación de la Gestión Institucional",11,"Elaborar y publicar el Plan Estratégico de la RNEC 2020 - 2023",null,"N/A","Plan Estratégico de la RNEC 2020 - 2023","Plan Estratégico elaborado y publicado. ",1,"Número","Plan Estratégico de la RNEC 2020 - 2023","Página Web",null,1,null,null,null,null,"Oficina de Planeación","2020-01-01","2020-03-31"]
[null,"Planeación y Direccionamiento Estratégico","Planeación de la Gestión Institucional",12,"Elaborar la metodología (instructivo y circular), analizar, consolidar y registrar en el aplicativo SIIF Nación del Ministerio de Hacienda y Crédito Público, el Anteproyecto de Presupuesto de funcionamiento e inversión vigencia 2021 de la Registraduría Nacional del Estado Civil, Fondo Rotatorio de la Registraduría Nacional, Fondo Social de Vivienda y del Consejo Nacional Electoral",null,"N/A","Anteproyectos de Presupuesto","Anteproyectos de Presupuesto elaborados y Registrados\nRNEC\nFRR\nFSV\nCNE",1,"Porcentaje","Anteproyectos de Presupuesto","Oficina de Planeación",0.2,0.8,null,null,null,null,"Oficina de Planeación","2020-02-03","2020-04-17"]
[null,"Planeación y Direccionamiento Estratégico","Planeación de la Gestión Institucional",13,"Asesorar a los macroproceso de la RNEC en desarrollo de su gestión institucional ",null,"N/A","Asesorías realizadas","Cantidad de asesorías realizadas/(n)*Cantidad de asesorías solicitadas en el periodo",1,"Porcentaje","Reporte de asesorías realizadas","Oficina de Planeación",null,0.2,0.2,0.2,0.2,0.2,"Oficina de Planeación","2020-01-07","2020-12-10"]
[null,"Planeación y Direccionamiento Estratégico","Planeación de la Gestión Institucional",14,"Elaborar la presentación del Marco de Gastos de Mediano Plazo - MGMP 2020-2023 de acuerdo con los lineamientos dados por Minhacienda y DNP.",null,"N/A","Presentación MGMP 2021 - 2024","Presentación elaborada y sustentada",1,"Número","Presentación MGMP 2021 - 2024\nListado de asistencia","Oficina de Planeación",null,null,1,null,null,null,"Oficina de Planeación","2020-05-18","2020-06-30"]
[null,"Planeación y Direccionamiento Estratégico","Planeación de la Gestión Institucional",15,"Elaborar el Plan Operativo Anual de Inversión- POAI en el aplicativo SUIFP - DNP vigencia 2021.",null,"N/A","Plan Operativo Anual de Inversión - 2021","Plan Operativo Anual de Inversión elaborado",1,"Número","Plan Operativo Anual de Inversión - 2021","Página Web",null,null,null,1,null,null,"Oficina de Planeación","2020-07-01","2020-07-31"]
[null,"Planeación y Direccionamiento Estratégico","Planeación de la Gestión Institucional",16,"Elaborar informe de seguimiento de los proyectos de inversión vigencia 2020",null,"N/A","Informe seguimiento a Proyectos de Inversión ","Cantidad de informes elaborados",5,"Número","Informe seguimiento a Proyectos de Inversión ","Oficina de Planeación",null,1,1,1,1,1,"Oficina de Planeación","2020-03-11","2020-11-27"]
[null,"Planeación y Direccionamiento Estratégico","Planeación de la Gestión Institucional",17,"Diagnosticar las Registradurías Auxiliares que requieran la instalación de equipos, sistemas e implementos de bajo consumo de agua ",null,"Plan de Gestión Ambiental","Documento de diagnóstico","Documento de diagnóstico elaborado",1,"Número","Documento de diagnóstico","Oficina de Planeación",null,null,1,null,null,null,"Oficina de Planeación","2020-05-01","2020-06-30"]
[null,"Planeación y Direccionamiento Estratégico","Planeación de la Gestión Institucional",18,"Monitorear el consumo de Agua en la sede central y las 23 Registradurías Auxiliares de Bogotá",null,"Plan de Gestión Ambiental","Reporte de consumo de agua ","Cantidad de reportes realizados / (n) * Total de reportes programados",1,"Porcentaje","Reporte de consumo de agua ","Oficina de Planeación",null,null,0.4,0.2,0.2,0.2,"Oficina de Planeación","2020-05-01","2020-12-31"]
[null,"Planeación y Direccionamiento Estratégico","Planeación de la Gestión Institucional",19,"Diagnosticar el uso de fuentes de iluminación sostenibles en las 23 Registradurías Auxiliares de Bogotá y la Sede Central",null,"Plan de Gestión Ambiental","Documento de diagnóstico","Documento de diagnóstico elaborado",1,"Número","Documento de diagnóstico","Oficina de Planeación",null,null,1,null,null,null,"Oficina de Planeación","2020-05-01","30/06//2020"]
[null,"Planeación y Direccionamiento Estratégico","Planeación de la Gestión Institucional",20,"Monitorear el consumo de energía en la  sede central y 23 Registradurías Auxiliares de Bogotá",null,"Plan de Gestión Ambiental","Reporte de consumo de energía ","Cantidad de reportes realizados / (n) * Total de reportes programados",1,"Porcentaje","Reporte de consumo de energía ","Oficina de Planeación",null,null,0.4,0.2,0.2,0.2,"Oficina de Planeación","2020-05-01","2020-12-31"]
[null,"Planeación y Direccionamiento Estratégico","Planeación de la Gestión Institucional",21,"Gestionar la disposición final de Residuos Peligrosos (vertimientos de aguas industriales, biosanitarios, planta eléctrica, ascensores, vehículos) con empresas que cuenten con licencia ambiental vigente.",null,"Plan de Gestión Ambiental","Certificados de disposición","Cantidad de certificados de disposición",6,"Número","Certificados de disposición","Oficina de Planeación",null,null,null,null,null,6,"Oficina de Planeación","2020-11-01","2020-12-31"]
[null,"Planeación y Direccionamiento Estratégico","Planeación de la Gestión Institucional",22,"Gestionar la disposición final de RAEES - Residuos de aparatos eléctricos y electrónicos: (equipos, tóner, baterías y pilas), con empresas que cuenten con licencia ambiental vigente",null,"Plan de Gestión Ambiental","Certificados de disposición","Cantidad de certificados de disposición",3,"Número","Certificados de disposición","Oficina de Planeación",null,null,null,null,null,3,"Oficina de Planeación","2020-11-01","2020-12-31"]
[null,"Planeación y Direccionamiento Estratégico","Planeación de la Gestión Institucional",23,"Gestionar la disposición final de residuos especiales (luminarias, escombros, aceite vegetal usado) con empresas que cuenten con licencia ambiental vigente",null,"Plan de Gestión Ambiental","Certificados de disposición","Cantidad de certificados de disposición",2,"Número","Certificados de disposición","Oficina de Planeación",null,null,null,null,null,2,"Oficina de Planeación","2020-11-01","2020-12-31"]
[null,"Planeación y Direccionamiento Estratégico","Planeación de la Gestión Institucional",24,"Formular  el plan de  gestión integral de residuos aprovechables en sede central",null,"Plan de Gestión Ambiental","Plan de  gestión integral de residuos aprovechables en sede central","Plan de  gestión integral de residuos aprovechables en Sede central formulado",1,"Número","Documento Plan de  gestión integral de residuos aprovechables en sede central","Página Web",null,null,1,null,null,null,"Oficina de Planeación","2020-05-01","2020-06-30"]
[null,"Planeación y Direccionamiento Estratégico","Planeación de la Gestión Institucional",25,"Formular propuesta para la implementación de puntos ecológicos en la sede central",null,"Plan de Gestión Ambiental","Documento de propuesta","Documento de propuesta formulado",1,"Porcentaje","Documento de propuesta","Oficina de Planeación",null,null,1,null,null,null,"Oficina de Planeación","2020-05-01","2020-06-30"]
[null,"Planeación y Direccionamiento Estratégico","Planeación de la Gestión Institucional",26,"Gestionar el convenio con asociaciones de recicladores de oficio para la entrega de los residuos aprovechables generados",null,"Plan de Gestión Ambiental","Convenio con asociación de recicladores","Convenios firmados / (n) * Convenios programados",1,"Porcentaje","Convenio con asociación de recicladores","Secretaría General",null,null,0.25,0.25,0.25,0.25,"Oficina de Planeación","2020-05-01","2020-12-31"]
[null,"Planeación y Direccionamiento Estratégico","Planeación de la Gestión Institucional",27,"Sensibilizar a los servidores de la sede central sobre reciclaje y uso adecuado de los puntos ecológicos",null,"Plan de Gestión Ambiental","Capacitaciones realizadas","Capacitaciones realizadas/ (n) * Capacitaciones programadas",1,"Porcentaje","Listas de asistencia a capacitaciones realizadas","Oficina de Planeación",null,null,0.25,0.25,0.25,0.25,"Oficina de Planeación","2020-05-01","2020-12-31"]
[null,"Planeación y Direccionamiento Estratégico","Planeación de la Gestión Institucional",28,"Realizar el control y seguimiento a la generación de todos los residuos generados en sede central y Registraduría Distrital",null,"Plan de Gestión Ambiental","Reporte de seguimiento","Cantidad de reportes de Seguimiento realizadas/ (n) * Cantidad de reportes de Seguimiento programados",1,"Porcentaje","Reportes de Seguimiento","Oficina de Planeación",null,null,0.25,0.25,0.25,0.25,"Oficina de Planeación","2020-05-01","2020-12-31"]
[null,"Planeación y Direccionamiento Estratégico","Planeación de la Gestión Institucional",29,"Elaborar una propuesta de acción para el Comité de gestión ambiental que contenga:\n-Diagnostico de la política cero papel\n-Acciones racionalizar el uso de papel\n-Implementación de la calificación digital en convocatorias laborales en la RNEC\n-Implementar ejercicios de capacitador de capacitadores para fomentar la gestión ambiental en la entidad.",null,"Plan de Gestión Ambiental","Documento de propuestas de acción","Documento realizado",1,"Número","Documento de propuestas de acción","Oficina de Planeación",null,null,1,null,null,null,"Oficina de planeación, Servidores Gestión Ambiental y Gestión Documental","2020-05-01","2020-06-30"]
[null,"Planeación y Direccionamiento Estratégico","Planeación de la Gestión Institucional",30,"Gestionar campañas de sensibilización y divulgación de temas ambientales",null,"Plan de Gestión Ambiental","Campañas","Campañas presentadas a oficina de comunicaciones / (n) * Campañas Programas",4,"Número","Documentos de Campañas presentadas","Oficina de Planeación",null,null,2,null,1,1,"Oficina de Planeación","2020-05-01","2020-12-31"]
[null,"Planeación y Direccionamiento Estratégico","Planeación de la Gestión Institucional",31,"Revisar y modificar la resolución 11177 de 2017 por la cual se adopta el sistema de informes, reportes y actas de seguimiento y evaluación del nivel desconcentrado de la RNEC.",null,"N/A","Proyecto de resolución","Proyecto de resolución",1,"Número","Proyecto de resolución","Oficina de Planeación",null,null,null,1,null,null,"Oficina de Planeación","2020-07-01","2020-08-31"]
[null,"Planeación y Direccionamiento Estratégico","Planeación de la Gestión Institucional",32,"Actualizar el formato PGFT35 Informe de gestión y resultado Registraduría Distrital y Delegaciones departamentales.",null,"N/A","Formato PGFT35 actualizado","Formato PGFT35 actualizado",1,"Número","Formato PGFT35 actualizado","INTRANET",null,null,null,1,null,null,"Oficina de Planeación","2020-07-01","2020-08-31"]
[null,"Planeación y Direccionamiento Estratégico","Planeación de la Gestión Institucional",33,"Formular  y ejecutar un proyecto de cooperación internacional encaminado al fortalecimiento de la participación política con población vulnerable.",null,"Plan Anticorrupción y de Atención al Ciudadano","Proyectos de cooperación","Proyectos de cooperación formulado y ejecutado",1,"Número","Reporte de seguimiento al cumplimiento del PAI 2020","Oficina de Asuntos y Relaciones Internacionales ",null,null,null,null,null,1,"Oficina de Asuntos y Relaciones Internacionales ","2020-01-01","2020-12-31"]
[null,"Planeación y Direccionamiento Estratégico","Planeación de la Gestión Institucional",34,"Elaborar estado del arte sobre buenas prácticas a nivel internacional en materia  participación política ciudadana. ",null,"Plan Anticorrupción y de Atención al Ciudadano","Documento de estado del arte","Documento estado del arte elaborado.",1,"Número","Reporte de seguimiento al cumplimiento del PAI 2020","Oficina de Asuntos y Relaciones Internacionales ",null,null,null,null,null,1,"Oficina de Asuntos y Relaciones Internacionales ","2020-11-01","2020-12-31"]
[null,"Planeación y Direccionamiento Estratégico","Planeación de la Gestión Institucional",35,"Replicar acciones y buenas prácticas de organizaciones internacionales en materia de participación política ",null,"Plan Anticorrupción y de Atención al Ciudadano","Informe de replicabilidad de buenas prácticas","Informe de replicabilidad de buenas prácticas elaborado",1,"Número","Reporte de seguimiento al cumplimiento del PAI 2020","Oficina de Asuntos y Relaciones Internacionales ",null,null,null,null,1,null,"Oficina de Asuntos y Relaciones Internacionales ","2020-09-01","2020-10-31"]
[null,"Planeación y Direccionamiento Estratégico","Planeación de la Gestión Institucional",36,"Establecer alianzas con las diferentes ONG’S internacionales que trabajen en temas de participación política.",null,"Plan Anticorrupción y de Atención al Ciudadano","Alianzas establecidas ","alianzas realizadas en el periodo/ (n)* alianzas programadas a realizar en el periodo",1,"Porcentaje","Reporte de seguimiento al cumplimiento del PAI 2020","Oficina de Asuntos y Relaciones Internacionales ",null,null,null,null,null,1,"Oficina de Asuntos y Relaciones Internacionales ","2020-11-01","2020-12-31"]
[null,"Planeación y Direccionamiento Estratégico","Planeación de la Gestión Institucional",37,"Actualizar el directorio de potenciales actores y aliados para la RNEC. ",null,"N/A","Directorio de actores y aliados para la RNEC actualizado","Directorio de actores y aliados reportado",3,"Porcentaje","Reporte de seguimiento al cumplimiento del PAI 2020","Oficina de Asuntos y Relaciones Internacionales ",null,1,null,1,null,1,"Oficina de Asuntos y Relaciones Internacionales ","2020-03-01","2020-12-31"]
[null,"Planeación y Direccionamiento Estratégico","Planeación de la Gestión Institucional",38,"Contactar aliados de la RNEC.",null,"N/A","Aliados contactados","(Contactos rezagados realizados en el periodo + Contactos realizados en el periodo)/(n)*Cantidad de contactos programados a realizar",1,"Porcentaje","Reporte de seguimiento al cumplimiento del PAI 2020","Oficina de Asuntos y Relaciones Internacionales ",null,0.2,0.2,0.2,0.2,0.2,"Oficina de Asuntos y Relaciones Internacionales ","2020-03-01","2020-12-31"]
[null,"Planeación y Direccionamiento Estratégico","Planeación de la Gestión Institucional",39,"Elaborar guía de protocolo de Relaciones Internacionales RRII",null,"N/A","Guía de protocolo de Relaciones Internacionales RRII elaborada","Guía de protocolo de RRII elaborada y aplicada",1,"Número","Reporte de seguimiento al cumplimiento del PAI 2020","Oficina de Asuntos y Relaciones Internacionales ",null,null,null,1,null,null,"Oficina de Asuntos y Relaciones Internacionales ","2020-07-01","2020-08-31"]
[null,"Planeación y Direccionamiento Estratégico","Planeación de la Gestión Institucional",40,"Contactar con entidades homólogas a nivel internacional y organismos internacionales. ",null,"N/A","Comunicaciones interinstitucionales enviadas","Cantidad de comunicaciones interinstitucionales enviadas en el periodo/(n)*Cantidad de comunicaciones interinstitucionales programadas para enviar en el periodo",1,"Porcentaje","Reporte de seguimiento al cumplimiento del PAI 2020","Oficina de Asuntos y Relaciones Internacionales ",null,0.2,0.2,0.2,0.2,0.2,"Oficina de Asuntos y Relaciones Internacionales ","2020-03-01","2020-12-31"]
[null,"Planeación y Direccionamiento Estratégico","Planeación de la Gestión Institucional",41,"Desarrollar acciones que posicionen estratégicamente el papel de la RNEC en el sistema Internacional.",null,"N/A","Acciones desarrolladas","Cantidad de acciones desarrolladas en el periodo/(n)*Cantidad de acciones programadas a desarrollar",1,"Porcentaje","Reporte de seguimiento al cumplimiento del PAI 2020","Oficina de Asuntos y Relaciones Internacionales ",null,0.2,0.2,0.2,0.2,0.2,"Oficina de Asuntos y Relaciones Internacionales ","2020-03-01","2020-12-31"]
[null,"Planeación y Direccionamiento Estratégico","Planeación de la Gestión Institucional",42,"Articular alianzas estratégicas con Cancillería y otras entidades del Estado colombiano.",null,"N/A","Alianzas estratégicas acordada","Cantidad de Alianzas estratégicas realizadas en el período/(n)*Cantidad de Alianzas estratégicas programadasen el período",1,"Porcentaje","Reporte de seguimiento al cumplimiento del PAI 2020","Oficina de Asuntos y Relaciones Internacionales ",null,0.2,0.2,0.2,0.2,0.2,"Oficina de Asuntos y Relaciones Internacionales ","2020-03-01","2020-12-31"]
[null,"Planeación y Direccionamiento Estratégico","Planeación de la Gestión Institucional",43,"Aplicar a convocatorias de oferta y demanda de cooperación existente por parte de donantes en el sistema internacional. \n",null,"N/A","Convocatorias aplicadas","Cantidad de convocatorias aplicadas en el periodo/(n)*Cantidad de convocatorias programadas a aplicar",1,"Porcentaje","Reporte de seguimiento al cumplimiento del PAI 2020","Oficina de Asuntos y Relaciones Internacionales ",null,0.2,0.2,0.2,0.2,0.2,"Oficina de Asuntos y Relaciones Internacionales ","2020-03-01","2020-12-31"]
[null,"Planeación y Direccionamiento Estratégico","Planeación de la Gestión Institucional",44,"Formular proyectos de cooperación que permita cumplir los objetivos y nacionalidad de la Oficina de Asuntos Internacionales.",null,"N/A","Proyectos formulados","Cantidad de proyectos formulados en el periodo/(n)*Cantidad de proyectos programados a desarrollar",1,"Porcentaje","Reporte de seguimiento al cumplimiento del PAI 2020","Oficina de Asuntos y Relaciones Internacionales ",null,0.2,0.2,0.2,0.2,0.2,"Oficina de Asuntos y Relaciones Internacionales ","2020-03-01","2020-12-31"]
[null,"Planeación y Direccionamiento Estratégico","Planeación de la Gestión Institucional",45,"Supervisar la ejecución de las actividades y recursos producto de la cooperación internacional en el marco de cada proyecto.",null,"N/A","Acciones desarrolladas de supervisión","Cantidad de acciones de supervisión desarrolladas en el periodo/(n)*Cantidad de acciones de supervisión programadas",1,"Porcentaje","Reporte de seguimiento al cumplimiento del PAI 2020","Oficina de Asuntos y Relaciones Internacionales ",null,0.2,0.2,0.2,0.2,0.2,"Oficina de Asuntos y Relaciones Internacionales ","2020-03-01","2020-12-31"]
[null,"Planeación y Direccionamiento Estratégico","Planeación de la Gestión Institucional",34,"Desarrollar las actividades y recursos producto de los proyectos ejecutados durante la vigencia.",null,"N/A","Actividades desarrolladas","Cantidad de actividades desarrolladas en el periodo/(n)*Cantidad de actividades programadas a realizar",1,"Porcentaje","Reporte de seguimiento al cumplimiento del PAI 2020","Oficina de Asuntos y Relaciones Internacionales ",null,0.2,0.2,0.2,0.2,0.2,"Oficina de Asuntos y Relaciones Internacionales ","2020-03-01","2020-12-31"]
[null,"Planeación y Direccionamiento Estratégico","Planeación de la Gestión Institucional",46,"Elaborar documento guía para la orientación en la formulación de proyectos de cooperación.",null,"N/A","Documento Guía","Documento guía desarrollado",1,"Número","Reporte de seguimiento al cumplimiento del PAI 2020","Oficina de Asuntos y Relaciones Internacionales ",null,null,null,1,null,null,"Oficina de Asuntos y Relaciones Internacionales ","2020-07-01","2020-08-31"]
[null,"Planeación y Direccionamiento Estratégico","Planeación de la Gestión Institucional",47,"Generar contenido para la elaboración de piezas de comunicación de la Oficina.",null,"N/A","Contenidos generados","Cantidad de contenidos generados en el periodo/(n)*Cantidad de contenidos programadas a realizar",1,"Porcentaje","Reporte de seguimiento al cumplimiento del PAI 2020","Oficina de Asuntos y Relaciones Internacionales ",0.16666666666666666,0.16666666666666666,0.16666666666666666,0.16666666666666666,0.16666666666666666,0.16666666666666666,"Oficina de Asuntos y Relaciones Internacionales ","2020-01-01","2020-12-31"]
[null,"Planeación y Direccionamiento Estratégico","Planeación de la Gestión Institucional",48,"Elaborar un Comunicado de Involucramiento (COE) a la iniciativa de Naciones Unidas \"Pacto Global\"",null,"N/A","Comunicado de involucramiento","Carta dirigida a Naciones Unidas",1,"Número","Reporte de seguimiento al cumplimiento del PAI 2020","Oficina de Asuntos y Relaciones Internacionales ",null,1,null,null,null,null,"Oficina de Asuntos y Relaciones Internacionales ","2020-03-01","2020-04-30"]
[null,"Planeación y Direccionamiento Estratégico","Planeación de la Gestión Institucional",49,"Realizar informe de sostenibilidad vigencia 2020 de la Registraduría Nacional del Estado Civil.",null,"N/A","Informe de sostenibilidad vigencia 2020","Informes",1,"Número","Reporte de seguimiento al cumplimiento del PAI 2020","Oficina de Asuntos y Relaciones Internacionales ",null,null,null,null,null,1,"Oficina de Asuntos y Relaciones Internacionales ","2020-11-01","2020-12-31"]
[null,"Planeación y Direccionamiento Estratégico","Planeación de la Gestión Institucional",50,"Capacitar y sensibilizar a los servidores públicos de la RNEC en materia de rendición de cuentas.",null,"Plan Anticorrupción y de Atención al Ciudadano","Capacitación realizada","Capacitación realizada",1,"Número","Listado de asistencia","Oficina de Planeación",null,null,null,1,null,null,"Oficina de Planeación","2020-07-01","2020-08-31"]
[null,"Planeación y Direccionamiento Estratégico","Planeación de la Gestión Institucional",51,"Elaborar el Informe de Rendición de Cuentas 2020",null,"Plan Anticorrupción y de Atención al Ciudadano","Informe de Rendición de Cuentas 2020."," Informe de Rendición de Cuentas elaborado.",1,"Número","Informe de Rendición de Cuentas 2020.","Página Web",null,null,null,null,null,1,"Oficina de Planeación","2020-12-01","2020-12-31"]
[null,"Planeación y Direccionamiento Estratégico","Planeación de la Gestión Institucional",52,"Realizar la Audiencia Pública Participativa de Rendición de cuentas de la RNEC de la vigencia 2020.",null,"Plan Anticorrupción y de Atención al Ciudadano","Rendición de Cuentas realizada","Memorias de la audiencia pública participativa de rendición de cuentas. ",1,"Número","Memorias de la audiencia pública participativa de rendición de cuentas. ","Página Web",null,null,null,null,null,1,"Responsables: Oficina de Planeación, Oficina de Control Interno, Oficina de Prensa y Comunicaciones y Delegados departamentales en los que se realiza la mesa de diálogo y rendición de cuentas.","2020-12-01","2020-12-31"]
[null,"Planeación y Direccionamiento Estratégico","Sistema de Gestión y Mejoramiento Institucional",1,"Diseñar cursos Virtuales para el nivel central y desconcentrado sobre el SGC",null,"N/A","Curso de Transparencia y acceso a la información pública y datos abiertos\n\nCurso  Normas de Calidad ISO 9001:2015 y 54001:2019","Cantidad de cursos diseñados ",2,"Número","Silabus de capacitaciones diseñadas","Oficina de Planeación",null,2,null,null,null,null,"Oficina de Planeación","2020-03-01","2020-04-30"]
[null,"Planeación y Direccionamiento Estratégico","Sistema de Gestión y Mejoramiento Institucional",2,"Desarrollar cursos virtuales sobre el SGC para el nivel desconcentrado",null,"N/A","Curso Normas de Calidad ISO 9001:2015 y 54001:2019","Cantidad de cursos desarrollados",4,"Número","Listados de asistencia","Oficina de Planeación",null,null,2,2,null,null,"Oficina de Planeación","2020-05-01","2020-08-31"]
[null,"Planeación y Direccionamiento Estratégico","Sistema de Gestión y Mejoramiento Institucional",3,"Crear, modificar y controlar  los  documentos del Sistema Integrado de Gestión de acuerdo con las solicitudes presentadas y aprobadas",null,"N/A","Reporte ","Cantidad de reportes realizados",6,"Número","Reporte elaborado","INTRANET",1,1,1,1,1,1,"Oficina de Planeación","2020-01-01","2020-12-01"]
[null,"Planeación y Direccionamiento Estratégico","Sistema de Gestión y Mejoramiento Institucional",4,"Socializar los documentos inherentes al Sistema de Gestión de Calidad",null,"N/A","Reporte","Cantidad de documentos socializados  /(n)*Cantidad de documentos solicitados para actualizar en el SGC",1.0000200000000001,"Porcentaje","Reporte elaborado","SharePoint",null,{"$f":"1/5","v":0.2},{"$f":"1/5","v":0.2},{"$f":"1/5","v":0.2},{"$f":"1/5","v":0.2},{"$f":"1/5","v":0.2},"Oficina de Planeación","2020-03-01","2020-12-01"]
[null,"Planeación y Direccionamiento Estratégico","Sistema de Gestión y Mejoramiento Institucional",5,"Consolidar el Mapa de Riesgos de Corrupción del nivel central y desconcentrado de la RNEC para la vigencia 2020.",null,"Plan Anticorrupción y de Atención al Ciudadano","Mapas de riesgos de corrupción de la RNEC 2020 "," Cantidad de mapas de riesgos de corrupción de la RNEC 2020 consolidados",2,"Número","Mapas de riesgos de corrupción de la RNEC 2020 ","Página Web",2,null,null,null,null,null,"Oficina de Planeación","2020-01-01","2020-01-31"]
[null,"Planeación y Direccionamiento Estratégico","Sistema de Gestión y Mejoramiento Institucional",6,"Divulgar el Mapa de Riesgos de Corrupción de la RNEC del nivel central y desconcentrado para la vigencia 2020  para consulta ciudadana",null,"Plan Anticorrupción y de Atención al Ciudadano","Mapas de riesgos de corrupción de la RNEC vigencia 2020 ","Cantidad de mapas de riesgos de corrupción de la RNEC vigencia 2020 divulgados",2,"Número","Mapas de riesgos de corrupción de la RNEC 2020 ","Página Web",2,null,null,null,null,null,"Oficina de Planeación","2020-01-01","2020-01-31"]
[null,"Planeación y Direccionamiento Estratégico","Sistema de Gestión y Mejoramiento Institucional",7,"Ajustar los Mapas de Riesgos de Corrupción de conformidad con las sugerencias y hallazgos producto de la socialización previa a nivel interno y externo.",null,"Plan Anticorrupción y de Atención al Ciudadano","Mapas de riesgos de corrupción  de la RNEC vigencia 2020 ","Cantidad de mapas de riesgos de corrupción  vigencia 2020 ajustados",2,"Número","Mapas de riesgos de corrupción de la RNEC 2020 ","Página Web",2,null,null,null,null,null,"Oficina de Planeación","2020-01-01","2020-01-31"]
[null,"Planeación y Direccionamiento Estratégico","Sistema de Gestión y Mejoramiento Institucional",8,"Divulgar el Mapa de Riesgos de Corrupción de la RNEC del nivel central y desconcentrado para la vigencia 2020  en su versión definitiva. ",null,"Plan Anticorrupción y de Atención al Ciudadano","Mapas de riesgos de corrupción de la RNEC vigencia 2020 ","Cantidad de mapas de riesgos de corrupción de la RNEC vigencia 2020 divulgados",2,"Número","Mapas de riesgos de corrupción de la RNEC 2020 ","Página Web",2,null,null,null,null,null,"Oficina de Planeación","2020-01-01","2020-01-31"]
[null,"Planeación y Direccionamiento Estratégico","Sistema de Gestión y Mejoramiento Institucional",9,"Actualizar el procedimiento de administración de riesgo",null,"Plan Anticorrupción y de Atención al Ciudadano","Procedimiento de administración de riesgos","Procedimiento de Administración de riesgos divulgado",1,"Número","Documento de Procedimiento de Administración de Riesgos ","INTRANET",null,null,1,null,null,null,"Oficina de Planeación","2020-05-01","2020-06-30"]
[null,"Planeación y Direccionamiento Estratégico","Sistema de Gestión y Mejoramiento Institucional",10,"Realizar un conversatorio sobre administración de riesgos con el fin de sensibilizar a los servidores del nivel central",null,"N/A","Conversatorio realizado","Conversatorio realizado",1,"Número","Listado de asistencia","Oficina de Planeación",null,null,1,null,null,null,"Oficina de Planeación","2020-05-01","2020-06-30"]
[null,"Planeación y Direccionamiento Estratégico","Sistema de Gestión y Mejoramiento Institucional",11,"Realizar una video conferencia sobre administración de riesgos con el fin de sensibilizar a los servidores del nivel central",null,"N/A","Video conferencia realizada","Video conferencia realizada",1,"Número","Listado de asistencia","Oficina de Planeación",null,null,1,null,null,null,"Oficina de Planeación","2020-05-01","2020-06-30"]
[null,"Planeación y Direccionamiento Estratégico","Sistema de Gestión y Mejoramiento Institucional",12,"Actualizar y consolidar el Mapa de riesgos estratégico ",null,"N/A","Mapa de Riesgos estratégicos","Mapa de riesgo de proceso actualizado y publicado",1,"Número","Mapa de Riesgos estratégicos","Página Web",null,null,1,null,null,null,"Oficina de Planeación","2020-05-01","2020-06-30"]
[null,"Planeación y Direccionamiento Estratégico","Sistema de Gestión y Mejoramiento Institucional",13,"Actualizar y consolidar el Mapa de riesgos de procesos del nivel central y desconcentrado vigencia 2020",null,"N/A","Mapa de Riesgo de procesos","Cantidad de mapas de riesgo de proceso actualizado y publicado",2,"Número","Mapa de Riesgo de procesos","Página Web",null,null,2,null,null,null,"Oficina de Planeación","2020-05-01","2020-06-30"]
[null,"Planeación y Direccionamiento Estratégico","Sistema de Gestión y Mejoramiento Institucional",14,"Adecuar las herramientas metodológicas de orientación al interior de la RNEC para la construcción del Mapa de Riesgos de la RNEC de la vigencia 2020.",null,"Plan Anticorrupción y de Atención al Ciudadano","Herramienta metodológica de riesgos","Herramienta metodológica de riesgos adecuada",1,"Número","Herramienta metodológica de riesgos","Oficina de Planeación",null,1,null,null,null,null,"Oficina de Planeación","2020-03-01","2020-04-30"]
[null,"Planeación y Direccionamiento Estratégico","Sistema de Gestión y Mejoramiento Institucional",15,"Enviar las herramientas metodológicas de orientación al interior de la Entidad para la construcción del Mapa de Riesgos de Corrupción del nivel central y desconcentrado - vigencia 2020.",null,"Plan Anticorrupción y de Atención al Ciudadano","Memorando ","Memorando enviado",1,"Número","Memorando ","Oficina de Planeación",null,null,1,null,null,null,"Oficina de Planeación","2020-05-01","2020-06-30"]
[null,"Planeación y Direccionamiento Estratégico","Sistema de Gestión y Mejoramiento Institucional",16,"Realizar taller para la identificación, valoración y análisis  de los riesgos  por parte de cada responsable de Macroprocesos en el nivel central y desconcentrado junto con su equipo de trabajo. ",null,"Plan Anticorrupción y de Atención al Ciudadano","Taller de Mapa de Riesgos de Vigencia 2020 ","Mapas de Riesgos(Estratégicos, Procesos y Corrupción) Vigencia 2020 realizados.",5,"Número","Listado de asistencia","Oficina de Planeación",null,null,5,null,null,null,"Líderes de los macroprocesos al  en el nivel central, Delegaciones Departamentales y Registraduría Distrital. ","2020-05-01","2020-06-30"]
[null,"Planeación y Direccionamiento Estratégico","Sistema de Gestión y Mejoramiento Institucional",17,"Acompañar y asesorar a las áreas en la elaboración del Mapa de Riesgos con el fin de fortalecer su construcción en nivel central, Registraduría Distrital y Delegaciones Departamentales. ",null,"Plan Anticorrupción y de Atención al Ciudadano","Reporte de asesorías prestadas ","Cantidad de asesoría reportadas /(n)* Cantidad de asesorías realizadas en el periodo",1,"Porcentaje","Reportes de asesorías prestadas ","Oficina de Planeación",null,null,1,null,null,null,"Oficina de Planeación","2020-05-01","2020-06-30"]
[null,"Planeación y Direccionamiento Estratégico","Sistema de Gestión y Mejoramiento Institucional",18,"Consolidar y divulgar los mapas de riesgos de corrupción de la RNEC del nivel central y desconcentrado para la vigencia 2020  en su versión definitiva. ",null,"Plan Anticorrupción y de Atención al Ciudadano","Mapas de riesgos de corrupción de la RNEC vigencia 2020 ","Cantidad de mapas de riesgos  de corrupción de la RNEC vigencia 2020 divulgados",2,"Número","Mapas de riesgos de corrupción de la RNEC vigencia 2020 ","Página Web",null,null,2,null,null,null,"Oficina de Planeación","2020-05-01","2020-06-30"]
[null,"Planeación y Direccionamiento Estratégico","Sistema de Gestión y Mejoramiento Institucional",19,"Actualizar y consolidar el Mapa de riesgos de procesos y de corrupción para la vigencia 2021",null,"N/A","Mapa de Riesgo de procesos y corrupción","Cantidad de mapas de riesgo actualizado y publicado",4,"Porcentaje","Mapa de Riesgo de procesos y corrupción","Página Web",null,null,null,null,null,4,"Oficina de Planeación","2020-11-01","2020-12-31"]
[null,"Planeación y Direccionamiento Estratégico","Servicio al Colombiano",1,"Dar tratamiento y respuesta oportuna  a las PQRSDC recibidas en el sexto bimestre de la vigencia 2019 por parte del Grupo de Peticiones, Quejas y Reclamos de Oficinas Centrales.",null,"N/A","Reporte de asuntos PQRSDC tramitados por el Grupo de Pqr.","Cantidad de solicitudes con tratamiento y respuesta oportuna en el bimestre/(n) * Total de solicitudes recibidas en el bimestre.  ",1,"Porcentaje","Reporte de asuntos PQRSDC tramitados por el Grupo de Pqr.","SharePoint",1,null,null,null,null,null,"Grupo de Peticiones, Quejas y Reclamos.","2019-01-01","2020-01-31"]
[null,"Planeación y Direccionamiento Estratégico","Servicio al Colombiano",2,"Elaborar una propuesta para la mejora del proceso del servicio al colombiano",null,"N/A","Documento de propuesta","Documento presentado",1,"Número","Documento de propuesta","Oficina de Planeación",null,null,1,null,null,null,"Oficina de Planeación","2020-05-01","2020-06-30"]
[null,"Planeación y Direccionamiento Estratégico","Sistema de Gestión y Mejoramiento Institucional",3,"Hacer capacitaciones a los servidores públicos en Transparencia y acceso a la Información publica y Datos abiertos",null,"Plan Anticorrupción y de Atención al Ciudadano","Capacitación sobre  Transparencia y acceso a la Información publica y datos abiertos","Cantidad de Funcionarios que aprobaron la capacitación/ (n)*Cantidad de funcionarios que se inscribieron en la capacitación.",1,"Porcentaje","Certificados de aprobación de capacitación","Oficina de Planeación",null,null,null,1,null,null,"Oficina de Planeación","2020-07-01","2020-08-31"]
[null,"Planeación y Direccionamiento Estratégico","Servicio al Colombiano",4,"Socializar con la alta dirección el seguimiento a la gestión en materia de PQRSDC y servicio al ciudadano vigencia 2020",null,"Plan Anticorrupción y de Atención al Ciudadano","Seguimiento a la gestión de PQRSDC y servicio al colombiano socializado","Seguimiento a la gestión de PQRSDC y servicio al colombiano socializado",1,"Número","Acta de socialización","SharePoint",null,null,null,null,null,1,"Oficina de Planeación - Coordinación de Peticiones, Quejas y Reclamos.","2020-11-01","2020-12-31"]
[null,"Planeación y Direccionamiento Estratégico","Servicio al Colombiano",5,"Realizar mesas de trabajo para el seguimiento cuatrimestral la gestión en materia de PQRSDC y servicio al ciudadano",null,"Plan Anticorrupción y de Atención al Ciudadano","Mesas de trabajo efectuadas","Mesas de trabajo efectuadas",3,"Número","Listado de asistencia","Oficina de Planeación",null,null,1,null,1,1,"Oficina de Planeación - Coordinación de Peticiones, Quejas y Reclamos.","2020-05-01","2020-12-31"]
[null,"Planeación y Direccionamiento Estratégico","Servicio al Colombiano",6,"Implementar un sistema de información web que facilite la gestión y trazabilidad de los requerimientos de los ciudadanos.",null,"Plan Anticorrupción y de Atención al Ciudadano","Sistema de información web para la gestión y traza de los requerimientos de los ciudadanos.","Sistema de información web implementado.",1,"Porcentaje","Sistema de información web implementado.","Página Web",null,null,null,null,null,1,"Gerencia de informática/Oficina de Prensa y Comunicaciones/Programa de Gestión Documental/Coordinación de Peticiones, Quejas y Reclamos. ","2020-01-01","2020-12-31"]
[null,"Planeación y Direccionamiento Estratégico","Servicio al Colombiano",7,"Crear y publicar  en la intranet el directorio de responsables para la gestión de PQRSDC a nivel nacional",null,"Plan Anticorrupción y de Atención al Ciudadano","Directorio creado y publicado","Directorio creado y publicado en la intranet institucional.",1,"Porcentaje","Directorio de responsables para la gestión de PQRSDC ","Página Web",null,null,null,null,null,1,"Oficina de Planeación - Coordinación de Peticiones, Quejas y Reclamos - Oficina de Prensa y Comunicaciones.","2020-01-01","2020-12-31"]
[null,"Planeación y Direccionamiento Estratégico","Servicio al Colombiano",8,"Diseñar, desarrollar e implementar un piloto de aplicación de una metodología que permita identificar el esquema de operación y servicio y medir el desempeño de la atención presencial y consolidar estadísticas sobre tiempos de espera, tiempos de atención y cantidad de ciudadanos atendidos. ",null,"Plan Anticorrupción y de Atención al Ciudadano","Metodología e informe de resultados de la aplicación de la misma en 3 sedes de atención de la RNEC. ","Informes elaborados con los resultados de la aplicación de la metodología",3,"Número","Informes elaborados con los resultados de la aplicación de la metodología","Oficina de Planeación",null,null,null,2,null,1,"Oficina de Planeación","2020-07-30","2020-12-31"]
[null,"Planeación y Direccionamiento Estratégico","Servicio al Colombiano",9,"Elaborar y publicar el informe trimestral de la gestión en materia de PQRSDC en la RNEC. ",null,"Plan Anticorrupción y de Atención al Ciudadano","Informes trimestrales de PQRSDC elaborados y publicados.","Cantidad Informes de PQRSDC elaborados y publicados.",4,"Número","Informes trimestrales de PQRSDC elaborados y publicados.","Página Web",1,1,1,null,1,null,"Oficina de Planeación - Coordinación de Peticiones, Quejas y Reclamos.","2020-01-31","31/09/2020"]
[null,"Planeación y Direccionamiento Estratégico","Servicio al Colombiano",10,"Dar tratamiento y respuesta oportuna en los términos de Ley a las PQRSDC recibidas por el Grupo de Peticiones, Quejas y Reclamos.",null,"Plan Anticorrupción y de Atención al Ciudadano","(No hay sugerencias) con respuesta y tratamiento en término.","Cantidad de  (No hay sugerencias) respondidas y tratamiento en término realizadas/(n)*Total de (No hay sugerencias) recibidas.",1,"Porcentaje","Ficha Balance","SharePoint",0.16666666666666666,0.16666666666666666,0.16666666666666666,0.16666666666666666,0.16666666666666666,0.16666666666666666,"Oficina de Planeación - Coordinación de Peticiones, Quejas y Reclamos.","2020-01-01","2020-12-31"]
[null,"Planeación y Direccionamiento Estratégico","Servicio al Colombiano",11,"Realizar cápsulas informativas sobre la responsabilidad de los servidores públicos frente al derecho de petición y sobre el proceso y los procedimientos de Servicio al Colombiano.",null,"Plan Anticorrupción y de Atención al Ciudadano","Cápsulas informativas. ","Cantidad cápsulas informativas elaboradas y publicadas",10,"Número","Reportes de Noticias al día con capsulas informativas publicadas","Oficina de Planeación",null,2,2,2,2,2,"Oficina de Planeación - Coordinación de Peticiones, Quejas y Reclamos - Oficina de Prensa y Comunicaciones. ","2020-03-01","2020-12-31"]
[null,"Planeación y Direccionamiento Estratégico","Servicio al Colombiano",12,"Elaborar y publicar en los canales de atención la carta de trato digno a los usuarios para la vigencia 2020.",null,"Plan Anticorrupción y de Atención al Ciudadano","Carta de trato digno actualizada y publicada","Documento elaborado y publicado. ",1,"Número","Carta de trato digno actualizada y publicada","Página Web",1,null,null,null,null,null,"Oficina de Planeación - Coordinación de Peticiones, Quejas y Reclamos.","2020-01-01","2020-02-29"]
[null,"Planeación y Direccionamiento Estratégico","Servicio al Colombiano",13,"Definir e implementar formatos de apoyo para la interacción con los ciudadanos por el canal telefónico y para la recepción de peticiones interpuestas de manera verbal.",null,"Plan Anticorrupción y de Atención al Ciudadano","Manual de formatos de apoyo para la atención telefónica y la recepción de PQRSDC verbales. ","Documento elaborado y publicado. ",1,"Número","Manual de formatos de apoyo para la atención telefónica y la recepción de PQRSDC verbales. ","INTRANET",null,null,1,null,null,null,"Oficina de Planeación - Coordinación de Peticiones, Quejas y Reclamos.","2020-05-01","2020-06-30"]
[null,"Planeación y Direccionamiento Estratégico","Servicio al Colombiano",14,"Elaborar y publicar en la INTRANET el informe bimestral de la encuesta de satisfacción de los colombianos con relación a los canales de atención.",null,"Plan Anticorrupción y de Atención al Ciudadano","Reportes elaborados y publicados en la INTRANET. ","Cantidad de reportes de resultados de la encuesta elaborados y socializados con el nivel directivo.",5,"Número","Reportes elaborados y publicados en la INTRANET. ","INTRANET",null,1,1,1,1,1,"Oficina de Planeación - Coordinación de Peticiones, Quejas y Reclamos.","2020-03-15","2020-12-31"]
[null,"Planeación y Direccionamiento Estratégico","Servicio al Colombiano",15,"Elaborar y  publicar en la INTRANET el informe bimestral de la encuesta de satisfacción con la atención de Peticiones, Quejas, Reclamos, Sugerencias, Denuncias y Consultas. ",null,"Plan Anticorrupción y de Atención al Ciudadano","Reportes elaborados y publicados en la INTRANET. ","Cantidad de reportes de resultados de la encuesta elaborados y socializados con el nivel directivo.",5,"Número","Reportes elaborados y publicados en la INTRANET. ","INTRANET",null,1,1,1,1,1,"Oficina de Planeación - Coordinación de Peticiones, Quejas y Reclamos.","2020-03-15","2020-12-31"]
[null,"Secretaría General","N.A",8,"Elaborar los convenios solicitados por las entidades publicas con el cumplimiento  de los requisitos señalados en la ley y las resoluciones expedidas por la Registraduría par tal  fin. ",null,"N/A","Convenios elaborados","(Cantidad de convenios elaborados en el Periodo ) /(n)*Cantidad de convenios programados para elaborar en el periodo ",1,"Porcentaje","Convenios elaborados\nProgramación","Secretaría General",0.16666666666666666,0.16666666666666666,0.16666666666666666,0.16666666666666666,0.16666666666666666,0.16666666666666666,"Secretaria General ","2020-01-02","2020-12-31"]
[null,"Secretaría General","N.A",9,"Reuniones de seguimiento  a los convenios celebrados  con el  fin de resolver inconvenientes presentados con la base de datos dispuesta por la Registraduría ",null,"N/A","Cantidad de reuniones realizadas","(Cantidad de reuniones realizadas ) /(n)*Cantidad de Reuniones solicitadas para seguimiento a convenios)",1,"Porcentaje","Listado de asistencia","Secretaría General",0.16666666666666666,0.16666666666666666,0.16666666666666666,0.16666666666666666,0.16666666666666666,0.16666666666666666,"Secretaria General ","2020-01-02","2020-12-31"]
[null,"Secretaría General","N.A",10,"Realizar Video Conferencias con los Delegados Departamentales para el  mejoramiento  y fortalecimiento  de la gestión institucional ",null,"N/A","Videoconferencia realizadas","(cantidad de video  Conferencias Rezagadas +Cantidad  de Video Conferencias Realizadas en el periodo ) /(n)*Cantidad de Video Conferencias programadas en el  periodo ",1,"Número","Acta de video conferencias realizadas","Secretaría General",0.16666666666666666,0.16666666666666666,0.16666666666666666,0.16666666666666666,0.16666666666666666,0.16666666666666666,"Secretaria General ","2020-01-02","2020-12-31"]
[null,"Secretaría General","N.A",11,"Realizar reuniones para el  cumplimiento  del Plan anual  de Adquisiciones nivel central ",null,"N/A","Reuniones realizadas para el  cumplimiento  del Plan anual  de Adquisiciones nivel central ","(cantidad de reuniones de seguimiento  realizadas en el  período  ) /(n)*Cantidad de reuniones de seguimiento  programadas en el  periodo  ",1,"Porcentaje","Acta de reunión","Secretaría General",0.16666666666666666,0.16666666666666666,0.16666666666666666,0.16666666666666666,0.16666666666666666,0.16666666666666666,"Secretaria General ","2020-01-02","2020-12-31"]
[null,"Gestión de Comunicación  Pública y Estratégica","Comunicación Organizacional",1,"Publicar notas en medios y redes sociales",null,"N/A","Notas publicadas","Cantidad de notas, comentarios y/o trinos publicados en el periodo / (n)* Cantidad de notas, comentarios y/o trinos programados a publicar",1,"Porcentaje","Monitoreo diario realizado","Grupo de prensa en el cual es publicado el monitoreo",0.16666666666666666,0.16666666666666666,0.16666666666666666,0.16666666666666666,0.16666666666666666,0.16666666666666666,"Oficina de Comunicaciones y Prensa","2020-01-02","2020-12-31"]
[null,"Gestión de Comunicación  Pública y Estratégica","Comunicación Organizacional",2,"Escribir y publicar comunicados de prensa",null,"N/A","Comunicados","Cantidad de comunicados/((n) *Cantidad de temas a tratar)",1,"Porcentaje","Comunicados realizados","En el link https://www.registraduria.gov.co/?page=comunicados&periodo=2020",0.16666666666666666,0.16666666666666666,0.16666666666666666,0.16666666666666666,0.16666666666666666,0.16666666666666666,"Oficina de Comunicaciones y Prensa","2020-01-02","2020-12-31"]
[null,"Gestión de Comunicación  Pública y Estratégica","Comunicación Organizacional",3,"Realizar el Noticias al Día",null,"N/A","Noticias al Día","Cantidad de Noticias al Día/(n)(Cantidad de día hábiles del mes)",244,"Número","Noticias al Día","En el correo diario de cada funcionario o en la intranet",41,41,38,41,43,40,"Oficina de Comunicaciones y Prensa","2020-01-02","2020-12-31"]
[null,"Gestión de Comunicación  Pública y Estratégica","Comunicación Organizacional",4,"Definir los temas de campañas",null,"N/A","Temas campañas","Cantidad de temas de campañas definidos en el periodo/((n)*(Cantidad de temas de campañas a definir solicitados en el periodo))",1,"Porcentaje","Redes sociales, Noticias al Día, wallpaper, material impreso, entre otros","Depende del tipo de producto se dá la evidencia ya sea en la intranet o en la página web",0.16666666666666666,0.16666666666666666,0.16666666666666666,0.16666666666666666,0.16666666666666666,0.16666666666666666,"Oficina de Comunicaciones y Prensa","2020-01-02","2020-12-31"]
[null,"Gestión de Comunicación  Pública y Estratégica","Comunicación Organizacional",5,"Realizar material impreso",null,"N/A","Impresos","Cantidad  de impresos realizados/((n)*(Cantidad de impresos encargados))",1,"Porcentaje","Afiches, volantes, plegables, etc.","De acuerdo con la publicación realizada",0.16666666666666666,0.16666666666666666,0.16666666666666666,0.16666666666666666,0.16666666666666666,0.16666666666666666,"Oficina de Comunicaciones y Prensa","2020-01-02","2020-12-31"]
[null,"Gestión de Comunicación  Pública y Estratégica","Comunicación Organizacional",6,"Publicar contenidos en la web",null,"N/A","Publicaciones página web","Cantidad  de publicaciones realizadas/((n)*(Cantidad de publicaciones solicitadas))",1,"Porcentaje","Publicaciones realizadas en la web","En la dirección https://www.registraduria.gov.co/ se pueden ver las diferentes publicaciones",0.16666666666666666,0.16666666666666666,0.16666666666666666,0.16666666666666666,0.16666666666666666,0.16666666666666666,"Oficina de Comunicaciones y Prensa","2020-01-02","2020-12-31"]
[null,"Gestión de Comunicación  Pública y Estratégica","Comunicación Organizacional",7,"Desarrollar un Panel Administrador que permita generar en tiempo real resultados y estadísticas de las Encuestas de Atención a los Colombianos. ",null,"Plan Anticorrupción y de Atención al Ciudadano","Desarrollo del panel administrador de encuestas de satisfacción.","Desarrollo del panel administrador de encuestas de satisfacción realizado.",1,"Número","Panel","Se tardaría un año en estar listo",null,null,null,null,null,1,"Oficina de Comunicaciones y Prensa","2020-11-01","2020-12-31"]
[null,"Gestión de Comunicación  Pública y Estratégica","Comunicación Organizacional",8,"Adecuar espacios de la página web en Lengua de Señas Colombiana-LSC para personas con discapacidad auditiva.",null,"Plan Anticorrupción y de Atención al Ciudadano","Página web con información disponible en Lengua de Señas Colombiana-LSC.","Página web adecuada",1,"Porcentaje","Hasta el momento solo se han trabajado videos en diferentes lenguas","Los videos en las publicaciones",null,null,null,null,null,1,"Oficina de Comunicaciones y Prensa","2020-11-01","2020-12-31"]
[null,"Gestión de Comunicación  Pública y Estratégica","Comunicación Organizacional",9,"Rediseñar la sección particular de Transparencia y  Acceso a la Información Pública",null,"Plan Anticorrupción y de Atención al Ciudadano","Sección de Transparencia  y Acceso a la Información Pública rediseñada en la pagina principal  de la Registraduría Nacional del Estado Civil.","Sección de Transparencia y Acceso a la información Pública para la ciudadanía rediseñada",1,"Número","´Botón en página web","Página Web",null,null,null,null,null,1,"Oficina de Comunicaciones y Prensa","2020-11-01","2020-12-31"]
[null,"Gestión de Comunicación  Pública y Estratégica","Comunicación Organizacional",10,"Actualizar y publicar la información mínima obligatoria en el portal web de la Registraduría Nacional del Estado Civil para la vigencia 2020.",null,"Plan Anticorrupción y de Atención al Ciudadano","Información y contenidos actualizados y publicados en el portal web de la Registraduría Nacional del Estado Civil.\n","Cantidad de documentos y/o contenidos publicados y actualizados en la página web./ (n)*Cantidad Documentos y/o contenidos mínimos a actualizar y publicar.",1,"Porcentaje","Planes publicados, información judicial, campañas de identificación, votaciones, pedagogía y demás","Página Web",0.16666666666666666,0.16666666666666666,0.16666666666666666,0.16666666666666666,0.16666666666666666,0.16666666666666666,"Oficina de Comunicaciones y Prensa","2020-01-02","2020-12-31"]
[null,"Gestión de Comunicación  Pública y Estratégica","Comunicación Organizacional",11,"Publicar el Registro de publicaciones (Art.11, Lit. j, Ley 1712 de 2014  Art. 37 y 38, Decreto. 103 de 2015)",null,"Plan Anticorrupción y de Atención al Ciudadano","Registro de publicaciones ","Cantidad de documentos registrados./(n)*(Cantidad de documentos publicados en el periodo)",1,"Porcentaje","Registro de publicaciones","Página Web",0.16666666666666666,0.16666666666666666,0.16666666666666666,0.16666666666666666,0.16666666666666666,0.16666666666666666,"Oficina de Comunicaciones y Prensa","2020-01-02","2020-12-31"]
[null,"Gestión de Comunicación  Pública y Estratégica","Comunicación Organizacional",12,"Generar estrategias en los medios de comunicación para dar a conocer lo referente a la organización y transmisión de la rendición de cuentas ",null,"Plan Anticorrupción y de Atención al Ciudadano","Avisos publicados en los diferentes medios de comunicación interna y externa. ","Cantidad de Avisos publicados durante el periodo/ (n)* Cantidad de avisos programados a publicar en el periodo",1,"Porcentaje","Trabajo de los comunicados de prensa, transmisiones, ruedas de prensa, etc.","Página Web",null,null,null,null,null,1,"Oficina de Comunicaciones y Prensa","2020-09-01","2020-11-30"]
[null,"Gestión de Comunicación  Pública y Estratégica","Comunicación Organizacional",13,"Implementar un formulario web en el cual los servidores públicos de la RNEC puedan aportar ideas para la definición de espacios para la rendición de cuentas.",null,"Plan Anticorrupción y de Atención al Ciudadano","Formulario web ","Formulario web implementado. ",1,"Número","Formulario","Página Web",null,null,null,null,null,1,"Oficina de Comunicaciones y Prensa","2020-12-01","2020-11-30"]
[null,"Gestión de Comunicación  Pública y Estratégica","Comunicación Organizacional",14,"Actualizar, consolidar y publicar el esquema de publicación de la información . ",null,"Plan Anticorrupción y de Atención al Ciudadano","Esquema de publicación de la información publicado y actualizado","Esquema de Publicación de la Información actualizado y publicado",1,"Número","Documento esquema de Publicación de la Información ","Por definir",null,null,null,1,null,null," Oficina de Prensa y Comunicaciones.","2020-07-01","2020-08-31"]
[null,"Registro Civil e Identificación","Registro y Actualización del Sistema",1,"Realizar atención preferencial a través de la Unidad de Atención a Población Vulnerable -UDAPV- a los diferentes grupos poblacionales que por su condición de vulnerabilidad no pueden acceder a las oficinas de la Registraduría Nacional. ",null,"Plan Anticorrupción y de Atención al Ciudadano","Jornadas de Registro Civil e Identificación ","Cantidad de jornadas de Registro Civil e Identificación realizadas./ (n)*Cantidad de jornadas de Registro Civil e Identificación programadas en el período",1,"Porcentaje","Informe Ejecutivo SPI","SPI",null,{"$f":"1/3","v":0.33333333333333331},null,{"$f":"1/3","v":0.33333333333333331},null,{"$f":"1/3","v":0.33333333333333331},"Unidad de Atención a Población Vulnerable - UDAPV -Registraduría Delegada para el Registro Civil y la Identificación.","2020-03-01","2020-12-31"]
[null,"Registro Civil e Identificación","Registro y Actualización del Sistema",2,"Capacitar a la población diferenciada ubicada en zona de difícil acceso sobre la importancia del registro civil ",null,"Plan Anticorrupción y de Atención al Ciudadano","Eventos de capacitación realizados a población diferenciada y/o en zonas de difícil acceso","Cantidad de eventos de capacitación realizados.",18,"Número","Informe Ejecutivo SPI","SPI",null,null,null,null,null,18,"Dirección Nacional de Registro Civil - DNRC","2020-11-01","2020-12-31"]
[null,"Registro Civil e Identificación","Registro y Actualización del Sistema",3,"Implementar las estrategias y acciones para fortalecer la política institucional de protección de datos personales.",null,"Plan Anticorrupción y de Atención al Ciudadano","Acciones y Estrategias implementadas","Informe elaborado sobre acciones y Estrategias implementadas en la vigencia",1,"Número","Informe de estrategias y acciones  implementadas en la vigencia","GAIPDP",null,null,null,null,null,1,"Registraduría Delegada para el Registro Civil y la Identificación.","2020-11-01","2020-12-31"]
[null,"Registro Civil e Identificación","Registro y Actualización del Sistema",4,"Continuar con la racionalización mediante la Interoperabilidad Externa entre Registradurías y Hospitales y Clínicas con convenio  para la actualización de la información con base a los datos de registro civil desde la herramienta SRC-Web. \n",null,"Plan Anticorrupción y de Atención al Ciudadano","Registros civiles generados en los centros de salud y notarias oportunamente en las base de datos de registro civil.","Cantidad de Trámites racionalizados,  actualizados  en  formato integrado SUIT del Departamento Administrativo de la Función Pública/  Cantidad de trámites proyectado  racionalizar.",1,"Porcentaje","Matriz SUIT ","SUIT",null,null,null,null,null,1," Dirección Nacional de Registro Civil ","2020-11-01","2020-12-31"]
[null,"Registro Civil e Identificación","Registro y Actualización del Sistema",5,"Programar otras acciones de racionalización de trámites. ",null,"Plan Anticorrupción y de Atención al Ciudadano","Listado de trámites a racionalizar en la vigencia 2021. ","Matriz de racionalización de trámites  elaborada.",1,"Número","Matriz de racionalización de trámites 2021","RDRCI",null,null,null,null,null,1,"Registraduría Delegada para el Registro Civil y Dirección Nacional de Identificación.","2020-09-01","2020-12-31"]
[null,"Registro Civil e Identificación","Registro y Actualización del Sistema",6,"Digitalizar  las primeras copias de Registros Civiles de Nacimiento, Matrimonio y Defunción (RCX) remitidas por las Delegaciones a la Dirección Nacional de Registro Civil.",null,"N/A","Registro Civil Digitalizado","Cantidad de primeras copias de RCX digitalizadas / (n) * Cantidad de primeras copias de RCX recibidas para digitalizar en el período",1,"Porcentaje","Reporte estadístico","IDEMIA \nS.N.I.",0.16666666666666666,0.16666666666666666,0.16666666666666666,0.16666666666666666,0.16666666666666666,0.16666666666666666,"Dirección Nacional de Registro Civil. DNRC","2020-01-02","2020-12-31"]
[null,"Registro Civil e Identificación","Registro y Actualización del Sistema",7,"Indexar los Registros Civiles de Nacimiento, Matrimonio y Defunción (RCX) que no han sido incorporadas a la base de datos.",null,"N/A","Registro Civil Indexado","Cantidad de registros civiles indexados / (n) * Cantidad de registros civiles para indexar  en el período ",1,"Porcentaje","Reporte estadístico","IDEMIA \nS.N.I.",0.16666666666666666,0.16666666666666666,0.16666666666666666,0.16666666666666666,0.16666666666666666,0.16666666666666666,"Dirección Nacional de Registro Civil. DNRC","2020-01-02","2020-12-31"]
[null,"Registro Civil e Identificación","Registro y Actualización del Sistema",8,"Tramitar los  duplicados de  cédula de ciudadanía y tarjetas de identidad en línea a través del proveedor de servicios de pago en línea PSE   (documentos que cumplieron con los requisitos para ser producidos).",null,"N/A","Solicitudes  de duplicado de cédulas de ciudadanía y tarjetas de identidad en línea tramitadas.","Cantidad de trámites de duplicado de cédulas de ciudadanía y tarjeta de identidad recibidas en línea / (n) * Cantidad de solicitudes de duplicado de cédulas de ciudadanía y tarjeta de identidad recibidas en línea",1,"Porcentaje","Reporte estadístico","IDEMIA \n",0.16666666666666666,0.16666666666666666,0.16666666666666666,0.16666666666666666,0.16666666666666666,0.16666666666666666,"Dirección Nacional de Identificación. DNI","2020-01-02","2020-12-31"]
[null,"Registro Civil e Identificación","Registro y Actualización del Sistema",9,"Producir  las tarjetas de identidad cargadas en el flujo de producción que cumplieron los requisitos de calidad. ",null,"N/A","Tarjeta de identidad  producidas ","Cantidad de tarjetas de identidad producidas / (n) *  Cantidad de tarjetas de identidad  que cumplieron con requisitos para impresión  en el período  ",1,"Porcentaje","Reporte estadístico","IDEMIA\n",0.16666666666666666,0.16666666666666666,0.16666666666666666,0.16666666666666666,0.16666666666666666,0.16666666666666666,"Dirección Nacional de Identificación. DNI","2020-01-02","2020-12-31"]
[null,"Registro Civil e Identificación","Registro y Actualización del Sistema",10,"Producir  las cédulas de ciudadanía cargadas en el flujo de producción que cumplieron los requisitos de calidad. ",null,"N/A","Cédula de ciudadanía producidas.","Cantidad de Cédula de ciudadanía producidas / (n) *  Cantidad de Cédula de ciudadanía  que cumplieron con requisitos para impresión  en el período  ",1,"Porcentaje","Reporte estadístico","IDEMIA\n",0.16666666666666666,0.16666666666666666,0.16666666666666666,0.16666666666666666,0.16666666666666666,0.16666666666666666,"Dirección Nacional de Identificación. DNI","2020-01-02","2020-12-31"]
[null,"Registro Civil e Identificación","Registro y Actualización del Sistema",1,"Desarrollar el proyecto de racionalización del tiempo de los trámites cédula de ciudadanía por primera vez,  duplicado, rectificación  y renovación realizados en el exterior. Proyecto “Web Service para generación de NIST de Cancillería\"",null,"Plan Anticorrupción y de Atención al Ciudadano","Trámites de cédula de ciudadanía    con  interoperabilidad  entre  Registraduría y Sistema Integral de Trámites-SITAC a través de “Web Service para generación de NIST de Cancillería\" ","Cantidad de Trámites racionalizados,  actualizados  en  formato integrado SUIT del Departamento Administrativo de la Función Pública/Cantidad de trámites por racionalizar",1,"Porcentaje","Formato integrado actualizado","SUIT",null,null,null,null,null,1,"Dirección Nacional de  Identificación \nGerencia Informática.","2020-11-01","2020-12-31"]
[null,"Registro Civil e Identificación","Registro y Actualización del Sistema",2,"Implementar la estación integrada de Servicios EIS   para enrolamiento de  los trámites de CC y TI  ( primera vez, duplicado, renovación y rectificación) ",null,"Plan Anticorrupción y de Atención al Ciudadano","Cédulas y tarjetas de identidad tramitadas en   EIS ","Cantidad de Trámites racionalizados,  actualizados  en  formato integrado SUIT del Departamento Administrativo de la Función Pública/Cantidad de trámites proyectado  racionalizar",1,"Porcentaje","Formato integrado actualizado","SUIT",null,null,null,null,null,1,"Dirección Nacional de  Identificación \nGerencia Informática.","2020-11-01","2020-12-31"]
[null,"Registro Civil e Identificación","Registro y Actualización del Sistema",3,"Implementar una  aplicación para tramitar duplicado de cedula de ciudadanía   desde un dispositivo electrónico,  con autenticación y  reconocimiento facial y con pago en línea.",null,"Plan Anticorrupción y de Atención al Ciudadano","Duplicados de cédulas de ciudadanía tramitadas  a través de  desde un dispositivo electrónico","Cantidad de Trámites racionalizados,  actualizados  en  formato integrado SUIT del Departamento Administrativo de la Función Pública/Cantidad de trámites proyectado  racionalizar",1,"Porcentaje","Formato integrado actualizado","SUIT",null,null,null,null,null,1,"Dirección Nacional de  Identificación \nGerencia Informática.- Gerencia Administrativa y Financiera ","2020-11-01","2020-12-31"]
[null,"Registro Civil e Identificación","Registro y Actualización del Sistema",4,"Implementar el proyecto de cédula electrónica y digital  para los trámites de duplicado y rectificación de cédula de ciudadanía.",null,"Plan Anticorrupción y de Atención al Ciudadano","Cédula electrónica y digital  implementada para duplicado y rectificación ","Cantidad de Trámites racionalizados,  actualizados  en  formato integrado SUIT del Departamento Administrativo de la Función Pública/Cantidad de trámites proyectado  racionalizar",1,"Porcentaje","Formato integrado actualizado","SUIT",null,null,null,null,null,1,"Registraduría Delegada para el Registro Civil e Identificación - Dirección Nacional de Identificación  - Gerencia Informática","2020-11-01","2020-12-31"]
[null,"Registro Civil e Identificación","Registro y Actualización del Sistema",5,"Eliminar el trámite de renovaciones tarjeta de identidad ",null,"Plan Anticorrupción y de Atención al Ciudadano","Trámite de renovación de tarjeta de identidad eliminado","Cantidad de Trámites racionalizados,  actualizados  en formato integrado SUIT del Departamento Administrativo de la Función Pública/  Cantidad de trámites proyectado  racionalizar",1,"Porcentaje","Formato integrado actualizado","SUIT",null,null,null,null,null,1,"Registraduría Delegada para el Registro Civil y la Identificación  Dirección Nacional de Identificación","2020-11-01","2020-12-31"]
[null,"Registro Civil e Identificación","Certificación, Documentación  y Servicios",6,"Certificar la firma de los registradores del estado civil en los registros civiles de Nacimiento, Matrimonio y Defunción (RCX).",null,"N/A","Registro Civiles (RCX) certificados","Cantidad de solicitudes tramitadas en el período / (n) * Cantidad de solicitudes para certificar la firma digital recibidas en el período",1,"Porcentaje","Reporte Estadístico","Validación y producción de RC",0.16666666666666666,0.16666666666666666,0.16666666666666666,0.16666666666666666,0.16666666666666666,0.16666666666666666,"Dirección Nacional de Registro Civil","2020-01-02","2020-12-31"]
[null,"Registro Civil e Identificación","Certificación, Documentación  y Servicios",7,"Expedir copias  y certificación  de registros civiles de Nacimiento.",null,"N/A","Copias y certificaciones de registro civiles de Nacimiento expedidos","Cantidad de copias de registro civil de nacimiento expedidas/ (n) * Cantidad de solicitudes de copias de registro civil de nacimiento recibidas en el período",1,"Porcentaje","Reporte Estadístico","SCR",0.16666666666666666,0.16666666666666666,0.16666666666666666,0.16666666666666666,0.16666666666666666,0.16666666666666666,"Dirección Nacional de Registro Civil","2020-01-02","2020-12-31"]
[null,"Registro Civil e Identificación","Certificación, Documentación  y Servicios",8,"Expedir copias  y certificación  de registros civiles de Matrimonio.",null,"N/A","Copias y certificaciones de registro Civil de Matrimonio expedidos","Cantidad de copias de registro civil de matrimonio expedidas/ (n) * Cantidad de solicitudes de copias de registro civil de matrimonio recibidas en el período",1,"Porcentaje","Reporte Estadístico","SCR",0.16666666666666666,0.16666666666666666,0.16666666666666666,0.16666666666666666,0.16666666666666666,0.16666666666666666,"Dirección Nacional de Registro Civil","2020-01-02","2020-12-31"]
[null,"Registro Civil e Identificación","Certificación, Documentación  y Servicios",9,"Expedir copias  y certificación de registros civiles de Defunción.",null,"N/A","Copias y certificaciones de registros Civiles de Defunción expedidos","Cantidad de copias de registro civil de defunción expedidas/ (n) * Cantidad de solicitudes de copias de registro civil de defunción recibidas en el período",1,"Porcentaje","Reporte Estadístico","SCR",0.16666666666666666,0.16666666666666666,0.16666666666666666,0.16666666666666666,0.16666666666666666,0.16666666666666666,"Dirección Nacional de Registro Civil","2020-01-02","2020-12-31"]
[null,"Registro Civil e Identificación","Certificación, Documentación  y Servicios",10,"Expedir en las Registradurías autorizadas, copias de RCX, inscritos en cualquier oficina registral a nivel nacional.",null,"N/A","Copias de RCX, expedidas en las Registradurías  autorizadas, que corresponden a RCX inscritos en cualquier oficina registral a nivel Nacional.","Cantidad de copias de registro civil inscritos en cualquier oficina a nivel nacional, expedidas por las Registradurías autorizadas / (n) * Cantidad de solicitudes copias de registro civil inscritos en cualquier oficina a nivel nacional, recibidas por las Registradurías autorizadas en el período",1,"Porcentaje","Reporte Estadístico","IDEMIA \nDNRC",0.16666666666666666,0.16666666666666666,0.16666666666666666,0.16666666666666666,0.16666666666666666,0.16666666666666666,"Dirección Nacional de Registro Civil","2020-01-02","2020-12-31"]
[null,"Registro Civil e Identificación","Certificación, Documentación  y Servicios",11,"Expedir certificados excepcionales de información no sujeta a reserva legal.",null,"N/A","Certificaciones de documentos de identidad expedidos","Cantidad de certificados excepcionales de información sujeta a reserva legal expedidos/ (n) * Cantidad de certificados excepcionales de información sujeta a reserva legal recibidos en el período",1,"Porcentaje","Reporte estadístico - Nivel central","SCR",0.16666666666666666,0.16666666666666666,0.16666666666666666,0.16666666666666666,0.16666666666666666,0.16666666666666666,"Dirección Nacional de Identificación ","2020-01-02","2020-12-31"]
[null,"Registro Civil e Identificación","Certificación, Documentación  y Servicios",12,"Suscribir y legalizar el documento que establece los términos y condiciones para el Acceso a la Información biográfica y/o biométrica por parte de las Entidades públicas y privadas.  ",null,"N/A","Contratos suscritos para el acceso a la base de datos biográfica y biométrica de la RNEC.","Cantidad de documentos suscritos y legalizados en el período/ (n)*cantidad de documentos para suscribir y legalizar recibidos en el período",1,"Porcentaje","Reporte estadístico","GAIPDP",0.16666666666666666,0.16666666666666666,0.16666666666666666,0.16666666666666666,0.16666666666666666,0.16666666666666666,"Grupo de Acceso a la Información y Protección de Datos Personales. GAIPDP","2020-01-02","2020-12-31"]
[null,"Registro Civil e Identificación","Proyecto: Fortalecimiento de la capacidad de atención en Identificación para la población en condición de vulnerabilidad, APD. Nacional",1,"Realizar las actividades del proyecto de fortalecimiento de la capacidad de atención en Identificación para la población en condición de vulnerabilidad, APD. Nacional",null,"Plan Anual de Adquisiciones","Informe de gestión del proyecto de Fortalecimiento de la capacidad de atención en Identificación para la población en condición de vulnerabilidad, APD. Nacional","Cantidad de informes de gestión presentados en el periodo",6,"Número","Informe Ejecutivo SPI","SPI",1,1,1,1,1,1,"Unidad  de Atención a Población Vulnerable - UDAPV","2020-01-02","2020-12-31"]
[null,"Registro Civil e Identificación","Proyecto: Fortalecimiento de la plataforma tecnológica que soporta el sistema de identificación y registro civil PMT II",1,"Realizar seguimiento de las actividades del proyecto de  Fortalecimiento de la plataforma tecnológica que soporta el sistema de identificación y registro civil PMT II",null,"Plan Anual de Adquisiciones","Informe de seguimiento del proyecto de  Fortalecimiento de la plataforma tecnológica que soporta el sistema de identificación y registro civil PMT IIl","Cantidad de informes de gestión presentados en el periodo",6,"Número","Informe Ejecutivo SPI","SPI",1,1,1,1,1,1,"Registraduría Delegada para el Registro Civil y la Identificación. RDRCI","2020-01-02","2020-12-31"]
[null,"Registro Civil e Identificación","Proyecto: Fortalecimiento del Sistema de Información de Registro Civil Nacional",1,"Realizar  las actividades del proyecto de  Fortalecimiento del Sistema de Información de Registro Civil Nacional",null,"Plan Anual de Adquisiciones","Informe de gestión del proyecto de  Fortalecimiento del Sistema de Información de Registro Civil Nacional","Cantidad de informes de gestión presentados en el periodo",2,"Número","Informe Ejecutivo SPI","SPI",null,null,null,null,1,1,"Dirección Nacional de Registro Civil","2020-09-01","2020-12-31"]
[null,"Electoral","Debates Electorales",1,"Desarrollar las actividades del Calendario Electoral de las elecciones de Consejos Locales y Municipales de Juventud competencia de la RNEC",null,"N/A","Elecciones de Consejos Locales y Municipales de Juventud realizadas","Cantidad de actividades realizadas según el Calendario Electoral/(n*Cantidad de actividades programadas en el Calendario Electoral)",1,"Porcentaje","Convocatoria del Comité interinstitucional \nActa de Comité Interinstitucional\nDivipole definitiva\nReporte final de inscritos\nReporte de candidatos escritos\nReporte de jurados designados\nReporte de jurados capacitados\nConsulta de declaratoria de elecciones en pagina WEB","Registraduría delegada en lo electoral",null,0.25,0.25,0.25,0.25,null,"Registraduría Delegada en lo Electoral","2020-03-01","2020-10-31"]
[null,"Electoral","Debates Electorales",2,"Realizar las elecciones nuevas y complementarias convocadas",null,"N/A","Elecciones nuevas y complementarias realizadas","Cantidad de elecciones nuevas y complementarias realizadas/(n*Cantidad de elecciones nuevas y complementarias convocadas)",1,"Porcentaje","Reporte de candidatos escritos\nReporte de jurados designados\nReporte de jurados capacitados\nDeclaratoria de elecciones (E26)","Registraduría delegada en lo electoral",0.16666666666666666,0.16666666666666666,0.16666666666666666,0.16666666666666666,0.16666666666666666,0.16666666666666666,"Registraduría Delegada en lo Electoral","2020-01-01","2020-12-31"]
[null,"Electoral","Debates Electorales",3,"Apoyar la realización de las elecciones de otras entidades ",null,"N/A","Apoyo a la realización de elecciones de otras entidades","Cantidad de elecciones de otras entidades apoyadas/(n*Cantidad de elecciones de otras entidades solicitadas)",1,"Porcentaje","Certificación de apoyo prestado","Registraduría delegada en lo electoral",0.16666666666666666,0.16666666666666666,0.16666666666666666,0.16666666666666666,0.16666666666666666,0.16666666666666666,"Dirección de Gestión Electoral","2020-01-01","2020-12-31"]
[null,"Electoral","Debates Electorales",4,"Revisar y ajustar el procedimiento de Conformación y actualización de la Divipole (DEPD04)",null,"N/A","Revisión y ajuste del procedimiento de Conformación y actualización de la Divipole (DEPD04) ","Procedimiento de Conformación y actualización de la Divipole (DEPD04) revisado y ajustado",2,"Número","Procedimiento actualizado y publicado","Mapa de procesos debates electorales",null,null,1,null,null,1,"Registraduría Delegada en lo Electoral","2020-01-01","2020-10-31"]
[null,"Electoral","Debates Electorales",5,"Elaborar y gestionar el proyecto de reforma al Código Electoral",null,"N/A","Proyecto de reforma del Código Electoral","Proyecto de reforma de Código Electoral elaborado y gestionado",1,"Porcentaje","Proyecto de reforma de Código Electoral (Bimenstre 3)\nInforme de gestión (Bimestre 6)","SharePoint",null,null,1,null,null,1,"Registraduría Delegada en lo Electoral","2020-01-01","2020-07-31"]
[null,"Electoral","Debates Electorales",6,"Análisis de las barreras geográficas con respecto a la accesibilidad de los puestos de votación",null,"N/A","Documento de análisis de las barreras geográficas con respecto a la accesibilidad de los puestos de votación","Documento de análisis de las barreras geográficas con respecto a la accesibilidad de los puestos de votación realizado",1,"Porcentaje","Documento realizado","SharePoint",null,null,null,null,null,1,"Registraduría Delegada en lo Electoral","2020-01-01","2020-12-31"]
[null,"Electoral","Debates Electorales",7,"Elaborar la circular única en materia electoral",null,"N/A","Circular única en materia electoral ","Circular única en materia electoral elaborada",1,"Porcentaje","Circular elaborada","SharePoint",null,null,null,null,null,1,"Registraduría Delegada en lo Electoral","2020-01-01","2020-12-31"]
[null,"Electoral","Debates Electorales",8,"Depurar y actualizar el  censo electoral",null,"N/A","Censo electoral actualizado y depurado","Cantidad reportes de actualización y depuración del Censo electoral",12,"Número","reportes de actualización y depuración del Censo electoral","SharePoint",2,2,2,2,2,2,"Dirección de Censo Electoral","2020-01-01","2020-12-31"]
[null,"Electoral","Debates Electorales",9,"Elaborar material y protocolos de atención y sensibilización para las personas con discapacidad en materia electoral.",null,"Plan Anticorrupción y de Atención al Ciudadano","Protocolos de atención y sensibilización ","Protocolos de atención y sensibilización elaborados",2,"Número","Protocolos de atención y sensibilización elaborados","SharePoint",null,1,null,1,null,null,"Registraduría Delegada en lo Electoral","2020-03-01","2020-12-31"]
[null,"Electoral","Debates Electorales",10,"Publicar en el Portal de Datos Abiertos, los resultados electorales de las Elecciones de Autoridades Locales 2019.",null,"Plan Anticorrupción y de Atención al Ciudadano","Información publicada en el portal de datos abiertos.","Actualización realizada/Actualización programada.",1,"Porcentaje","Resultados electorales publicados en WEB","Página Web",null,null,1,null,null,null,"Registraduría Delegada en lo Electoral","0//05/2020","2020-06-30"]
[null,"Electoral","Debates Electorales",11,"Actualizar el Sistema Integral de Capacitación Electoral con criterios de accesibilidad. ",null,"Plan Anticorrupción y de Atención al Ciudadano","Plataforma del Sistema Integral de Capacitación Electoral actualizado.","Sistema Integral de Capacitación Electoral actualizado.",1,"Número","Plataforma del Sistema Integral de Capacitación Electoral actualizado.","Página Web",null,null,null,null,1,null,"Registraduría Delegada en lo Electoral","2020-09-01","2020-10-31"]
[null,"Electoral","Debates Electorales",12,"Realizar mesas de diálogo presenciales con instituciones y agrupaciones políticas para identificar acciones de mejora  de servicios en materia electoral",null,"Plan Anticorrupción y de Atención al Ciudadano","Mesas de dialogo realizadas","Cantidad mesas de diálogo realizadas",5,"Número","Acta con los compromisos en materia de mejoramiento de servicios.","SharePoint",1,1,1,1,1,null,"Registraduría Delegada en lo Electoral","2020-01-01","2020-10-31"]
[null,"Electoral","Debates Electorales",13,"Realizar grupos focales con partes interesadas y entidades públicas para identificar acciones de mejora de servicios en materia electoral.",null,"Plan Anticorrupción y de Atención al Ciudadano","Grupos focales realizados","Cantidad de grupos focales  realizados.",3,"Número","Acta con los compromisos en materia de mejoramiento de servicios.","SharePoint",null,1,1,1,null,null,"Registraduría Delegada en lo Electoral","2020-03-01","2020-08-31"]
[null,"Electoral","Mecanismos de Participación ",1,"Realizar las elecciones de los diferentes Mecanismos de Participación Ciudadana  convocadas",null,"N/A","Mecanismos de Participación Ciudadana dirigidos, organizados y realizados","Cantidad de Mecanismos de Participación Ciudadana realizados/(n*Cantidad de Mecanismos de Participación convocados)",1,"Porcentaje","Formularios E26","Página Web",{"$f":"1/6","v":0.16666666666666666},0.16666666666666666,0.16666666666666666,0.16666666666666666,0.16666666666666666,0.16666666666666666,"Registraduría Delegada en lo Electoral","2020-01-01","2020-12-31"]
[null,"Electoral","Mecanismos de Participación ",2,"Verificar los apoyos presentados por los Comités Promotores de Mecanismos de Participación Ciudadana",null,"N/A","Verificación de apoyos presentados por los Comités Promotores de Mecanismos de Participación","Cantidad de apoyos revisados de los Comités Promotores de Mecanismos de Participación/(n*Cantidad de apoyos presentados por los Comités Promotores de Mecanismos de Participación)",1,"Porcentaje","Acta de verificación de firmas","SharePoint",0.16666666666666666,0.16666666666666666,0.16666666666666666,0.16666666666666666,0.16666666666666666,0.16666666666666666,"Dirección de Censo Electoral","2020-01-01","2020-12-31"]
[null,"Gestión del Talento Humano","Permanencia del Talento Humano",1,"Realizar actividades de capacitación para fortalecer la política institucional de acceso a la información y protección de datos personales en temas misionales al interior de la entidad.",null,"Plan Anticorrupción y de Atención al Ciudadano","Actividades de formación realizadas","Actividades de Formación ejecutadas / (n)*Actividades de Formación programadas.",1,"Porcentaje","Formatos de inscripción\nFormatos de asistencia","SharePoint",null,null,null,{"$f":"1/3","v":0.33333333333333331},{"$f":"1/3","v":0.33333333333333331},{"$f":"1/3","v":0.33333333333333331},"Gerencia del Talento Humano\nCoordinación de Desarrollo Integral del Talento Humano","2020-07-01","2020-12-31"]
[null,"Gestión del Talento Humano","Permanencia del Talento Humano",2,"Aplicar el procedimiento del sistema de evaluación de desempeño laboral del los servidores públicos de carrera administrativa activos en la vigencia",null,"Plan de Estímulos - Plan Anual de Incentivos","Evaluaciones de desempeño laboral de los servidores públicos, de carrera administrativa, de la sede central y activos en el período ","Cantidad de evaluaciones realizadas/ (n)*Cantidad de evaluaciones programadas en el período",1,"Porcentaje","Certificación expedida por el Coordinado del Grupo de Carrera Administrativa Especial con la cantidad de evaluaciones realizadas","SharePoint",null,{"$f":"1/5","v":0.2},{"$f":"1/5","v":0.2},0.2,0.2,0.2,"Gerencia del Talento Humano - Grupo Carrera Administrativa Especial ","2020-03-02","2020-12-31"]
[null,"Gestión del Talento Humano","Permanencia del talento humano",3,"Actualizar el Registro Público de la Carrera",null,"N/A","Anotación realizadas en el registro público de movimientos que afectan derechos de carrera administrativo","Cantidad de anotaciones realizadas en el registro público durante período/(n)*Cantidad de anotaciones en el registro público programadas a realizar en el periodo",1,"Porcentaje","Certificación expedida por el Coordinado del Grupo de Carrera Administrativa Especial con la cantidad de evaluaciones realizadas","SharePoint",null,0.2,0.2,0.2,0.2,0.2,"Gerencia del Talento Humano - Grupo de Carrera Administrativa - Registradores Distritales - Delegados Departamentales - Encargados del Talento Humano en cada Circunscripción.","2020-03-02","2020-12-31"]
[null,"Gestión del Talento Humano","Permanencia del Talento Humano",4,"Elaborar el plan de trabajo anual del Sistema de Gestión de Seguridad y Salud en el Trabajo",null,"Sistema de Gestión de Seguridad y Salud en el Trabajo","Documento Sistema de Gestión de Seguridad y Salud en el Trabajo realizado","Documento aprobado y divulgado",1,"Número","Documento publicado ","Página Web",1,null,null,null,null,null,"Gerencia del Talento Humano ","2020-01-02","2020-02-29"]
[null,"Gestión del Talento Humano","Permanencia del Talento Humano",5,"Desarrollar las actividades del Sistema de Gestión de la Seguridad y Salud en el Trabajo SG-SST, verificando los avances y cumplimiento de las metas establecidas.",null,"Sistema de Gestión de Seguridad y Salud en el Trabajo","Actividades del Sistema de Gestión de la Seguridad y Salud en el Trabajo SG-SST desarrolladas ","Cantidad actividades del Sistema de Gestión de Seguridad y Salud en el Trabajo SG-SST realizadas en el período/(n)*Cantidad de actividades el Sistema de Gestión de Seguridad y Salud en el Trabajo SG-SST programadas en el período",1,"Porcentaje","Formatos de inscripción\nFormatos de asistencia","SharePoint",null,{"$f":"1/5","v":0.2},{"$f":"1/5","v":0.2},0.2,0.2,0.2,"Gerencia del Talento Humano ","2020-03-02","2020-12-31"]
[null,"Gestión del Talento Humano","Permanencia del Talento Humano",6,"Elaborar el Programa de Bienestar Social ",null,"Programa de Bienestar Social","Documento Programa de Bienestar Social realizado","Documento aprobado y divulgado",1,"Número","Documento publicado ","Página Web",null,null,1,null,null,null,"Gerencia del Talento Humano ","2020-05-01","2020-06-30"]
[null,"Gestión del Talento Humano","Permanencia del Talento Humano",7,"Desarrollar el Programa de Bienestar Social, verificando los avances y cumplimiento de las metas establecidas.",null,"Programa de Bienestar Social","Actividades del Programa de Bienestar Social desarrolladas ","Cantidad de actividades del Programa de Bienestar Social realizadas en el período/(n)*Cantidad actividades del Programa de Bienestar Social programadas en el período",1,"Porcentaje","Formatos de inscripción\nFormatos de asistencia","SharePoint",null,{"$f":"1/5","v":0.2},{"$f":"1/5","v":0.2},0.2,0.2,0.2,"Gerencia del Talento Humano ","2020-03-02","2020-12-31"]
[null,"Gestión del Talento Humano","Permanencia del Talento Humano",8,"Elaborar el Plan Institucional de Formación y Capacitación",null,"Plan Institucional de Formación y Capacitación","Documento el Plan Institucional de Formación y Capacitación realizado","Documento aprobado y divulgado",1,"Número","Documento publicado ","Página Web",null,null,1,null,null,null,"Gerencia del Talento Humano ","2020-05-01","2020-06-30"]
[null,"Gestión del Talento Humano","Permanencia del Talento Humano",9,"Desarrollar las actividades del Plan Institucional de Formación y Capacitación, verificando los avances y cumplimiento de las metas establecidas.",null,"Plan Institucional de Formación y Capacitación","Actividades del Plan Institucional de Formación y Capacitación Realizadas\n","Cantidad de actividades del Plan Institucional de Formación y Capacitación realizadas en el período/(n)*Cantidad actividades del Plan Institucional de Formación y Capacitación  programadas en el período",1,"Porcentaje","Formatos de inscripción\nFormatos de asistencia","SharePoint",null,{"$f":"1/5","v":0.2},0.2,0.2,0.2,0.2,"Gerencia del Talento Humano ","2020-03-02","2020-12-31"]
[null,"Gestión del Talento Humano","Permanencia del Talento Humano",10,"Elaborar el Plan de Estímulos",null,"Plan de Estímulos - Plan Anual de Incentivos","Documento Plan de Estímulos realizado","Documento aprobado y divulgado",1,"Número","Acto administrativo publicado ","Página Web",null,null,null,1,null,null,"Gerencia del Talento Humano ","2020-07-01","2020-08-31"]
[null,"Gestión del Talento Humano","Permanencia del Talento Humano",11,"Desarrollar las actividades del Plan de Estímulos, verificando los avances y cumplimiento de las metas establecidas.",null,"Plan de Estímulos - Plan Anual de Incentivos","Actividades del Plan de estímulos desarrolladas ","Cantidad de actividades del Plan de estímulos realizadas en el período/(n)*Cantidad actividades del Plan Estímulos  programadas en el período",1,"Porcentaje","Por definir.\nCuando se consolide el Plan de estímulos","Por definir",null,null,null,null,0.5,0.5,"Coordinador Desarrollo Integral/ servidores RNEC","2020-09-01","2020-12-31"]
[null,"Gestión del Talento Humano","Permanencia del Talento Humano",12,"Realizar la digitalización y cargue en el sistema de las Historias Laborales de los Servidores de la Planta de Personal.",null,"N/A","Hoja de Control digitalizada","Cantidad de hojas de control generadas",106,"Número","Certificación expedida por el Coordinado del Grupo de Registro y Control con la cantidad de evaluaciones realizadas","SharePoint",17,0,0,15,29,45,"Nivel Central:\nCoordinadora de Registro y Control \n\nNivel Desconcentrado:\nDelegados Departamentales y Registradores Distritales","2020-01-01","2020-12-31"]
[null,"Gestión del Talento Humano","Permanencia del Talento Humano",13,"Diligenciar el formato único de inventario documental de las Historias Laborales de Servidores Supernumerarios, vinculados en el 2019",null,"N/A","Formato Único de Inventario Documental Diligenciado","Cantidad de Formatos Único de Inventario Documental - FUID diligenciados",34,"Número","Certificación expedida por el Coordinado del Grupo de Registro y Control con la cantidad de evaluaciones realizadas","SharePoint",null,null,null,19,7,8,"Nivel Central:\nCoordinadora de Registro y Control \n\nNivel Desconcentrado:\nDelegados Departamentales y Registradores Distritales","2020-07-01","2020-10-31"]
[null,"Gestión del Talento Humano","Permanencia del Talento Humano",14,"Realizar la transferencia al archivo central del inventario documental.",null,"N/A","Transferencias realizadas al archivo central del inventario documental","Cantidad de transferencias realizadas al archivo central del inventario documental",34,"Número","Certificación expedida por el Coordinado del Grupo de Registro y Control con la cantidad de evaluaciones realizadas","SharePoint",null,null,null,33,1,null,"Nivel Central:\nCoordinadora de Registro y Control \n\nNivel Desconcentrado:\nDelegados Departamentales y Registradores Distritales","2020-07-01","2020-10-31"]
[null,"Gestión del Talento Humano","Permanencia del Talento Humano",15,"Realizar las actividades de práctica ética inherentes al Plan de Acción de Gestión Ética formulado desde la Sede Central.",null,"Plan Anticorrupción y de Atención al Ciudadano","Actividades de formación realizadas","Actividades de Práctica Ética ejecutadas / (n)*Actividades de Práctica Ética programadas.",1,"Porcentaje","Formatos de inscripción\nFormatos de asistencia","SharePoint",null,null,null,{"$f":"1/3","v":0.33333333333333331},{"$f":"1/3","v":0.33333333333333331},{"$f":"1/3","v":0.33333333333333331},"Gerencia del Talento Humano\nEquipo de Apoyo a la Gestión Ética\nPartícipes: Delegados Departamentales\nRegistraduría del Distrito Capital","2020-07-01","2020-12-31"]
[null,"Gestión Tecnológica de la Información y las Comunicaciones","Gestión de Infraestructura Tecnológica",1,"Monitorear la infraestructura del Centro de Cómputo y gestionar las cuentas de usuario y los servicios de acceso.",null,"N/A","Reporte de monitoreo.","Cantidad de reportes de monitoreos presentados. ",12,"Número","Reporte No. 01 que contiene el monitoreo de la infraestructura tecnológica, el consolidado de cuentas de usuario y los servicios de acceso","Gerencia informática",1,2,2,2,2,3,"Gerencia Informática","2020-01-02","2020-12-31"]
[null,"Gestión Tecnológica de la Información y las Comunicaciones","Gestión de Infraestructura Tecnológica",2,"Programar y aprobar la realización de los mantenimientos a los dispositivos tecnológicos.",null,"N/A","Reporte de operación","Cantidad de reportes de operación presentados.",12,"Número","Reporte No.02 de la programación de los mantenimientos ","Gerencia informática",1,2,2,2,2,3,"Gerencia Informática","2020-01-02","2020-12-31"]
[null,"Gestión Tecnológica de la Información y las Comunicaciones","Gestión de Infraestructura Tecnológica",3,"Realizar copias de respaldo periódicas de conformidad con los requerimientos, así como su almacenamiento y custodia",null,"N/A","Reporte de ejecución.","Cantidad de reportes de operación presentados.",12,"Número","Reporte No. 03 de las copias de respaldo","Gerencia informática",1,2,2,2,2,3,"Gerencia Informática","2020-01-02","2020-12-31"]
[null,"Gestión Tecnológica de la Información y las Comunicaciones","Gestión de Infraestructura Tecnológica",5,"Monitorear y realizar el seguimiento de la operación del canal principal y de respaldo de la sede CAN.",null,"N/A","Reporte de ejecución.","Cantidad de reportes de operación presentados.",12,"Número","Reporte No. 04 canales principal y de respaldo","Gerencia informática",1,2,2,2,2,3,"Gerencia Informática","2020-01-02","2020-12-31"]
[null,"Gestión Tecnológica de la Información y las Comunicaciones","Gestión de Infraestructura Tecnológica",6,"Crear y gestionar los servidores virtuales en el espacio de hiperconvergencia.",null,"N/A","Servidores creados y gestionados.","Cantidad de servidores creados y/o gestionados/(n)*Cantidad de solicitudes de creación y/o gestión de servidores",1,"Porcentaje","Reporte No. 05 servidores virtuales ","Gerencia informática",{"$f":"1/6","v":0.16666666666666666},0.16666666666666666,0.16666666666666666,0.16666666666666666,0.16666666666666666,0.16666666666666666,"Gerencia Informática","2020-01-02","2020-12-31"]
[null,"Gestión Tecnológica de la Información y las Comunicaciones","Gestión de Infraestructura Tecnológica",7,"Supervisar y  mantener la disponibilidad de los servicios de infraestructura tecnológica que brinda la entidad para su permanente operación.",null,"N/A","Informe de supervisión del contrato","Cantidad de informes de supervisión del contrato",12,"Número","Informe de supervisión GCFT08 FRR","Secop 1 Bimestre 2\nSecop 2 Bimestre 3 a 6",1,2,2,2,2,3,"Gerencia Informática","2020-01-02","2020-12-31"]
[null,"Gestión Tecnológica de la Información y las Comunicaciones","Gestión de Infraestructura Tecnológica",8,"Registrar en la bitácora GIFT02 el  acceso las áreas restringidas de el Centro de Computo para su control.",null,"N/A","Bitácora GIFT02 actualizada","Bitácora GIFT02 actualizada",6,"Número","Bitácora GIFT02 actualizada","Gerencia informática",1,1,1,1,1,1,"Gerencia Informática","2020-01-02","2020-12-31"]
[null,"Gestión Tecnológica de la Información y las Comunicaciones","Gestión de Infraestructura Tecnológica",9,"Diseñar y elaborar el Plan Estratégico de Tecnologías de la Información y las Comunicaciones PETI para la Entidad.",null,"N/A","Documento PETI","Reportes de avances generados",5,"Número","Reporte No.06 de avances generados","Gerencia informática",null,1,1,1,1,1,"Gerencia Informática","2020-02-01","2020-12-31"]
[null,"Gestión Tecnológica de la Información y las Comunicaciones","Gestión de Infraestructura Tecnológica",10,"Actualizar, consolidar y solicitar la publicación el Registro de Activos de la información, previa revisión del índice de información clasificada y reservada por Oficina jurídica y del esquema de publicación de la información por Oficina de prensa . ",null,"N/A","Registro de activos de información actualizado ","Registro de activos actualizado",1,"Número","Registro de activos actualizado","Página Web",null,null,null,1,null,null,"Gerencia de Informática.","2020-07-01","2020-08-31"]
[null,"Gestión Tecnológica de la Información y las Comunicaciones","Gestión de Software",1,"Atender los requerimientos de desarrollo de software y analizar la viabilidad para desarrollo in house o adquisición de los mismos.",null,"N/A","Porcentaje de disponibilidad de requerimientos","Requerimientos atendidos/(n)*Requerimientos esperados",1,"Porcentaje","Reporte No. 07 de requerimientos y análisis de viabilidad ","Gerencia informática",0,0.2,0.2,0.2,0.2,0.2,"Coordinador Grupo Desarrollo y Programación.","2020-01-02","2020-12-31"]
[null,"Gestión Tecnológica de la Información y las Comunicaciones","Gestión de Software",2,"Mantener operativo y actualizado los aplicativos que hacen parte de la operación y los temas misionales.",null,"N/A","Informes generados ","Informes  de operación Presentados.",12,"Número","Reporte No. 08  de operación de los aplicativos","Gerencia informática",2,2,2,2,2,2,"Coordinador Grupo Desarrollo y Programación.","2020-01-02","2020-12-31"]
[null,"Gestión Tecnológica de la Información y las Comunicaciones","Gestión de Software",3,"Supervisar el contrato para la ejecución de los mantenimientos y actualizaciones de software adquirido a terceros. ",null,"N/A","Informes de supervisión","Cantidad de informes de supervisión",2,"Número","Informe de supervisión GCFT08 RNEC","Secop 2",null,null,null,null,1,1,"Coordinador Grupo Desarrollo y Programación.","2020-09-01","2020-12-31"]
[null,"Gestión Tecnológica de la Información y las Comunicaciones","Gestión de Software",5,"Realizar las actividades del cronograma de componentes técnicos (GSFT04) para las elecciones de Consejos Locales y Municipales de Juventud ",null,"N/A","Actividades realizadas del cronograma de componentes técnicos (GSFT04) para las elecciones de Consejos Locales y Municipales de Juventud ","Cantidad de actividades realizadas del cronograma en el periodo/(n)*Cantidad de actividades del cronograma programadas en el período",1,"Porcentaje","Pendiente de consolidación del cronograma","Estudio previo formato GCFL03 o GCFL04  o GCFL05 ",{"$f":"1/6","v":0.16666666666666666},{"$f":"1/6","v":0.16666666666666666},0.16666666666666666,0.16666666666666666,0.16666666666666666,0.16666666666666666,"Gerencia","2020-01-02","2020-12-31"]
[null,"Gestión Tecnológica de la Información y las Comunicaciones","Gestión de Software",6,"Realizar las actividades de los cronogramas de componentes técnicos (GSFT04) para las elecciones nuevas o complementarias convocadas.",null,"N/A","Actividades realizadas de los cronogramas de componentes técnicos (GSFT04) para las elecciones nuevas o complementarias convocadas.","Cantidad de actividades realizadas del cronograma en el periodo/(n)*Cantidad de actividades del cronograma programadas en el período",1,"Porcentaje","Pendiente de consolidación de cada cronograma","Plan de trabajo de las elecciones complementarias",{"$f":"1/6","v":0.16666666666666666},0.16666666666666666,0.16666666666666666,0.16666666666666666,0.16666666666666666,0.16666666666666666,"Gerencia","2020-01-02","2020-12-31"]
[null,"Gestión Tecnológica de la Información y las Comunicaciones","Soporte Técnico",1," Atender los requerimientos e incidentes asociados a los servicios de software.",null,"N/A","Requerimientos atendidos","Requerimientos atendidos en el período/(n)*Requerimientos solicitados en el periodo",1,"Porcentaje","Reporte No. 10  Incidentes de los servicios de software","Gerencia informática",{"$f":"1/6","v":0.16666666666666666},0.16666666666666666,0.16666666666666666,0.16666666666666666,0.16666666666666666,0.16666666666666666,"Coordinador Grupo Desarrollo y Programación.","2020-01-02","2020-12-31"]
[null,"Gestión Tecnológica de la Información y las Comunicaciones","Soporte Técnico",2,"Atender los requerimientos presentados por usuarios para la prestación del servicio ANI-PMT",null,"N/A","Requerimientos atendidos","Requerimientos atendidos en el período/(n)*Requerimientos solicitados en el periodo",1,"Porcentaje","Reporte No.11 requerimientos ANI","Gerencia informática",0.16666666666666666,0.16666666666666666,0.16666666666666666,0.16666666666666666,0.16666666666666666,0.16666666666666666,"Coordinador Grupo Soporte Técnico para el Registro Civil y la Identificación","2020-01-02","2020-12-31"]
[null,"Gestión Tecnológica de la Información y las Comunicaciones","Soporte Técnico",3,"Atender los requerimientos ofimáticos y de hardware  recibidos a través de línea de atención y correo electrónico e la RNEC.",null,"N/A","Requerimientos atendidos","Requerimientos atendidos en el período/(n)*Requerimientos solicitados en el periodo",1,"Porcentaje","Reporte No. 12 requerimientos ofimáticos y mesa de ayuda","Gerencia informática",0.16666666666666666,0.16666666666666666,0.16666666666666666,0.16666666666666666,0.16666666666666666,0.16666666666666666,"Coordinador Grupo Soporte Técnico y Telecomunicaciones.","2020-01-02","2020-12-31"]
[null,"Gestión Tecnológica de la Información y las Comunicaciones","Proyecto: Fortalecimiento de la Red Corporativa de Telecomunicaciones - PMT, Electoral y Administrativa Nacional",1,"Desarrollar el proyecto de Fortalecimiento de la Red Corporativa de Telecomunicaciones - PMT, Electoral y Administrativa Nacional",null,"N/A","Subactividades realizadas del proyecto","Cantidad de subactividades realizadas en un período/(n)*Cantidad de subactividades programadas en el período",1,"Porcentaje","Informe del SPI","SPI",{"$f":"1/6","v":0.16666666666666666},0.16666666666666666,0.16666666666666666,0.16666666666666666,0.16666666666666666,0.16666666666666666,"Coordinador Grupo Administración e Infraestructura Tecnológica.","2020-01-02","2020-12-31"]
[null,"Gestión Tecnológica de la Información y las Comunicaciones","Proyecto: Fortalecimiento del servicio del Sistema del Archivo Nacional de Identificación ANI y Sistemas conexos Nacional",1,"Desarrollar proyectos Fortalecimiento del servicio del Sistema del Archivo Nacional de Identificación ANI y Sistemas conexos Nacional",null,"N/A","Subactividades realizadas del proyecto","Cantidad de subactividades realizadas en un período/(n)*Cantidad de subactividades programadas en el período",1,"Porcentaje","Informe del SPI","SPI",{"$f":"1/6","v":0.16666666666666666},0.16666666666666666,0.16666666666666666,0.16666666666666666,0.16666666666666666,0.16666666666666666,"Coordinador Grupo Soporte Técnico para el Registro Civil y la Identificación","2020-01-02","2020-12-31"]
[null,"Gestión Tecnológica de la Información y las Comunicaciones","Proyecto: Mejoramiento de la Red Eléctrica y de Comunicaciones a Nivel Nacional",1,"Desarrollar el proyecto Mejoramiento de la Red Eléctrica y de Comunicaciones a Nivel Nacional",null,"N/A","Subactividades realizadas del proyecto","Cantidad de subactividades realizadas en un período/(n)*Cantidad de subactividades programadas en el período",1,"Porcentaje","Informe del SPI","SPI",{"$f":"1/6","v":0.16666666666666666},0.16666666666666666,0.16666666666666666,0.16666666666666666,0.16666666666666666,0.16666666666666666,"Coordinador Grupo Soporte Técnico y Telecomunicaciones.","2020-01-02","2020-12-31"]
[null,"Gestión Tecnológica de la Información y las Comunicaciones","Proyecto: Mejoramiento y renovación de la infraestructura tecnológica para la Registraduría Nacional del Estado Civil Nacional",1,"Desarrollar el proyecto Mejoramiento y renovación de la infraestructura tecnológica para la Registraduría Nacional del Estado Civil Nacional",null,"N/A","Subactividades realizadas del proyecto","Cantidad de subactividades realizadas en un período/(n)*Cantidad de subactividades programadas en el período",1,"Porcentaje","Informe del SPI","SPI",null,null,null,{"$f":"1/3","v":0.33333333333333331},{"$f":"1/3","v":0.33333333333333331},0.33333333333333331,"Coordinador Grupo Administración e Infraestructura Tecnológica.","2020-07-01","2020-12-31"]
[null,"Gestión Tecnológica de la Información y las Comunicaciones","Proyecto: Servicio de respaldo de los sistemas de información de procesos de identificación, electorales y administrativos a nivel Nacional",1,"Desarrollar el proyecto: Servicio de respaldo de los sistemas de información de procesos de identificación, electorales y administrativos a nivel Nacional",null,"N/A","Subactividades realizadas del proyecto","Cantidad de subactividades realizadas en un período/(n)*Cantidad de subactividades programadas en el período",1,"Porcentaje","Informe del SPI","SPI",{"$f":"1/6","v":0.16666666666666666},0.16666666666666666,0.16666666666666666,0.16666666666666666,0.16666666666666666,0.16666666666666666,"Coordinador Grupo Administración e Infraestructura Tecnológica.","2020-01-02","2020-12-31"]
[null,"Gestión Tecnológica de la Información y las Comunicaciones","Gestión de software",3,"Actualizar el formulario de atención al ciudadano de la página web.",null,"Plan Anticorrupción y de Atención al Ciudadano","Modificación del Formulario ","Cantidad de ajustes realizados / (n)* Cantidad de ajustes programados",1,"Porcentaje","Publicación de la modificación en la Web","Página Web",null,null,null,null,null,1,"Gerencia Informática ","2020-01-01","29/02/2019"]
[null,"Gestión Jurídica","Representación Jurídica",1,"Dar respuesta oportuna a las acciones de tutela, garantizando la defensa de los intereses de la Entidad.",null,"N/A","Tutelas respondidas","Cantidad de tutelas tramitados / ((n)*Cantidad de tutelas recibidos en el periodo)",1,"Porcentaje","Muestreo  de Expedientes de  Tutela","Coordinación de Tutelas",{"$f":"1/6","v":0.16666666666666666},0.16666666666666666,0.16666666666666666,0.16666666666666666,0.16666666666666666,0.16666666666666666,"Oficina Jurídica","2020-01-01","2020-12-31"]
[null,"Gestión Jurídica","Representación Jurídica",2,"Proyectar las impugnaciones contra los fallos adversos a la entidad cuando haya lugar.",null,"N/A","Impugnaciones realizadas"," Cantidad de impugnaciones tramitados / ((n)*Cantidad de impugnaciones recibidos en el periodo)",1,"Porcentaje","Muestreo de Impugnaciones","Coordinación de Tutelas",0.16666666666666666,0.16666666666666666,0.16666666666666666,0.16666666666666666,0.16666666666666666,0.16666666666666666,"Oficina Jurídica","2020-01-01","2020-12-31"]
[null,"Gestión Jurídica","Representación Jurídica",3,"Realizar seguimiento a cumplimiento de fallos de tutela, evitando que se promuevan incidentes de desacato, por omisión de la Entidad.",null,"N/A","Fallos seguidos","Cantidad de fallos tramitados / ((n)*Cantidad de fallos recibidos en el periodo)",1,"Porcentaje","Muestreo de Fallos","Coordinación de Tutelas",0.16666666666666666,0.16666666666666666,0.16666666666666666,0.16666666666666666,0.16666666666666666,0.16666666666666666,"Oficina Jurídica","2020-01-01","2020-12-31"]
[null,"Gestión Jurídica","Representación Jurídica",4,"Ejercer apropiadamente la defensa de la Entidad en los procesos Judiciales, administrativos, conciliaciones extrajudiciales, casos contra la UGPP y demás que se adelanten contra ella.",null,"N/A","Actuaciones realizadas","Cantidad de actuaciones realizadas en periodo/((n)*(Cantidad de actuaciones programadas en el periodo))",1,"Porcentaje","Muestreo de Actuaciones","Coordinación de Defensa Judicial",0.16666666666666666,0.16666666666666666,0.16666666666666666,0.16666666666666666,0.16666666666666666,0.16666666666666666,"Oficina Jurídica","2020-01-01","2020-12-31"]
[null,"Gestión Jurídica","Representación Jurídica",5,"Dar respuesta clara, oportuna y de fondo a la diferentes consultas radicadas ante la oficina jurídica.",null,"N/A","Consultas respondidas","Cantidad de consultas tramitadas /((n)*Cantidad de consultas recibidas en el período)",1,"Porcentaje","Muestreo de consultas emitidas","Oficina Jurídica",0.16666666666666666,0.16666666666666666,0.16666666666666666,0.16666666666666666,0.16666666666666666,0.16666666666666666,"Oficina Jurídica","2020-01-01","2020-12-31"]
[null,"Gestión Jurídica","Representación Jurídica",6,"Realizar seguimiento a todos los procesos judiciales cuya competencia este asignada a las delegaciones departamentales, de conformidad con el reporte de procesos judiciales que realizan periódicamente dichas delegaciones.",null,"N/A","Cuadro de Control RJFT03 al actualizado","Cuadro de control RFJT03 reportado ",12,"Número","Cuadro Consolidado de Control RFJT03","Coordinación de Defensa Judicial",2,2,2,2,2,2,"Oficina Jurídica","2020-01-01","2020-12-31"]
[null,"Gestión Jurídica","Representación Jurídica",7,"Sustanciar algunas resoluciones de competencia del Señor Registrador Nacional, como: segundas instancias disciplinarios, segundas instancias imposición sanciones a jurados de votación del Distrito, trámites Ley moralidad administrativa etc. ",null,"N/A","Actos Administrativos ","Cantidad de actos tramitados / ((n)*Cantidad de Actos Administrativos recibidos en el periodo)",1,"Porcentaje","Muestra de los Actos Administrativos emitidos","Oficina Jurídica",{"$f":"1/6","v":0.16666666666666666},0.16666666666666666,0.16666666666666666,0.16666666666666666,0.16666666666666666,0.16666666666666666,"Oficina Jurídica","2020-01-01","2020-12-31"]
[null,"Gestión Jurídica","Representación Jurídica",8,"Seguimiento de cumplimiento sentencias condenatorias.",null,"N/A","Seguimiento a sentencias condenatorias","Cantidad de seguimientos realizados en el período a sentencias condenatorias/((n)*Cantidad de seguimientos programados a realizar en el periodo)",1,"Porcentaje","Certificación ","SharePoint",0.16666666666666666,0.16666666666666666,0.16666666666666666,0.16666666666666666,0.16666666666666666,0.16666666666666666,"Oficina Jurídica","2020-01-01","2020-12-31"]
[null,"Gestión Jurídica","Representación Jurídica",9,"Verificar lo atinente a las provisiones contables con ocasión de la adopción del método que para el efecto maneja la Agencia Nacional de Defensa Jurídica del Estado.",null,"N/A","Cuadro de provisiones contables actualizado","Cuadro de provisiones contables actualizado en el periodo ",12,"Número","Cuadro de provisiones contables","SharePoint",2,2,2,2,2,2,"Oficina Jurídica","2020-01-01","2020-12-31"]
[null,"Gestión Jurídica","Representación Jurídica",10,"Realizar fichas técnicas (RJFT01 de RNEC y FRR)  para celebrar o no acuerdos conciliatorios  y lo pertinente en la procedencia del medio de control de repetición.",null,"N/A"," Fichas técnicas (RJFT01 de RNEC y FRR) de conciliación o no conciliación realizadas","Cantidad de Fichas técnicas realizadas / ((n)*Cantidad de solicitudes de fichas técnicas en el período)",1,"Porcentaje","Muestreo de Fichas Técnicas","Secretaria técnica del comité de conciliación y defensa judicial",{"$f":"1/6","v":0.16666666666666666},0.16666666666666666,0.16666666666666666,0.16666666666666666,0.16666666666666666,0.16666666666666666,"Oficina Jurídica","2020-01-01","2020-12-31"]
[null,"Gestión Jurídica","Representación Jurídica",11,"Elaborar constancias y actas del Comité para la atención de diligencias prejudiciales y judiciales a Nivel Nacional y seguimientos.",null,"N/A","Actas y Constancias","Cantidad de actas y constancias tramitados / ((n)*Cantidad de solicitudes de actas y constancias en  el período)",1,"Porcentaje","Muestreo de Actas y Constancias","Secretaria técnica del comité de conciliación y defensa judicial",0.16666666666666666,0.16666666666666666,0.16666666666666666,0.16666666666666666,0.16666666666666666,0.16666666666666666,"Oficina Jurídica","2020-01-01","2020-12-31"]
[null,"Gestión Jurídica","Representación Jurídica",12,"Recopilar y clasificar información para la elaboración de informes a la PGN.",null,"N/A","Informes enviados a la PGN ","Cantidad de informes tramitados / ((n)*Cantidad de solicitudes totales en el periodo)",1,"Porcentaje","Informe  tramitado","SharePoint",0.16666666666666666,0.16666666666666666,0.16666666666666666,0.16666666666666666,0.16666666666666666,0.16666666666666666,"Oficina Jurídica","2020-01-01","2020-12-31"]
[null,"Gestión Jurídica","Representación Jurídica",13,"Apoyar la formulación de las Políticas de Defensa judicial",null,"N/A","Políticas formuladas","Cantidad de apoyos realizados / ((n)*Cantidad de apoyos programados en el periodo)",1,"Porcentaje","Actas de reunión o listados de asistencia","SharePoint",0.16666666666666666,0.16666666666666666,0.16666666666666666,0.16666666666666666,0.16666666666666666,0.16666666666666666,"Oficina Jurídica","2020-01-01","2020-12-31"]
[null,"Gestión Jurídica","Representación Jurídica",14,"Realizar seguimiento y control de los casos de conciliación a Nivel Nacional",null,"N/A","Seguimientos realizados a casos de conciliación","Cantidad de seguimientos realizados a casos de conciliación / ((n)*Cantidad de seguimientos programados a casos de conciliación en el periodo)",1,"Porcentaje","Cuadro de Control a seguimiento de conciliaciones","SharePoint",0.16666666666666666,0.16666666666666666,0.16666666666666666,0.16666666666666666,0.16666666666666666,0.16666666666666666,"Oficina Jurídica","2020-01-01","2020-12-31"]
[null,"Gestión Jurídica","Representación Jurídica",15,"Dar directrices en materia de Conciliación ",null,"N/A","Documentos de directrices","Cantidad de documentos de  directrices/(n)* cantidad de directrices solicitadas en el período",1,"Porcentaje","Directrices emitidas","SharePoint",0.16666666666666666,0.16666666666666666,0.16666666666666666,0.16666666666666666,0.16666666666666666,0.16666666666666666,"Oficina Jurídica","2020-01-01","2020-12-31"]
[null,"Gestión Jurídica","Representación Jurídica",16,"Seguimiento a las Políticas de Prevención del Daño Antijurídico del año 2020",null,"N/A","Seguimiento realizado a las  Políticas de Prevención del Daño Antijurídico del año 2020","Seguimiento realizado",2,"Número","Informe de Seguimiento","SharePoint",null,null,null,null,1,1,"Oficina Jurídica","2020-09-01","2020-12-31"]
[null,"Gestión Jurídica","Representación Jurídica",17,"Realizar vigilancia, seguimiento y control del Procedimiento Administrativo Sancionatorio a través del Módulo Registradores",null,"N/A","Seguimientos realizados a los procedimientos administrativos sancionatorios a través del módulo registradores","Cantidad de seguimiento realizados en el periodo / (n)* cantidad de seguimientos a realizar en el periodo",1,"Porcentaje","Certificación expedida por coordinación de cobro coactivo","SharePoint",0.16666666666666666,0.16666666666666666,0.16666666666666666,0.16666666666666666,0.16666666666666666,0.16666666666666666,"Oficina Jurídica","2020-01-01","2020-12-31"]
[null,"Gestión Jurídica","Representación Jurídica",18,"Realizar vigilancia, seguimiento y control a través del  Aplicativo de Cobros Coactivos (procesos).",null,"N/A","Seguimiento realizado a cobros coactivos","Cantidad de seguimiento realizados en el periodo / (n)* cantidad de seguimientos a realizar en el periodo",1,"Número","Certificación expedida por coordinación de cobro coactivo","SharePoint",0.16666666666666666,0.16666666666666666,0.16666666666666666,0.16666666666666666,0.16666666666666666,0.16666666666666666,"Oficina Jurídica","2020-01-01","2020-12-31"]
[null,"Gestión Jurídica","Representación Jurídica",19,"Impulsar los procesos de Cobros Coactivos, generando un efectivo recaudo.",null,"N/A","Oficios de actuaciones procesales","Cantidad de procesos impulsados / ((n)*Cantidad de procesos programados en el periodos)",1,"Porcentaje","Muestreo de un proceso de cobro coactivo","Coordinación de Cobro Coactivo",0.16666666666666666,0.16666666666666666,0.16666666666666666,0.16666666666666666,0.16666666666666666,0.16666666666666666,"Oficina Jurídica","2020-01-01","2020-12-31"]
[null,"Gestión Jurídica","Representación Jurídica",20,"Realizar supervisión del Contrato Interadministrativo Marco de Compraventa de Cartera CM-041-2017 y de sus actas de incorporación.",null,"N/A","Actividades supervisadas","(Cantidad de actividades supervisadas en el periodo) / ((n)*Cantidad de actividades programadas para supervisar en el periodo)",1,"Porcentaje","Certificación expedida por coordinación de cobro coactivo","SharePoint",0.16666666666666666,0.16666666666666666,0.16666666666666666,0.16666666666666666,0.16666666666666666,0.16666666666666666,"Oficina Jurídica","2020-01-01","2020-12-31"]
[null,"Gestión Jurídica","Representación Jurídica",21,"Reporte de novedades de los Procesos de Cobro Coactivo a la Dirección Financiera de manera mensual.",null,"N/A","Novedades reportadas de procesos de cobros coactivos","Cantidad de reportes remitidos",12,"Número","Reportes emitidos","SharePoint",2,2,2,2,2,2,"Oficina Jurídica","2020-01-01","2020-12-31"]
[null,"Gestión Jurídica","Representación Jurídica",22,"Conciliar los ingresos reportados por las diferentes Entidades Bancarias de los Procesos de Cobro Coactivo de manera mensual.",null,"N/A","Conciliaciones realizadas en proceso de cobros coactivos","Cantidad de Conciliaciones realizadas",12,"Número","Conciliaciones realizadas","SharePoint",2,2,2,2,2,2,"Oficina Jurídica","2020-01-01","2020-12-31"]
[null,"Gestión Jurídica","Gestión Contractual",1,"Atender en el marco de sus competencias  las solicitudes (Minutas, modificaciones y liquidaciones suscritas)relativas a la contratación administrativa de la RNEC y el FRR.",null,"N/A","Minutas, modificaciones y liquidaciones suscritas.","(Cantidad de solicitudes atendidas en el periodo) / ((n)*Cantidad de solicitudes recibidas en el periodo)",1,"Porcentaje","Certificación expedida por coordinación de contratos","Secop 2",0.16666666666666666,0.16666666666666666,0.16666666666666666,0.16666666666666666,0.16666666666666666,0.16666666666666666,"Oficina Jurídica","2020-01-01","2020-12-31"]
[null,"Gestión Jurídica","Gestión Contractual",2,"Atender las posibles solicitudes relacionadas con imposiciones de multas, sanciones y declaratorias de incumplimiento que se remitan y sean competencia de la oficina jurídica. ",null,"N/A","Multas, sanciones o declaratorias de incumplimiento","(Cantidad de solicitudes atendidas en el periodo) / ((n)*Cantidad de solicitudes recibidas en el periodo)",1,"Porcentaje","Acto administrativo si se presenta","SharePoint",0.16666666666666666,0.16666666666666666,0.16666666666666666,0.16666666666666666,0.16666666666666666,0.16666666666666666,"Oficina Jurídica","2020-01-01","2020-12-31"]
[null,"Gestión Jurídica","Representación Jurídica",10,"Actualizar, consolidar y publicar el índice de información clasificada y reservada ",null,"Plan Anticorrupción y de Atención al Ciudadano","Índice de información clasificada y reservada actualizada "," Índice de información clasificada y reservada publicado  ",1,"Número"," Índice de información clasificada y reservada publicado  ","Página Web",null,null,1,null,null,null,"Oficina Jurídica\n","2020-03-02","2020-12-31"]
[null,"Gestión Administrativa y Financiera","Gestión de los Recursos Financieros",1,"Registrar en el SIIF Nación y publicar en la página WEB de la Entidad, la ejecución presupuestal de la RNEC y el CNE vigencia 2020",null,"N/A","Ejecución presupuestal  publicada","Cantidad de informes publicados",6,"Número","Ejecución Presupuestal publicada en la pagina web","Página Web",1,1,1,1,1,1,"Gerencia Administrativa y Financiera","2020-01-02","2020-12-31"]
[null,"Gestión Administrativa y Financiera","Gestión de los Recursos Financieros",2,"Elaborar, presentar y transmitir a la Contaduría General de la Nación, los Estados Financieros de la RNEC correspondientes al cuarto trimestre de la vigencia 2019",null,"N/A","Estados Financieros transmitidos","Cantidad de Estados Financieros transmitidos",1,"Número","Estados Financieros publicados en ","Página Web",1,null,null,null,null,null,"Gerencia Administrativa y Financiera","2020-01-02","2020-02-29"]
[null,"Gestión Administrativa y Financiera","Gestión de los Recursos Financieros",3,"Elaborar, presentar y transmitir a la Contaduría General de la Nación, los Estados Financieros de la RNEC correspondientes a 3 trimestres de la vigencia 2020",null,"N/A","Estados Financieros transmitidos","Cantidad de Estados Financieros transmitidos",3,"Número","Estados Financieros publicados en ","Página Web",null,1,null,1,1,null,"Gerencia Administrativa y Financiera","2020-03-02","2020-10-31"]
[null,"Gestión Administrativa y Financiera","Gestión de los Recursos Financieros",4,"Registrar en el SIIF Nación y publicar en la página WEB de la Entidad, la ejecución presupuestal del FRR vigencia 2020",null,"N/A","Ejecución presupuestal  publicada","Cantidad de informes publicados",6,"Número","Estados Financieros publicados en ","Página Web",1,1,1,1,1,1,"Gerencia Administrativa y Financiera","2020-01-02","2020-12-31"]
[null,"Gestión Administrativa y Financiera","Gestión de los Recursos Financieros",5,"Elaborar, presentar y transmitir a la Contaduría General de la Nación, los Estados Financieros del FRR correspondientes al cuarto trimestre de la vigencia 2019",null,"N/A","Estados Financieros transmitidos","Cantidad de Estados Financieros transmitidos",1,"Número","Estados Financieros publicados en ","Página Web",1,null,null,null,null,null,"Gerencia Administrativa y Financiera","2020-01-02","2020-02-29"]
[null,"Gestión Administrativa y Financiera","Gestión de los Recursos Financieros",6,"Elaborar, presentar y transmitir a la Contaduría General de la Nación, los Estados Financieros del FRR correspondientes a 3 trimestres de la vigencia 2020",null,"N/A","Estados Financieros transmitidos","Cantidad de Estados Financieros transmitidos",3,"Número","Estados Financieros publicados en ","Página Web",null,1,null,1,1,null,"Gerencia Administrativa y Financiera","2020-03-02","2020-10-31"]
[null,"Gestión Administrativa y Financiera","Gestión de los Recursos Financieros",7,"Conciliar, clasificar y registrar en el SIIF Nación, la ejecución del presupuesto de ingresos del FRR correspondiente al sexto bimestre de la vigencia 2019",null,"N/A","Informe de ingresos recaudados","Cantidad de Informes de ingresos recaudados",1,"Número","Informe de Ingresos Recaudados","SharePoint",1,null,null,null,null,null,"Gerencia Administrativa y Financiera","2020-01-02","2020-02-29"]
[null,"Gestión Administrativa y Financiera","Gestión de los Recursos Financieros",8,"Conciliar, clasificar y registrar en el SIIF Nación, la ejecución del presupuesto de ingresos del FRR correspondiente a 5 bimestres de la vigencia 2020",null,"N/A","Informe de ingresos recaudados","Cantidad de Informes de ingresos recaudados",5,"Número","Informe de Ingresos Recaudados","SharePoint",null,1,1,1,1,1,"Gerencia Administrativa y Financiera","2020-03-02","2020-12-31"]
[null,"Gestión Administrativa y Financiera","Gestión Contractual",1,"Llevar a cabo los procesos para la adquisición de bienes y servicios de la Entidad a través de la Plataforma Secop II",null,"Plan Anual de Adquisiciones","Ejecución del Plan Anual de Adquisiciones (Atención de necesidades de adquisición)","(Cantidad de solicitudes tramitadas rezagadas +Cantidad de solicitudes tratadas en el periodo) /(n) Cantidad de solicitudes recibidas que cumplen con el PAA y sus modificaciones",1,"Porcentaje","Control de solicitudes PAA",null,0.16666666666666666,0.16666666666666666,0.16666666666666666,0.16666666666666666,0.16666666666666666,0.16666666666666666,"Gerencia Administrativa y Financiera","2020-01-02","2020-12-31"]
[null,"Gestión Administrativa y Financiera","Gestión de los Recursos Físicos",1,"Actualizar el inventario de bienes físicos de la Entidad de la vigencia 2019",null,"N/A","Inventario actualizado","Inventario actualizado",2,"Número","Base de datos de inventario",null,1,null,null,null,null,1,"Gerencia Administrativa y Financiera","2020-01-02","2020-12-31"]
[null,"Gestión Administrativa y Financiera","Gestión de los Recursos Físicos",2,"Establecer controles a través del contrato de outsourcing de impresión y fotocopiado con la finalidad de dar cumplimiento a la Política Nacional de \"Cero Papel\"",null,"N/A","Controles implementados (impresión y fotocopiado)","Controles implementados",3,"Número","Informe de Controles Implementados",null,1,null,1,1,null,null,"Gerencia Administrativa y Financiera","2020-01-02","2020-08-31"]
[null,"Gestión Administrativa y Financiera","Gestión Documental",1,"Renovar  y suscribir nuevos convenios interinstitucionales con bibliotecas nacionales",null,"N/A","Convenios interinstitucionales Biblioteca ","Cantidad de Convenios y/o Nuevos ",10,"Número","Convenios ",null,null,8,null,2,null,null,"Gerencia Administrativa y Financiera","2020-03-02","2020-08-31"]
[null,"Gestión Administrativa y Financiera","Gestión Documental",2,"Digitalizar  cartillas, folletos, separatas y demás material bibliográficos que garantice la conservación y preservación de la memoria institucional de la RNEC",null,"N/A","Digitalización Documentos ","Cantidad de documentos digitalizados",48,"Número","Documentos Digitalizados",null,8,8,8,8,8,8,"Gerencia Administrativa y Financiera","2020-01-01","2020-12-31"]
[null,"Gestión Administrativa y Financiera","Gestión Documental",3,"Diseño y divulgación mediante banner de nuevas adquisiciones  bibliográficas, físicas y digitales",null,"N/A","Divulgación Nuevas adquisiciones y servicios","Cantidad de Banner",12,"Número","Banner",null,2,2,2,2,2,2,"Gerencia Administrativa y Financiera","2020-01-02","2020-12-31"]
[null,"Gestión Administrativa y Financiera","Gestión Documental",4,"Incrementar el número de libros disponibles en el catálogo en línea",null,"N/A","Cargue de material bibliográfico en catálogo en línea","Cantidad de libros cargados en el catálogo en línea",360,"Número","Libros Cargados en el Catalogo",null,60,60,60,60,60,60,"Gerencia Administrativa y Financiera","2020-01-02","2020-12-31"]
[null,"Gestión Administrativa y Financiera","Proyecto: Implementación Sistema de Gestión Documental Registraduría Nacional ",1,"Implementar I fase del Sistema de Gestión Documental",null,"N/A","SGD implementado en I fase","Cantidad de actividades implementadas del  SGD /(n) *Cantidad de actividades programadas del  SGD",1,"Porcentaje","Informe Ejecutivo SPI",null,{"$f":"1/6","v":0.16666666666666666},{"$f":"1/6","v":0.16666666666666666},0.16666666666666666,0.16666666666666666,0.16666666666666666,0.16666666666666666,"Gerencia Administrativa y Financiera","2020-01-02","2020-12-31"]
[null,"Gestión Administrativa y Financiera","Proyecto: Mejoramiento y mantenimiento de la infraestructura administrativa a nivel Nacional",1,"Suscribir los contratos para el mejoramiento y/o mantenimiento de sedes",null,"N/A","Sedes Mejoradas y/o mantenidas","Cantidad de actividades contratadas/(n) * Cantidad de actividades a suscribir en el periodo ",1,"Porcentaje","Informe Ejecutivo SPI",null,null,null,0.33329999999999999,0.33329999999999999,0.33329999999999999,null,"Gerencia Administrativa y Financiera","2020-07-01","2020-10-31"]
[null,"Gestión y Control Disciplinario","Actuaciones Disciplinarias",1,"Mediante auto tramitar las quejas - informes o anónimos que se allegan a la oficina.",null,"N/A","Autos de Remisión por Competencia - Inhibitorios - Indagación - Investigación ","(Tramites Rezagados+Tramitados en el periodo) / ((n)*Quejas + informes + anónimos recibidos) ",1,"Porcentaje","Autos no sujetos a reserva legal y certificación de trámite","Evidencia cargada a través del SharePoint ",{"$f":"1/6","v":0.16666666666666666},{"$f":"1/6","v":0.16666666666666666},0.16666666666666666,0.16666666666666666,0.16666666666666666,0.16666666666666666,"Oficina de Control Disciplinario","2020-02-01","2020-12-31"]
[null,"Gestión y Control Disciplinario","Actuaciones Disciplinarias",2,"Atender los procesos disciplinarios del periodo, con celeridad y bajo el marco del debido proceso.",null,"N/A","Procesos Disciplinarios atendidos correspondientes al período","Cantidad de procesos gestionados en el periodo/ ((n)*Cantidad de procesos programados para gestionar en el periodo)",1,"Porcentaje","Certificación de procesos gestionados en el periodo ","Evidencia cargada a través del SharePoint",{"$f":"1/6","v":0.16666666666666666},0.16666666666666666,0.16666666666666666,0.16666666666666666,0.16666666666666666,0.16666666666666666,"Oficina de Control Disciplinario","2020-02-01","2020-12-31"]
[null,"Gestión y Control Disciplinario","Actuaciones Disciplinarias",3,"Atender los procesos disciplinarios correspondientes a vigencias anteriores  con celeridad y bajo el marco del debido proceso. ",null,"N/A","Procesos Disciplinarios atendidos correspondientes a otras vigencias ","Procesos gestionados en el periodo/ (n)*92",1,"Porcentaje","Certificación de procesos atendidos correspondientes a otras vigencias ","Evidencia cargada a través del SharePoint",null,0.2,0.2,0.2,0.2,0.2,"Oficina de Control Disciplinario","2020-03-01","2020-12-31"]
[null,"Gestión y Control Disciplinario","Actuaciones Disciplinarias",4,"Analizar los procesos disciplinarios de vigencias anteriores, a fin de evaluar la decisión que en derecho corresponda. ",null,"N/A","Informe de análisis de procesos disciplinarios de vigencias anteriores","Cantidad de Informes realizados ",1,"Número","Informe de análisis ","Evidencia cargada a través del SharePoint",null,1,null,null,null,null,"Oficina de Control Disciplinario","2020-03-01","2020-04-30"]
[null,"Gestión y Control Disciplinario","Actuaciones Disciplinarias",5,"Realizar las observaciones pertinentes a los informes de procesos disciplinarios que se siguen en el país.",null,"N/A","Informes Disciplinarios con Observaciones ","Cantidad de Informes revisados",297,"Número","Informes con observaciones","Observaciones subidas al SharePoint del área disciplinaria ",null,66,66,66,33,66,"Oficina de Control Disciplinario","2020-03-01","2020-12-31"]
[null,"Gestión y Control Disciplinario","Actuaciones Disciplinarias",6,"Realizar actividades de control preventivo, a fin de evitar la ocurrencia de hechos que contraríen los principios de la función pública por parte de los servidores de la Registraduría Nacional del Estado Civil.",null,"N/A","Actividades Control Preventivo ","Cantidad de actividades realizadas ",7,"Número","Actividades ejecutadas ","Correo Electrónico y/o actas y/o videos y/o listado de asistencia, cargados a través del SharePoint ",null,null,1,2,2,2,"Oficina de Control Disciplinario","2020-05-01","2020-12-31"]
[null,"Gestión y Control Disciplinario","Actuaciones Disciplinarias",7,"Realizar reuniones quincenales con 4 operadores disciplinarios del país y sus respectivos Delegados Departamentales de manera virtual, a fin de afianzar el proceso de asesoría de la actividad disciplinaria. ",null,"N/A","Reuniones de Asesoría ","Cantidad de reuniones realizadas ",37,"Número","Acta y/o video de reunión ","Acta y/o video de reunión cargados al SharePoint ",4,null,5,10,10,8,"Oficina de Control Disciplinario","2020-01-02","2020-12-31"]
[null,"Gestión del Sistema de Control Interno","Auditoria Interna",1,"Coordinar y realizar auditorías a procesos, actividades u operaciones, no contempladas en el\nPlan Anual de Auditorías- PAI, cuando sea necesario o a solicitud de los responsables de los procesos o el Señor Registrador.",null,"N/A","Informes de auditorías solicitadas","Cantidad de informes de auditorías realizadas por solicitud / Cantidad de informes de auditorias solicitadas",7,"Número","Informe de Auditoria -  AIFT18","SharePoint",null,null,null,null,null,7,"Oficina de Control Interno","2020-01-01","2020-12-31"]
[null,"Gestión del Sistema de Control Interno","Auditoria Interna",2,"Realizar seguimiento al Sistema de Gestión de Calidad - Auditoria de Calidad.",null,"N/A","Informe de auditoria de calidad","Informe de auditoría de calidad realizado",1,"Número","Informe de Auditoria Interna - AIFT15","Página Web",null,null,1,null,null,null,"Oficina de Control Interno","2020-01-01","2020-12-31"]
[null,"Gestión del Sistema de Control Interno","Seguimiento a la gestión institucional",1,"Realizar seguimiento a los planes de mejoramiento (Institucional y por procesos)",null,"N/A","Informe de seguimiento","Cantidad de informes de seguimiento a planes de mejoramiento realizados / Cantidad de  informes programados al año",8,"Número","Informe de Seguimiento - SIFT01","SharePoint",2,2,null,2,2,null,"Oficina de Control Interno","2020-01-01","2020-12-31"]
[null,"Gestión del Sistema de Control Interno","Seguimiento a la gestión institucional",2,"Ejecutar el  Plan  Anual de Auditorías Internas - PAI",null,"N/A","Informes o actas de seguimiento de auditorias de gestión establecidas en el PAI ","Cantidad de Informes o actas de seguimiento realizados",143,"Número","Informe de Seguimiento - SIFT01\nActa Interna de Control Interno - AIFT02","Intranet/Control Interno/Seguimiento a la Gestión Institucional",49,19,13,31,21,10,"Oficina de Control Interno","2020-01-01","2020-12-31"]
[null,"Gestión del Sistema de Control Interno","Seguimiento a la Gestión Institucional",3,"Realizar comité para verificar la elaboración del Plan Anticorrupción y de Atención al Colombiano y del Mapa de Riesgos de Corrupción y aprobar ambos documentos.",null,"Plan Anticorrupción y de Atención al Ciudadano","Acta de aprobación del Plan Anticorrupción y de Atención al Colombiano y del Mapa de Riesgos de Corrupción,\nen el Comité Institucional de Coordinación de Control Interno","Cantidad de actas firmadas con la aprobación del Plan Anticorrupción y de Atención al Colombiano y del Mapa de Riesgos de Corrupción, del Comité Institucional de Coordinación de Control Interno",1,"Número","Acta de comité de Coordinación del Sistema de Control Interno - IFT01","SharePoint",1,null,null,null,null,null,"Oficina de Control Interno","2020-01-01","31/31/2020"]
[null,"Gestión del Sistema de Control Interno","Seguimiento a la Gestión Institucional",4,"Verificar la visibilización del Plan Anticorrupción y de Atención al Colombiano y del Mapa de Riesgos de Corrupción mediante publicación en la página web",null,"Plan Anticorrupción y de Atención al Ciudadano","Publicación en la página web de la RNEC del Plan Anticorrupción y de Atención al Ciudadano y Mapa de Corrupción publicado"," Plan Anticorrupción y de Atención al Ciudadano y Mapa de Riesgos publicados en la Pagina web de la RNEC",1,"Número","Pantallazo Publicación\ndirección URL","Página Web",1,null,null,null,null,null,"Oficina de Control Interno","31/31/2020","31/31/2020"]
[null,"Gestión del Sistema de Control Interno","Seguimiento a la Gestión Institucional",5,"Controlar las acciones contempladas en las estrategias del Plan Anticorrupción y de Atención al Colombiano y al Mapa de Riesgos de Corrupción de la RNEC - Consolidado Nivel Central",null,"Plan Anticorrupción y de Atención al Ciudadano","Matrices con reportes de seguimiento a las acciones contempladas en las estrategias del Plan Anticorrupción y de Atención al Colombiano y al Mapa de Riesgos de Corrupción","Cantidad de matrices con reportes de seguimiento a las acciones contempladas en las estrategias del Plan Anticorrupción y de Atención al Colombiano y al Mapa de Riesgos de Corrupción. ",24,"Número","Seguimiento a la ejecución del plan anticorrupción y de atención al colombiano - PGFT19","Página Web",8,null,8,null,8,null,"Oficina de Control Interno","2020-05-15","2020-09-15"]
[null,"Gestión del Sistema de Control Interno","Seguimiento a la Gestión Institucional",6,"Hacer seguimiento a las acciones contempladas en las estrategias del Plan Anticorrupción y de Atención al Colombiano y al Mapa de Riesgos de Corrupción de la RNEC - Consolidado Nivel Central",null,"Plan Anticorrupción y de Atención al Ciudadano","Informe de seguimiento a las acciones contempladas en las estrategias del Plan Anticorrupción y de Atención al Colombiano y al Mapa de Riesgos de Corrupción","Cantidad de informes de seguimiento realizados a las acciones contempladas en las estrategias del Plan Anticorrupción y de Atención al Colombiano y al Mapa de Riesgos de Corrupción. ",3,"Número","Informe de Seguimiento - SIFT01","Página Web",1,null,1,null,1,null,"Oficina de Control Interno","2020-01-01","2020-12-31"]
[null,"Gestión del Sistema de Control Interno","Seguimiento a la Gestión Institucional",7,"Monitorear permanentemente del mapa de riesgos de corrupción vigencia 2020.",null,"Plan Anticorrupción y de Atención al Ciudadano","Matriz con reportes de seguimiento al Mapa de Riesgos de Corrupción","Cantidad de matrices con reportes de seguimiento al Mapa de Riesgos de Corrupción",3,"Número","Matrices de seguimiento","SharePoint",1,null,1,null,1,null,"Líderes de los macroprocesos al  en el nivel central, Delegaciones Departamentales y Registraduría Distrital. ","2020-05-15","2020-09-15"]
[null,"Gestión del Sistema de Control Interno","Seguimiento a la Gestión Institucional",8,"Realizar seguimiento  a los mapas de riesgos de corrupción vigencia 2020",null,"Plan Anticorrupción y de Atención al Ciudadano","Informes de seguimiento  al mapa de riesgos de corrupción","Porcentaje de avance  en el desarrollo de las actividades planteadas en los mapas de Riesgos de Corrupción",1,"Porcentaje","Informe de Seguimiento - SIFT01","Intranet/Control Interno/Seguimiento a la Gestión Institucional",null,null,1,null,1,null,"Oficina de Control Interno","2020-05-15","2020-09-15"]
[null,"Gestión del Sistema de Control Interno","Seguimiento a la Gestión Institucional",9,"Elaborar el informe anual de evaluación de la Estrategia de Rendición de Cuentas de la vigencia 2020",null,"Plan Anticorrupción y de Atención al Ciudadano","Informe anual de evaluación de la Estrategia de Rendición de Cuentas","Informe anual de evaluación de la Estrategia de Rendición de Cuentas de la vigencia 2020",1,"Número","Informe de Seguimiento - SIFT01","Página Web",null,null,null,null,null,1,"Oficina de Control Interno","2020-12-01","2020-12-31"]
[null,"CEDAE","Proyecto: Fortalecimiento del Centro de Estudios en Democracia y Asuntos Electorales - CEDAE - Nacional",1,"Realizar seminarios, foros, conversatorios, mesas de trabajo y talleres lúdicos sobre las temáticas misionales y transversales de la Registraduría Nacional del Estado Civil dirigidos a usuarios internos y externos de la entidad",null,"Plan Anticorrupción y de Atención al Ciudadano","Seminarios\nForos\nTalleres\nConversatorios\nMesas de Trabajo","Cantidad de actividades realizadas",10,"Número","Listados de asistencia","CEDAE",null,2,2,2,3,1,"Coordinador  CEDAE","2020-02-01","2020-12-31"]
[null,"CEDAE","Proyecto: Fortalecimiento del Centro de Estudios en Democracia y Asuntos Electorales - CEDAE - Nacional",2,"Elaborar una política de investigación para la Registraduría Nacional del Estado Civil.",null,"N/A","Documento Política de Investigación ","Documento de Política elaborado",1,"Número","Resolución Política de Investigación ","INTRANET",null,1,null,null,null,null,"Coordinador  CEDAE","2020-02-01","2020-04-30"]
[null,"CEDAE","Proyecto: Fortalecimiento del Centro de Estudios en Democracia y Asuntos Electorales - CEDAE - Nacional",3,"Definir líneas de investigación en los temas misionales de la Registraduría Nacional del Estado Civil.",null,"N/A","Documento de fundamentación de las líneas de investigación de la Registraduría Nacional del Estado Civil","Cantidad de documentos elaborados",2,"Número","Documento de fundamentación de las líneas de investigación de la Registraduría Nacional del Estado Civil","CEDAE",null,null,1,1,null,null,"Coordinador  CEDAE","2020-05-02","2020-08-31"]
[null,"CEDAE","Proyecto: Fortalecimiento del Centro de Estudios en Democracia y Asuntos Electorales - CEDAE - Nacional",4,"Gestionar la posibilidad de crear un grupo de investigación  y hacer el respectivo registro en la plataforma GrupLAC de MINCIENCIAS",null,"N/A","Registro en el sistema GrupLAC de la Plataforma ","Grupo de investigación creado",1,"Número","Registro en Plataforma GrupLAC","Plataforma GrupLAC",null,1,null,null,null,null,"Coordinador  CEDAE","2020-02-01","2020-04-30"]
[null,"CEDAE","Proyecto: Fortalecimiento del Centro de Estudios en Democracia y Asuntos Electorales - CEDAE - Nacional",5,"Realizar investigaciones y publicaciones de impacto nacional,  relevantes y pertinentes para fortalecer a la Registraduría Nacional: impacto de pedagogías de formación en democracia; Código Electoral (Voto automatizado, mixto y electrónico; Falencias del procesos electoral colombiano desde informes entidades del Estado colombianos, sociedad civil y organismos internacionales)",null,"Plan Anticorrupción y de Atención al Ciudadano","Investigaciones","Cantidad de documentos de investigación",3,"Número","Investigaciones","Página Web",null,1,null,null,null,2,"Coordinador  CEDAE","2020-02-01","2020-12-31"]
[null,"CEDAE","Proyecto: Fortalecimiento del Centro de Estudios en Democracia y Asuntos Electorales - CEDAE - Nacional",6,"Publicar un número por año de la revista Democracia Actual que cumpla con los requisitos de indexación en Publindex",null,"N/A","Revista publicada","Cantidad de Revistas publicadas",1,"Número","Revista publicada","Página Web",null,null,null,null,null,1,"Coordinador  CEDAE","2020-11-01","2020-12-31"]
[null,"CEDAE","Proyecto: Fortalecimiento del Centro de Estudios en Democracia y Asuntos Electorales - CEDAE - Nacional",7,"Diseñar y desarrollar el Plan de Capacitación del CEDAE",null,"N/A","Documento el Plan de Capacitación del CEDAE desarrollado","Plan de capacitación elaborado",1,"Número","Documento el Plan de Capacitación del CEDAE","CEDAE",null,1,null,null,1,1,"Coordinador  CEDAE","2020-02-01","2020-12-31"]
[null,"Fondo Social de Vivienda","Adjudicación de Créditos para Vivienda",1,"Calificar documentos de inscritos al concurso de créditos de vivienda de la presente convocatoria ",null,"N/A","Paquete de documentos Calificados ","Cantidad de paquetes de documentos calificados/Cantidad de paquetes de documentos recibidos  ",1,"Porcentaje","Listado preliminar de admitidos","SharePoint",1,null,null,null,null,null,"Fondo Social de Vivienda ","2020-02-01","2020-02-27"]
[null,"Fondo Social de Vivienda","Adjudicación de Créditos para Vivienda",2,"Publicar listado definitivo de los admitidos y rechazados en la presente convocatoria ",null,"N/A","Listado de participantes admitidos y rechazados  ","Listado definitivo de admitido y rechazados de participantes publicado",1,"Número","Listado definitivo de admitido y rechazados de participantes publicado","SharePoint",1,null,null,null,null,null,"Fondo Social de Vivienda ","2020-01-02","2020-02-29"]
[null,"Fondo Social de Vivienda","Adjudicación de Créditos para Vivienda",3,"Desarrollar la convocatoria para la inscripción al concurso de créditos de vivienda de la vigencia 2021",null,"N/A","Convocatoria de Crédito","Convocatoria realizada ",1,"Número","Circular de convocatoria","SharePoint",null,null,null,null,1,null,"Fondo Social de Vivienda ","2020-10-23","2020-12-31"]
[null,"Fondo Social de Vivienda","Adjudicación de Créditos para Vivienda",4,"Habilitar el aplicativo para la inscripción en línea de los servidores interesados en participar en la  convocatoria de créditos de vivienda de la vigencia 2021",null,"N/A","Aplicativo habilitado","Cantidad de aplicativos habilitados",1,"Número","Acta general de cierres de inscripción","SharePoint",null,null,null,null,null,1,"Fondo Social de Vivienda ","2020-11-25","2020-12-31"]
[null,"Fondo Social de Vivienda","Gestión Financiera",1,"Desembolsar créditos de Vivienda aprobados durante la vigencia ",null,"N/A","Créditos desembolsados ","Cantidad de créditos desembolsados/(n)*Cantidad de créditos aprobados ",1,"Porcentaje","Certificación expedida por servidor con funciones de tesorero","SharePoint",null,null,{"$f":"1/4","v":0.25},0.25,0.25,0.25,"Fondo Social de Vivienda ","2020-05-01","2020-12-31"]
[null,"Fondo Social de Vivienda","Gestión Financiera",2,"Realizar seguimiento mensual y reporte consolidado del comportamiento de la cartera mes a mes. ",null,"N/A","Reporte de cartera morosa ","Cantidad de reporte mensual consolidado de cartera morosa",12,"Número","Reporte de cartera morosa ","SharePoint",2,2,2,2,2,2,"Fondo Social de Vivienda ","2020-01-02","2020-12-31"]
[null,"Fondo Social de Vivienda","Gestión Jurídica",1,"Realizar el Estudio de Titulo y Elaboración de Minuta de los Créditos Aprobados ",null,"N/A","Estudio de Títulos y elaboración de minutas ","Cantidad de estudios de títulos y minutas elaboradas /(n)*Cantidad de  estudios títulos y minutas programadas por los créditos aprobados",1,"Porcentaje","Certificación expedida por Coordinado jurídico","SharePoint",null,null,null,{"$f":"1/3","v":0.33333333333333331},{"$f":"1/3","v":0.33333333333333331},0.33333333333333331,"Fondo Social de Vivienda ","2020-07-01","2020-12-31"]
[null,"Fondo Social de Vivienda","Gestión Jurídica",2,"Realizar seguimiento a la recuperación de cartera por acciones de cobro pre jurídico ",null,"N/A","Informe bimestral de cobro prejuridico  ","Cantidad de informes programados ",6,"Número","Informe bimestral de cobro prejuridico  ","SharePoint",1,null,null,1,1,1,"Fondo Social de Vivienda ","2020-01-02","2020-12-31"]
[null,"Fondo Social de Vivienda","Gestión Jurídica",3,"Realizar seguimiento a la recuperación de cartera por acciones de cobro jurídico",null,"N/A","Informes cobro  jurídico  ","Cantidad de informes elaborados de cobro jurídico",6,"Número","Informes cobro  jurídico  ","SharePoint",1,null,null,1,1,1,"Fondo Social de Vivienda ","2020-01-02","2020-12-31"]
[null,"Fondo Social de Vivienda","Gestión Jurídica",4,"Salvaguardar la información de  Escritura Pública y pagaré  de los créditos de vivienda legalizados.",null,"N/A","Escritura Publica y Pagaré Escaneada y archivada ","Cantidad de escrituras pública y pagaré escaneados y grabados/( n) (Cantidad de créditos de vivienda legalizados) ",1,"Porcentaje","Certificación expedida por el Coordinador Jurídico","SharePoint",null,null,null,null,0.5,0.5,"Fondo Social de Vivienda ","2020-09-01","2020-12-31"]
[null,"Fondo Social de Vivienda","Evaluación y Mejora ",1,"Elaborar y presentar los informes de los Estados Financieros a la  Contaduría General de la Nación",null,"N/A","Informes presentados","Informe de Estados Financieros elaborados y presentados",4,"Número","Informes presentados","SharePoint",1,1,null,1,1,null,"Fondo Social de Vivienda ","2020-02-01","2020-12-31"]
[null,"Fondo Social de Vivienda","Evaluación y Mejora ",2,"Elaborar y presentar el informe de  rendición de la Cuenta anual a la Contraloría General de la Republica, a través del aplicativo SIRECI",null,"N/A","Informes presentados","Rendición de la cuenta anual",1,"Número","Informes presentados","SharePoint",null,1,null,null,null,null,"Fondo Social de Vivienda ","2020-03-01","2020-04-30"]
[null,"Fondo Social de Vivienda","Evaluación y Mejora ",3,"Elaborar y presentar los Estados Financieros al Ministerio de Hacienda y Crédito Publico",null,"N/A","Informes presentados","Cantidad de Informe de Estados Financieros elaborados y presentados",1,"Número","Informes presentados","SharePoint",null,1,null,null,null,null,"Fondo Social de Vivienda ","2020-03-01","2020-04-30"]
[null,"Fondo Social de Vivienda","Evaluación y Mejora ",4,"Elaborar y presentar los Estados Financieros al Departamento Nacional de Planeación ",null,"N/A","Informes presentados","Cantidad de Informe de Estados Financieros elaborados y presentados",1,"Número","Informes presentados","SharePoint",null,1,null,null,null,null,"Fondo Social de Vivienda ","2020-03-01","2020-04-30"]
[null,"Fondo Social de Vivienda","Evaluación y Mejora ",5,"Elaborar y presentar los Estados Financieros a la Cámara de Representantes",null,"N/A","Informes presentados","Cantidad de Informe de Estados Financieros elaborados y presentados",1,"Número","Informes presentados","SharePoint",null,1,null,null,null,null,"Fondo Social de Vivienda ","2020-03-01","2020-04-30"]
[]
[null,"Nombre del responsable del diligenciamiento: David Iván Ramos Barraza"]
[null,"Cargo: Profesional universitario"]
[null,"Fecha diligenciamiento:28/04/2020"]

{"sheet":"PAI 2020 Nivel Central (2)","index":2,"n_rows":305,"n_cols":20,"rows_kept":305,"cut":false,"hidden":true,"merged":[[4,1,5,1],[4,2,5,2],[4,3,5,3],[4,4,5,4],[4,5,5,5],[0,1,1,1],[0,3,0,17],[1,3,1,17],[2,1,2,19],[3,1,3,19],[4,17,5,17],[4,18,4,19],[4,6,5,6],[4,7,5,7],[4,8,5,8],[4,9,5,9],[4,10,5,10],[4,11,4,16]]}
[null,null,"PROCESO","PLANEACIÓN DE LA GESTIÓN INSTITUCIONAL",null,null,null,null,null,null,null,null,null,null,null,null,null,null,"CÓDIGO ","PGFT20"]
[null,null,"FORMATO","PROGRAMACIÓN PLAN DE ACCIÓN NIVEL CENTRAL",null,null,null,null,null,null,null,null,null,null,null,null,null,null,"VERSIÓN",5]
[null,"Aprobado: 08/01/2020"]
[]
[null,"Macroproceso","Proceso o proyecto","Número de la actividad","Actividad\n","N°. Objetivo  \nEstratégico","Planes Institucionales y / o estratégico al cual se integra","Nombre del producto ","Indicador de producto","Meta anual ","Unidad de medida","Meta por bimestre",null,null,null,null,null,"Responsables ","Fecha"]
[null,null,null,null,null,null,null,null,null,null,null,"Enero - Febrero","Marzo - Abril","Mayo - Junio","Julio - Agosto","Septiembre - Octubre","Noviembre - Diciembre",null," Inicio"," Finalización"]
[null,"Electoral","Debates Electorales",1,"Desarrollar las actividades del Calendario Electoral de las elecciones de Consejos Locales y Municipales de Juventud ",null,"N/A","Elecciones de Consejos Locales y Municipales de Juventud realizadas","Cantidad de actividades realizadas según el Calendario Electoral/(n*Cantidad de actividades programadas en el Calendario Electoral)",1,"Porcentaje",0,0.2,0.2,0.2,0.4,0,"Registrador Delegado en lo Electoral","2020-02-25","2020-10-31"]
[null,"Electoral","Debates Electorales",2,"Realizar las elecciones nuevas y complementarias convocadas",null,"N/A","Elecciones nuevas y complementarias realizadas","Cantidad de elecciones nuevas y complementarias realizadas/(n*Cantidad de elecciones nuevas y complementarias convocadas)",1,"Porcentaje",{"$f":"1/6","v":0.16666666666666666},0.16666666666666666,0.16666666666666666,0.16666666666666666,0.16666666666666666,0.16666666666666666,"Registrador Delegado en lo Electoral","2020-01-01","2020-12-31"]
[null,"Electoral","Mecanismos de Participación ",1,"Realizar las elecciones de los diferentes Mecanismos de Participación Ciudadana  convocadas",null,"N/A","Mecanismos de Participación Ciudadana dirigidos, organizados y realizados","Cantidad de Mecanismos de Participación Ciudadana realizados/(n*Cantidad de Mecanismos de Participación convocados)",1,"Porcentaje",0.16666666666666666,0.16666666666666666,0.16666666666666666,0.16666666666666666,0.16666666666666666,0.16666666666666666,"Registrador Delegado en lo Electoral","2020-01-01","2020-12-31"]
[null,"Electoral","Mecanismos de Participación ",2,"Verificar los apoyos presentados por los Comités Promotores de Mecanismos de Participación Ciudadana",null,"N/A","Verificación de apoyos presentados por los Comités Promotores de Mecanismos de Participación","Cantidad de apoyos revisados de los Comités Promotores de Mecanismos de Participación/(n*Cantidad de apoyos presentados por los Comités Promotores de Mecanismos de Participación)",1,"Porcentaje",0.16666666666666666,0.16666666666666666,0.16666666666666666,0.16666666666666666,0.16666666666666666,0.16666666666666666,"Dirección de Censo Electoral","2020-01-01","2020-12-31"]
[null,"Electoral","Debates Electorales",3,"Apoyar la realización de las elecciones de otras entidades ",null,"N/A","Apoyo a la realización de elecciones de otras entidades","Cantidad de elecciones de otras entidades apoyadas/(n*Cantidad de elecciones de otras entidades solicitadas)",1,"Porcentaje",0.16666666666666666,0.16666666666666666,0.16666666666666666,0.16666666666666666,0.16666666666666666,0.16666666666666666,"Dirección de Gestión Electoral","2020-01-01","2020-12-31"]
[null,"Electoral","Debates Electorales",4,"Revisar y ajustar el procedimiento de Conformación y actualización de la Divipole (DEPD04)",null,"N/A","Revisión y ajuste del procedimiento de Conformación y actualización de la Divipole (DEPD04) ","Procedimiento de Conformación y actualización de la Divipole (DEPD04) revisado y ajustado",1,"Porcentaje",{"$f":"1/5","v":0.2},{"$f":"1/5","v":0.2},{"$f":"1/5","v":0.2},{"$f":"1/5","v":0.2},{"$f":"1/5","v":0.2},0,"Registrador Delegado en lo Electoral","2020-01-01","2020-12-31"]
[null,"Electoral","Debates Electorales",5,"Elaborar y gestionar el proyecto de reforma al Código Electoral",null,"N/A","Proyecto de reforma del Código Electoral","Proyecto de reforma de Código Electoral elaborado y gestionado",1,"Porcentaje",{"$f":"1/4","v":0.25},{"$f":"1/4","v":0.25},{"$f":"1/4","v":0.25},{"$f":"1/4","v":0.25},0,0,"Registrador Delegado en lo Electoral","2020-01-01","2020-07-31"]
[null,"Electoral","Debates Electorales",6,"Análisis de las barreras geográficas con respecto a la accesibilidad de los puestos de votación",null,"N/A","Documento de análisis de las barreras geográficas con respecto a la accesibilidad de los puestos de votación","Documento de análisis de las barreras geográficas con respecto a la accesibilidad de los puestos de votación realizado",1,"Porcentaje",{"$f":"1/6","v":0.16666666666666666},0.16666666666666666,0.16666666666666666,0.16666666666666666,0.16666666666666666,0.16666666666666666,"Registrador Delegado en lo Electoral","2020-01-01","2020-12-31"]
[null,"Electoral","Debates Electorales",7,"Elaborar la circular única en materia electoral",null,"N/A","Circular única en materia electoral ","Circular única en materia electoral elaborada",1,"Porcentaje",0.16666666666666666,0.16666666666666666,0.16666666666666666,0.16666666666666666,0.16666666666666666,0.16666666666666666,"Registrador Delegado en lo Electoral","2020-01-01","2020-12-31"]
[null,"Planeación y Direccionamiento Estratégico","Servicio al Colombiano",1,"Socializar con la alta dirección el seguimiento a la gestión en materia de Pqrsdc´s y servicio al ciudadano, con el objeto de gestionar soluciones y acciones de mejora.",null,"Plan Anticorrupción y de Atención al Ciudadano","Comité cuatrimestral de seguimiento a la gestión en materia de Pqr y servicio al ciudadano.","Cantidad de comités de seguimiento programados/ Cantidad de comités de seguimiento a la gestión  efectuados. ",3,"Número",1,null,1,null,1,null,"Oficina de Planeación - Coordinación de Peticiones, Quejas y Reclamos.","2020-01-31","31/09/2020"]
[null,"Gestión Administrativa y Financiera","Gestión de los Recursos Físicos",2,"Realizar adecuaciones locativas a la Oficina del Grupo de Peticiones, Quejas y Reclamos de la Sede Central, conforme al plano propuesto por la Oficina de Mantenimiento y Construcciones. ",null,"Plan Anticorrupción y de Atención al Ciudadano","Oficina del Grupo de Pqr reformada.","Adecuaciones locativas programadas/ Adecuaciones locativas efectuadas.",1,"Porcentaje",null,null,1,null,null,null,"Gerencia Administrativa y Financiera.","2020-05-01","31/06/2020"]
[null,"Planeación y Direccionamiento Estratégico","Servicio al Colombiano",3,"Implementar un sistema de información web que facilite la gestión y trazabilidad de los requerimientos de los ciudadanos.",null,"Plan Anticorrupción y de Atención al Ciudadano","Sistema de información web para la gestión y traza de los requerimientos de los ciudadanos.","Solución web programada/Solución web implementada. ",1,"Porcentaje",null,null,null,1,null,null,"Gerencia de informática/Oficina de Prensa y Comunicaciones/Programa de Gestión Documental/Coordinación de Peticiones, Quejas y Reclamos. ","2020-07-01","2020-08-31"]
[null,"Planeación y Direccionamiento Estratégico","Servicio al Colombiano",4,"Crear el directorio de responsables para la gestión de Pqrsdc´s a nivel nacional, publicarlo y gestionar permanentemente su actualización en la intranet institucional. ",null,"Plan Anticorrupción y de Atención al Ciudadano","Directorio creado y publicado en la intranet institucional.","Directorio publicado en la Intranet Institucional programado/ Directorio publicado en la Intranet Institucional efectuado.",1,"Porcentaje",null,1,null,null,null,null,"Oficina de Planeación - Coordinación de Peticiones, Quejas y Reclamos - Oficina de Prensa y Comunicaciones.","2020-03-01","31/04/2020"]
[null,"Planeación y Direccionamiento Estratégico","Servicio al Colombiano",5,"Diseñar, desarrollar e implementar un piloto de aplicación de una metodología que permita identificar el esquema de operación y servicio y medir el desempeño de la atención presencial y consolidar estadísticas sobre tiempos de espera, tiempos de atención y cantidad de ciudadanos atendidos. ",null,"Plan Anticorrupción y de Atención al Ciudadano","Metodología e informe de resultados de la aplicación de la misma en 3 sedes de atención de la RNEC. ","Informes programados con los resultados de la aplicación de la metodología/ Informes elaborados con los resultados de aplicación de la metodología. ",1,"Porcentaje",null,{"$f":"1/3","v":0.33333333333333331},null,{"$f":"1/3","v":0.33333333333333331},null,{"$f":"1/3","v":0.33333333333333331},"Oficina de Planeación.","2020-04-30","2020-12-31"]
[null,"Electoral","Debates Electorales",8,"Depurar y actualizar el  censo electoral",null,"N/A","Censo electoral actualizado y depurado","Catindad repotes de actualización y depuración del Censo electoral",12,"Número",2,2,2,2,2,2,"Dirección de Censo Electoral","2020-01-01","2020-12-31"]
[null,"Fondo Social de Vivienda","Adjudicación de Creditos para Vivienda",1,"Calificar documentos de inscritos al concurso de creditos de vivienda de la presente convocatoria ",null,"N/A","Paquete de documentos Calificados ","Cantidad de paquetes de documentos calificados/cantidad de paquetes de documentos recibidos  ",1,"Porcentaje",1,0,0,0,0,0,"Fondo Social de Vivienda ","2020-02-01","2020-02-27"]
[null,"Fondo Social de Vivienda","Adjudicación de Creditos para Vivienda",2,"Publicar listado definitivo de los admitidos y rechazados en la presente convocatoria ",null,"N/A","Listado de participantes admitidos y rechazados  ","Listado definitivo de admitido y rechados de participantes publicado",1,"Número",1,0,0,0,0,0,"Fondo Social de Vivienda ","2020-02-28","2020-03-30"]
[null,"Fondo Social de Vivienda","Adjudicación de Creditos para Vivienda",3,"Desarrollar la convocatoria para la inscripción al concurso de créditos de vivienda de la vigencia 2021",null,"N/A","Convocatoria de Credito","Convocatoria realizada ",1,"Número",0,0,0,0,1,0,"Fondo Social de Vivienda ","2020-10-23","2021-01-29"]
[null,"Fondo Social de Vivienda","Adjudicación de Creditos para Vivienda",4,"Habilitar el aplicativo para la inscripción en línea de los servidores interesados en participar en la  convocatoria de créditos de vivienda de la vigencia 2021",null,"N/A","Servidores publicos inscritos ","Cantidad de inscritos a la convocatoria ",1,"Porcentaje",0,0,0,0,0,1,"Fondo Social de Vivienda ","2020-11-25","2021-01-29"]
[null,"Fondo Social de Vivienda","Gestión Financiera",1,"Desembolsar créditos de Vivienda aprobados durante la vigencia ",null,"N/A","Desembolso ","Cantidad de créditos desembolsados/(n)*Cantidad de creditos aprobados ",1,"Porcentaje",0,0,0.1,0.25,0.3,0.35,"Fondo Social de Vivienda ","2020-05-01","2020-12-31"]
[null,"Fondo Social de Vivienda","Gestión Financiera",2,"Realizar seguimiento mensual y reporte consolidado del comportamiento de la cartera mes a mes. ",null,"N/A","Reporte de cartera morosa ","Cantidad De reporte mensual consolidado de cartera morosa",12,"Número",2,2,2,2,2,2,"Fondo Social de Vivienda ","2020-01-02","2020-12-31"]
[null,"Fondo Social de Vivienda","Gestión Juridica",1,"Realizar el Estudio de Titulo y Elaboración de Minuta de los Creditos Aprobados ",null,"N/A","Estudio de Títulos y elaboración deminutas ","Cantidad de estudio de titulos y minutas elaboradas /(n)*Cantidad de creditos aprobados ",1,"Porcentaje",0,0,0,"33.3%",0.33300000000000002,0.33300000000000002,"Fondo Social de Vivienda ","2020-07-01","2020-12-31"]
[null,"Fondo Social de Vivienda","Gestión Juridica",2,"Realizar seguimiento a la recuperación de cartera por acciones de cobro pre jurídico ",null,"N/A","Informe bimestral de cobro prejuridico  ","Numero de informes programados ",6,"Número",1,1,1,1,1,1,"Fondo Social de Vivienda ","2020-01-02","2020-12-31"]
[null,"Fondo Social de Vivienda","Gestión Juridica",3,"Realizar seguimiento a la recuperación de cartera por acciones de cobro juridico",null,"N/A","Informes cobro  juridico  ","Cantidad de informes elaborados de cobro juridico",6,"Número",1,1,1,1,1,1,"Fondo Social de Vivienda ","2020-01-02","2020-12-31"]
[null,"Fondo Social de Vivienda","Gestión Juridica",4,"Salvarguardar la información de  Escritura Pública y pagaré  de los creditos de vvienda legalizados.",null,"N/A","Escritura Publica y Pagare Escaneada y archivada ","Cantidad de escrituras pública y pagare escaneados y grabados/( n) (Cantidad de creditos de vivienda legalizados) ",1,"Porcentaje",0,0,0,0.33300000000000002,0.33300000000000002,0.33300000000000002,"Fondo Social de Vivienda ","2020-07-01","2020-12-31"]
[null,"Fondo Social de Vivienda","Evaluación y Mejora ",1,"Elaborar y presentar los informes de los Estados Financieros a la  Contaduría General de la Nación",null,"N/A","Informes","Informe de Estados Financieros elaborados y presentados",4,"Número",1,1,0,1,1,0,"Fondo Social de Vivienda ","2020-02-01","2020-12-31"]
[null,"Fondo Social de Vivienda","Evaluación y Mejora ",2,"Elaborar y presentar el informe de  rendición de la Cuenta anual a la Contraloría General de la Republica, a través del aplicativo SIRECI",null,"N/A","Informe","Rendicion de la cuenta anual",1,"Número",0,1,0,0,0,0,"Fondo Social de Vivienda ","2020-03-01","2020-04-30"]
[null,"Fondo Social de Vivienda","Evaluación y Mejora ",3,"Elaborar y presentar los Estados Financieros al Ministerio de Hacienda y Credito Publico",null,"N/A","Informe","Cantidad de Informe de Estados Financieros elaborados y presentados",1,"Número",0,1,0,0,0,0,"Fondo Social de Vivienda ","2020-03-01","2020-04-30"]
[null,"Fondo Social de Vivienda","Evaluación y Mejora ",4,"Elaborar y presentar los Estados Financieros al Departamento Nacional de Planeacion ",null,"N/A","Informe","Cantidad de Informe de Estados Financieros elaborados y presentados",1,"Número",0,1,0,0,0,0,"Fondo Social de Vivienda ","2020-03-01","2020-04-30"]
[null,"Fondo Social de Vivienda","Evaluación y Mejora ",5,"Elaborar y presentar los Estados Financieros a la Camara de Representantes",null,"N/A","Informe","Cantidad de Informe de Estados Financieros elaborados y presentados",1,"Número",0,1,0,0,0,0,"Fondo Social de Vivienda ","2020-03-01","2020-04-30"]
[null,"Gestión Administrativa y Financiera","Gestión de los Recursos Financieros",1,"Registrar la ejecución presupuestal de la RNEC y el CNE vigencia 2020",null,"N/A","Ejecución Presupuestal","Cantidad de informes publicados",6,"Número",1,1,1,1,1,1,"Dirección Financiera - Grupo de Presupuesto","2020-01-02","2020-12-31"]
[null,"Gestión Administrativa y Financiera","Gestión de los Recursos Financieros",2,"Elaborar, presentar y transmitir los Estados Financieros de la RNEC del cuarto trimestre de la vigencia 2019",null,"N/A","Estados Financieros","Cantidad de Estados Financieros transferidos",1,"Número",1,0,0,0,0,0,"Dirección Financiera - Grupo de Contabilidad","2020-01-02","2020-12-31"]
[null,"Gestión Administrativa y Financiera","Gestión de los Recursos Financieros",3,"Elaborar, presentar y transmitir  los Estados Financieros de la RNEC, vigencia 2020",null,"N/A","Estados Financieros","Número de Estados Financieros transferidos",3,"Número",0,1,0,1,1,0,"Dirección Financiera - Grupo de Contabilidad","2020-01-02","2020-12-31"]
[null,"Gestión Administrativa y Financiera","Gestión de los Recursos Financieros",4,"Registrar la ejecución presupuestal del FRR vigencia 2020",null,"N/A","Ejecución Presupuestal","Número de informes publicados",6,"Número",1,1,1,1,1,1,"Dirección Financiera - Grupo de Presupuesto","2020-01-02","2020-12-31"]
[null,"Gestión Administrativa y Financiera","Gestión de los Recursos Financieros",5,"Elaborar, presentar y transmitir  los Estados Financieros del FRR del cuarto trimestre de la vigencia 2019",null,"N/A","Estados Financieros","Número de Estados Financieros transferidos",1,"Número",1,0,0,0,0,0,"Dirección Financiera - Grupo de Contabilidad","2020-01-02","2020-12-31"]
[null,"Gestión Administrativa y Financiera","Gestión de los Recursos Financieros",6,"Elaborar, presentar y transmitir los Estados Financieros del FRR, vigencia 2020",null,"N/A","Estados Financieros","Número de Estados Financieros transferidos",3,"Número",0,1,0,1,1,0,"Dirección Financiera - Grupo de Contabilidad","2020-01-02","2020-12-31"]
[null,"Gestión Administrativa y Financiera","Gestión de los Recursos Financieros",7,"Conciliar, clasificar y registrar la ejecución del presupuesto de ingresos del FRRNEC programado para el sexto bimestre de la vigencia 2019",null,"N/A","Informe mensual de Recaudos","Número de Informes de Recaudos\n",1,"Número",1,0,0,0,0,0,"Dirección Financiera - Grupo de Recaudos","2020-01-02","2020-12-31"]
[null,"Gestión Administrativa y Financiera","Gestión de los Recursos Financieros",8,"Conciliar, clasificar y registrar la ejecución del presupuesto de ingresos del FRRNEC programado para la vigencia 2020, correspondiente a 5 bimestres",null,"N/A","Informe mensual de Recaudos","Número de Informes de Recaudos\n",5,"Número",0,1,1,1,1,1,"Dirección Financiera - Grupo de Recaudos","2020-01-02","2020-12-31"]
[null,"Gestión Administrativa y Financiera","Gestión Contractual",1,"Llevar a cabo los procesos para la adquisición de bienes y servicios de la Entidad a través de la Plataforma Secop II",null,"Plan Anual de Adquisiciones","Ejecución del Plan Anual de Adquisiciones (Atención de necesidades de adquisición)","(Cantidad de solicitudes tramitadas rezagadas +Cantidad de solicitudes tratadas en el periodo) /(n) Cantidad de solicitudes recibidas que cumplen con el PAA y sus modificaciones",1,"Porcentaje",{"$f":"1/6","v":0.16666666666666666},0.16666666666666666,0.16666666666666666,0.16666666666666666,0.16666666666666666,0.16666666666666666,"Coordinador de Compras","2020-01-13","2020-12-31"]
[null,"Gestión Administrativa y Financiera","Gestión de los Recursos Físicos",1,"Levantamiento Físico de Inventarios",null,"N/A","Inventario actualizado","Conformación de la Propiedad, Planta y Equipo",1,"Número",null,null,null,null,null,1,"Coordinación de Almacén e Inventarios","2020-11-03","2020-12-31"]
[null,"Gestión Administrativa y Financiera","Gestión de los Recursos Físicos",2,"Establecer controles a través del contrato de outsourcing de impresión y fotocopiado con la finalidad de dar cumplimiento a la Política Nacional de \"Cero Papel\"",null,"N/A","Controles implementados (impresión y fotocopiado)","Controles implementados",3,"Número",1,1,1,null,null,null,"Coordinación de Recursos Físicos","2020-01-13","2020-06-30"]
[null,"Gestión Administrativa y Financiera","Gestión Documental",1,"Renovar  y suscribir nuevos convenios interinstitucionales con bibliotecas nacionales",null,"N/A","Convenios interinstitucionales Biblioteca ","Cantidad de Convenios y/o Nuevos ",10,"Número",null,8,null,2,null,null,"Responsable servicios de la Biblioteca RNEC","2020-01-01","2020-12-31"]
[null,"Gestión Administrativa y Financiera","Gestión Documental",2,"Digitalizar  cartillas, folletos, separatas y demás material bibliográficos que garantice la conservación y preservación de la memoria institucional de la RNEC",null,"N/A","Digitalización Documentos ","Cantidad de documentos digitalizados",48,"Número",8,8,8,8,8,8,"Responsable servicios de la Biblioteca RNEC","2020-01-01","2020-12-31"]
[null,"Gestión Administrativa y Financiera","Gestión Documental",3,"Diseño y divulgación mediante banner de nuevas adquisiciones  bibliográficas, físicas y digitales",null,"N/A","Divulgación Nuevas adquisiciones y servicios","Cantidad de Banner",12,"Número",2,2,2,2,2,2,"Responsable servicios de la Biblioteca RNEC","2020-01-01","2020-12-31"]
[null,"Gestión Administrativa y Financiera","Gestión Documental",4,"Incrementar el número de libros disponibles en el catálogo en línea",null,"N/A","Cargue de material bibliográfico en catalogo en línea","Cantidad de libros cargados en el catalogo en línea",360,"Número",60,60,60,60,60,60,"Responsable servicios de la Biblioteca RNEC","2020-01-01","2020-12-31"]
[null,"Gestión Administrativa y Financiera","Proyecto: Mejoramiento y mantenimiento de la infraestructura administrativa a nivel Nacional",1,"Suscribir los contratos para el mejoramiento y/o mantenimiento de sedes",null,"N/A","Sedes Mejoradas y/o mantenidas","Cantidad de actividades contratadas/(n) * Cantidad de actividades a suscribir en el periodo *100",1,"Porcentaje",null,0.25,0.25,0.25,0.25,null,"Coordinación de Mantenimiento y Construcciones","2020-03-02","2020-06-30"]
[null,"Gestión Administrativa y Financiera","Proyecto: Implementación Sistema de Gestión Documental Registraduría Nacional ",1,"Implementar I fase del Sistema de Gestión Documental",null,"N/A","SGD implementado en I fase","Cantidad de actividades implementadas del  SGD /Cantidad de actividades programadas del  SGD",1,"Porcentaje",null,null,null,null,null,1,"Coordinación Gestión Correspondencia\nCoordinación Gestión Documental y de Archivos","2020-11-03","2020-12-31"]
[null,"Planeación y Direccionamiento Estratégico","Servicio al Colombiano",6,"Elaborar y publicar el informe trimestral de la gestión en materia de Pqrsdc´s en la RNEC. ",null,"Plan Anticorrupción y de Atención al Ciudadano","Informes trimestrales de pqrsdc´s elaborados y publicados.","Informes de pqrsdc´s Publicados.",4,"Número",1,1,1,1,null,null,"Oficina de Planeación - Coordinación de Peticiones, Quejas y Reclamos.","2020-01-31","31/09/2020"]
[null,"Planeación y Direccionamiento Estratégico","Servicio al Colombiano",7,"Dar tratamiento y respuesta oportuna en los términos de Ley a las Pqrsdc´s recibidas por el Grupo de Peticiones, Quejas y Reclamos.",null,"Plan Anticorrupción y de Atención al Ciudadano","Pqrsdc´s con respuesta y tratamiento en término.","Cantidad de  Pqrsdc´s respondidas  y tratamiento en término realizadas*100/(n)*Total de Pqrsdc's recibidas.",1,"Porcentaje",{"$f":"1/6","v":0.16666666666666666},0.16666666666666666,0.16666666666666666,0.16666666666666666,0.16666666666666666,0.16666666666666666,"Oficina de Planeación - Coordinación de Peticiones, Quejas y Reclamos.","2020-01-01","2020-12-31"]
[null,"Electoral","Debates Electorales",8,"Elaborar material y protocolos de atención y sensibilización para las personas con discapacidad en materia electoral.",null,"Plan Anticorrupción y de Atención al Ciudadano","Protocolos de atención y sensibilización para las personas con discapacidad en materia electoral","Documento: Protocolos de atención y sensibilización para las personas con discapacidad en materia electoral elaborados-",2,"Número",null,1,null,1,null,null,"Registraduría Delegada en lo Electoral","2020-03-01","2020-12-31"]
[null,"Gestión de Comunicación  Pública y Estratégica","Comunicación Organizacional",1,"Monitorear medios y redes sociales",null,"N/A","Notas","Cantidad de notas, comentarios y/o trinos (positivos, negativos y neutros)que sobre la Registraduría aparecen en los medios y/o redes sociales  durante el bimestre",1,"Porcentaje",{"$f":"1/6","v":0.16666666666666666},0.16666666666666666,0.16666666666666666,0.16666666666666666,0.16666666666666666,0.16666666666666666,"Oficina Central de Prensa","2020-01-01","2020-12-31"]
[null,"Gestión de Comunicación  Pública y Estratégica","Comunicación Organizacional",2,"Realizar  programa Nuestra Huella TV",null,"N/A","Programa Nuestra Huella TV","Cantidad se programas producidos/((n)*(cantidad de programas emitidos))",1,"Porcentaje",0.16666666666666666,0.16666666666666666,0.16666666666666666,0.16666666666666666,0.16666666666666666,0.16666666666666666,"Oficina Central de Prensa","2020-01-01","2020-12-31"]
[null,"Gestión de Comunicación  Pública y Estratégica","Comunicación Organizacional",3,"Imprimir revista Institucional Nuestra Huella",null,"N/A","Revista Nuestra Huella","Cantidad de revistas producidas en el año",12,"Número",2,2,2,2,2,2,"Oficina Central de Prensa","2020-01-01","2020-12-31"]
[null,"Gestión de Comunicación  Pública y Estratégica","Comunicación Organizacional",4,"Escribir y publicar comunicados de prensa",null,"N/A","Comunicados","Cantidad de comunicados/((n) *Cantidad de temas a tratar)",1,"Porcentaje",{"$f":"1/6","v":0.16666666666666666},0.16666666666666666,0.16666666666666666,0.16666666666666666,0.16666666666666666,0.16666666666666666,"Oficina Central de Prensa","2020-01-01","2020-12-31"]
[null,"Gestión de Comunicación  Pública y Estratégica","Comunicación Organizacional",5,"Realizar el Noticias al Día",null,"N/A","Noticias al Día","Cantidad de Noticias al Día/(n)(Cantidad de díahábiles del mes)",244,"Número",41,41,38,41,43,40,"Oficina Central de Prensa","2020-01-01","2020-12-31"]
[null,"Gestión de Comunicación  Pública y Estratégica","Comunicación Organizacional",6,"Definir los temas de campañas",null,"N/A","Temas campañas","Cantidad de campañas realizadas/((n)*(Cantidad de campañas solicitadas))",1,"Porcentaje",{"$f":"1/6","v":0.16666666666666666},0.16666666666666666,0.16666666666666666,0.16666666666666666,0.16666666666666666,0.16666666666666666,"Oficina Central de Prensa","2020-01-01","2020-12-31"]
[null,"Gestión de Comunicación  Pública y Estratégica","Comunicación Organizacional",7,"Realizar material impreso",null,"N/A","Impresos","Cantidad  de impresos realizados/((n)*(Cantidad de impresos encargados))",1,"Porcentaje",0.16666666666666666,0.16666666666666666,0.16666666666666666,0.16666666666666666,0.16666666666666666,0.16666666666666666,"Oficina Central de Prensa","2020-01-01","2020-12-31"]
[null,"Gestión de Comunicación  Pública y Estratégica","Comunicación Organizacional",8,"Producir de la Rendición de Cuentas",null,"N/A","Rendición de Cuentas","Rendición de cuentas producidas",1,"Porcentaje",null,null,null,null,null,1,"Oficina Central de Prensa","2020-10-01","2020-12-31"]
[null,"Gestión de Comunicación  Pública y Estratégica","Comunicación Organizacional",9,"Publicar contenidos en la web",null,"N/A","Publicaciones página web","Cantidad  de publicaciones realizadas/((n)*(Cantidad de publicaciones solicitadas))",1,"Porcentaje",{"$f":"1/6","v":0.16666666666666666},0.16666666666666666,0.16666666666666666,0.16666666666666666,0.16666666666666666,0.16666666666666666,"Oficina Central de Prensa","2020-01-01","2020-12-31"]
[null,"Planeación y Direccionamiento Estratégico","Servicio al Colombiano",8,"Realizar cápsulas informativas sobre la responsabilidad de los servidores públicos frente al derecho de petición y sobre el proceso y los procedimientos de  Servicio al Colombiano.",null,"Plan Anticorrupción y de Atención al Ciudadano","Cápsulas informativas. ","Cantidad cápsulas informativas elaboradas y publicadas. /(n)* Cantidad cápsulas informativas programadas en el periodo. ",12,"Número",0.16666666666666666,0.16666666666666666,0.16666666666666666,0.16666666666666666,0.16666666666666666,0.16666666666666666,"Oficina de Planeación - Coordinación de Peticiones, Quejas y Reclamos - Oficina de Prensa y Comunicaciones. ","2020-01-01","2020-12-31"]
[null,"Electoral","Debates Electorales",9,"Publicar en el Portal de Datos Abiertos, los resultados electorales de las Elecciones de Autoridades Locales 2019.",null,"Plan Anticorrupción y de Atención al Ciudadano","Información publicada.","Actualización programada/Actualización realizada.",1,"Porcentaje",null,null,1,null,null,null,"Registraduría Delegada en lo Electoral","0//05/2020","2020-06-30"]
[null,"Planeación y Direccionamiento Estratégico","Servicio al Colombiano",10,"Elaborar y publicar en los canales de atención la carta de trato digno a los usuarios para la vigencia 2020.",null,"Plan Anticorrupción y de Atención al Ciudadano","Carta de trato digno actualizada y publicada","Documento elaborado y publicado. ",1,"Número",1,null,null,null,null,null,"Oficina de Planeación - Coordinación de Peticiones, Quejas y Reclamos.","2020-01-01","2020-02-29"]
[null,"Electoral","Debates Electorales",11,"Actualizar el Sistema Integral de Capacitación Electoral con criterios de accesibilidad. ",null,"Plan Anticorrupción y de Atención al Ciudadano","Plataforma del Sistema Integral de Capacitación Electoral actualizado.","Sistema Integral de Capacitación Electoral actualizado.",1,"Número",null,null,null,null,1,null,"Registraduría Delegada en lo Electoral","2020-09-01","2020-10-31"]
[null,"Planeación y Direccionamiento Estratégico","Servicio al Colombiano",12,"Definir e implementar formatos de apoyo para la interacción con los ciudadanos por el canal telefónico, y para la recepción de peticiones interpuestas de manera verbal.",null,"Plan Anticorrupción y de Atención al Ciudadano","Manual de formatos de apoyo para la atención telefónica y la recepción de Pqrsdc´s verbales. ","Documento elaborado y publicado. ",1,"Número",null,null,1,null,null,null,"Oficina de Planeación - Coordinación de Peticiones, Quejas y Reclamos.","2020-05-01","2020-06-30"]
[null,"Electoral","Debates Electorales",13,"Realizar mesas de diálogo presenciales con instituciones y agrupaciones políticas para identificar acciones de mejora  de servicios en materia electoral",null,"Plan Anticorrupción y de Atención al Ciudadano","Acta con los compromisos en materia de mejoramiento de servicios.","Mesas de diálogo presenciales con  instituciones y agrupaciones políticas para identificar acciones de mejora de servicios en materia electoral programadas/ Mesas de diálogo presenciales con  instituciones y agrupaciones políticas para identificar acciones de mejora de servicios en materia electoral realizadas.",5,"Número",1,1,1,1,1,null,"Registraduría Delegada en lo Electoral","2020-01-01","2020-10-31"]
[null,"Gestión del Talento Humano","Permanencia del Talento Humano",14,"Formación con énfasis en técnicas de aplicación misional en el registro civil e identificación. ",null,"Plan Anticorrupción y de Atención al Ciudadano","Actividades de formación realizadas","Actividades de Formación ejecutadas / (n)*Actividades de Formación programadas.",1,"Porcentaje",null,0.2,0.2,0.2,0.2,0.2,"Gerencia del Talento Humano\nCoordinación de Desarrollo Integral del Talento Humano\nDelegados Departamentales\nRegistraduría del Distrito Capital","2020-04-01","2020-12-31"]
[null,"Electoral","Debates Electorales",15,"Realizar grupos focales con partes interesadas y entidades públicas para identificar acciones de mejora de servicios en materia electoral.",null,"Plan Anticorrupción y de Atención al Ciudadano","Acta con los compromisos en materia de mejoramiento de servicios.","Grupos focales con partes interesadas y entidades públicas para identificar acciones de mejora de servicios en materia electoral realizados.",3,"Número",null,1,1,1,null,null,"Registraduría Delegada en lo Electoral","2020-03-01","2020-08-31"]
[null,"Gestión del Sistema de Control Interno","Auditoria Interna",1,"Realizar las Auditorias de Gestión de la Registraduría Nacional del Estado Civil  y sus óganos adscritos, con el proposito de verificar si las operaciones financieras, administrativas, económicas y de otra índole se han realizado conforme a las normas legales, reglamentarias, estatutarias y de procedimiento",null,"N/A","Informe de auditorías de gestión","Cantidad de Informes de auditoría de gestión realizados y socializados",6,"Número",0,1,0,4,0,1,"Oficina de Control Interno","2020-01-01","2020-12-31"]
[null,"Gestión del Sistema de Control Interno","Auditoria Interna",2,"Establecer la eficacia y la eficiencia del Sistema de Gestión en la consecución de los objetivos de calidad establecidos por la Registraduría Nacional del Estado Civil de conformidad con la Norma ISO 9001:2015",null,"N/A","Informe","Informe de auditoría de calidad realizado y socializado",1,"Número",0,0,1,0,0,0,"Oficina de Control Interno","2020-01-01","2020-12-31"]
[null,"Gestión del Sistema de Control Interno","Seguimiento a la gestión institucional",1,"Hacer seguimiento al Plan de Mejoramiento de gestión institucional a través de la identificación del producto o servicio no conforme, los hallazgos, las no conformidades, acciones correctivas, correcciones y oportunidades de mejora detectadas a partir de las diferentes fuentes establecidas; con el propósito de hacer más eficiente y confiable la Gestión Institucional",null,"N/A","Informe de seguimiento","Cantidad de acciones tratadas de los planes de Mejoramiento/((n)* Cantidad de Acciones Solicitadas)",1,"Porcentaje",{"$f":"1/6","v":0.16666666666666666},0.16666666666666666,0.16666666666666666,0.16666666666666666,0.16666666666666666,0.16666666666666666,"Oficina de Control Interno","2020-01-01","2020-12-31"]
[null,"Gestión del Sistema de Control Interno","Seguimiento a la gestión institucional",2,"Evidenciar el cumplimiento de los objetivos, planes, programas, proyectos, procesos, activiadades y demás requisitos establecidos en los referentes normativos mediante la ejecución del Plan  Anual de Auditorías Internas, al tenor de lo establecido en la Ley 87 de 1993",null,"N/A","Informe de seguimiento \ncon actas","Cantidad de Informes de seguimiento realizados",117,"Número",44,13,13,23,19,5,"Oficina de Control Interno","2020-01-01","2020-12-31"]
[null,"Gestión del Talento Humano","Permanencia del Talento Humano",16,"Formación en técnicas de atención misional y cultura del servicio al colombiano. (Gerencia estratégica de atención al ciudadano)",null,"Plan Anticorrupción y de Atención al Ciudadano","Actividades de formación realizadas","Actividades de Formación ejecutadas / (n)*Actividades de Formación programadas.",1,"Porcentaje",null,0.2,0.2,0.2,0.2,0.2,"Gerencia del Talento Humano\nCoordinación de Desarrollo Integral del Talento Humano\nDelegados Departamentales\nRegistraduría del Distrito Capital","2020-04-01","2020-12-31"]
[null,"Gestión del Talento Humano","Permanencia del Talento Humano",17,"Formación en gestión del conocimiento y transmisión de saberes misionales, para recopilar, depurar, analizar, consolidar y transferir a los servidores activos y nuevos de la entidad la memoria de las prácticas operativas de los procesos misionales.",null,"Plan Anticorrupción y de Atención al Ciudadano","Actividades de formación realizadas","Actividades de Formación ejecutadas / (n)*Actividades de Formación programadas.",1,"Porcentaje",null,0.2,0.2,0.2,0.2,0.2,"Gerencia del Talento Humano\nCoordinación de Desarrollo Integral del Talento Humano\nDelegados Departamentales\nRegistraduría del Distrito Capital","2020-04-01","2020-12-31"]
[null,"Gestión del Talento Humano","Permanencia del Talento Humano",18,"Formación para afianzar las competencias organizacionales y fortalecer los conocimientos de los servidores que atienden las áreas misionales.",null,"Plan Anticorrupción y de Atención al Ciudadano","Actividades de formación realizadas","Actividades de Formación ejecutadas / (n)*Actividades de Formación programadas.",1,"Porcentaje",null,0.2,0.2,0.2,0.2,0.2,"Gerencia del Talento Humano\nCoordinación de Desarrollo Integral del Talento Humano\nDelegados Departamentales\nRegistraduría del Distrito Capital","2020-04-01","2020-12-31"]
[null,"Gestión del Talento Humano","Permanencia del Talento Humano",19,"Capacitación para fortalecer la política institucional de acceso a la información y protección de datos personales en temas misionales al interior de la entidad.",null,"Plan Anticorrupción y de Atención al Ciudadano","Actividades de formación realizadas","Actividades de Formación ejecutadas / (n)*Actividades de Formación programadas.",1,"Porcentaje",null,0.2,0.2,0.2,0.2,0.2,"Gerencia del Talento Humano\nCoordinación de Desarrollo Integral del Talento Humano\nDelegados Departamentales\nRegistraduría del Distrito Capital","2020-04-01","2020-12-31"]
[null,"Planeación y Direccionamiento Estratégico","Servicio al Colombiano",20,"Elaborar y socializar con el nivel directivo el informe bimestral de la encuesta de satisfacción de los colombianos con relación a los canales de atención.",null,"Plan Anticorrupción y de Atención al Ciudadano","Reportes de resultados de la encuesta elaborados y socializados con el nivel directivo.","informes elaborados y socializados con el nivel directivo. ",5,"Número",null,1,1,1,1,1,"Oficina de Planeación - Coordinación de Peticiones, Quejas y Reclamos.","2020-03-15","2020-12-31"]
[null,"Planeación y Direccionamiento Estratégico","Servicio al Colombiano",21,"Elaborar y socializar con el nivel directivo el informe bimestral de la encuesta de satisfacción a la atención de Peticiones, Quejas, Reclamos, Sugerencias, Denuncias y Consultas. ",null,"Plan Anticorrupción y de Atención al Ciudadano","Reportes de resultados de la encuesta elaborados y socializados con el nivel directivo.","Cantidad de informes elaborados y socializados con el nivel directivo. ",5,"Número",null,1,1,1,1,1,"Oficina de Planeación - Coordinación de Peticiones, Quejas y Reclamos.","2020-03-15","2020-12-31"]
[null,"Gestión de Comunicación  Pública y Estratégica","Comunicación Organizacional",22,"Desarrollar un Panel Administrador que permita generar en tiempo real resultados y estadísticas de las Encuestas de Atención a los Colombianos. ",null,"Plan Anticorrupción y de Atención al Ciudadano","Panel administrador de Encuestas de Satisfacción.","Panel administrador de Encuestas de Satisfacción programado/ Panel administrador de Encuestas de Satisfacción realizado.",1,"Número",null,null,null,null,null,1,"Oficina de Prensa y Comunicaciones.","La fecha de ejecución de esta actividad está pendiente de definición por parte de la Oficina de Prensa y Comunicaciones."]
[null,"Planeación y direccionamiento estratégico","Planeación de la Gestión Institucional",1,"Elaborar reporte del seguimiento al plan de acción institucional a nivel central y delegaciones último bimestre de 2019.",null,"N/A","Informe de seguimiento PAI ultimo bimestre","Cantidad de informes realizados ",1,"Número",1,null,null,null,null,null,"Oficina de Planeación","2020-01-08","2020-01-17"]
[null,"Registro Civil e Identificación","Registro y Actualización del Sistema",24,"Realizar atención preferencial a traves de la Unidad de Atención a Población Vulnerable -UDAPV- a los diferentes grupos poblaciones que por su condición de vulnerabilidad no pueden acceder a las oficinas de la Registraduría Nacional. ",null,"Plan Anticorrupción y de Atención al Ciudadano","Jornadas de Registro Civil e Identificación realizadas a través de la Unidad de Atención a Población Vulnerable -UDAPV.","Cantidad de jornadas de Registro Civil e Identificación programadas/ (n)*Cantidad de jornadas de Registro Civil e Identificación realizadas.",1,"Porcentaje",null,{"$f":"1/5","v":0.2},{"$f":"1/5","v":0.2},{"$f":"1/5","v":0.2},{"$f":"1/5","v":0.2},{"$f":"1/5","v":0.2},"Unidad de Atención a Población Vulnerable - UDAPV -Registraduría Delegada para el Registro Civil y la Identificación.","2020-03-01","2020-12-31"]
[null,"Gestión de Comunicación  Pública y Estratégica","Comunicación Organizacional",25,"Adecuar espacios de la página web en Lengua de Señas Colombiana-LSC para personas con discapacidad auditiva.",null,"Plan Anticorrupción y de Atención al Ciudadano","Página web con información disponible en Lengua de Señas Colombiana-LSC.","Cantidad de Mejoras programadas/ Cantidad de mejoras implementadas",1,"Porcentaje",null,null,null,null,0.5,0.5,"Oficina de Prensa y Comunicaciones","La fecha de ejecución de esta actividad está pendiente de definición por parte de la Oficina de Prensa y Comunicaciones."]
[null,"Registro Civil e Identificación","Registro y Actualización del Sistema",26,"Fortalecer la atención al colombiano a partir de capacitaciones que le permitan conocer a la población diferenciada y/o que su ubicación geográfica sea considerada como de dificil acceso  la importancia del registro civil.",null,"Plan Anticorrupción y de Atención al Ciudadano","Eventos de capacitación realzados a población diferenciada y/o en zonas de dificcil acceso","Cantidad de eventos de capacitación realizados.",18,"Número",null,null,null,null,9,9,"Dirección Nacional de Registro Civil - DNRC","2020-03-01","2020-12-31"]
[null,"Gestión del Talento Humano","Permanencia del Talento Humano",1,"Implementar el procedimiento de Evaluación de Desempeño Laboral de los Servidores Públicos de Carrera Administrativa o en Periodo de Prueba",null,"Plan de Estímulos - Plan Anual de Incentivos","Evaluación de Desempeño Laboral de los Servidores Públicos de Carrera Administrativa o en Periodo de Prueba de la sede central","Aplicación del sistema de evaluación del desempeño laboral a los servidores de carrera administrativa.",1,"Porcentaje",0.5,0.1,0.1,0.2,0.05,0.05,"Gerencia del Talento Humano - Grupo Carrera Administrativa Especial -Secretario Privado - Secretario General - Gerentes - Directores - Jefes de Oficina - Delegados Departamentales - Registradores Distritales - Registradores Especiales - Registradores Auxiliares - Registradores Municipales (si aplica)","2020-01-01","2020-12-31"]
[null,"Gestión del Talento Humano","Permanencia del talento humano",2,"Actualización del Registro Público de la Carrera",null,"N/A","Registro Público de la Carrera","Anotación en el registro público de los movimientos que afectan los derechos de carrera administrativa",1,"Porcentaje",0.2,0.2,0.2,0.2,0.1,0.1,"Gerencia del Talento Humano - Grupo de Carrera Administrativa - Registradores Distritales - Delegados Departamentales - Encargados del Talento Humano en cada Circunscripción.","2020-01-01","2020-12-31"]
[null,"Gestión del Talento Humano","Permanencia del Talento Humano",3,"Plan de trabajo anual del Sistema de Gestión de Seguridad y Salud en el Trabajo",null,"Sistema de Gestión de Seguridad y Salud en el Trabajo","Documento Sistema de Gestión de Seguridad y Salud en el Trabajo realizado","Documento aprobado y divulgado",1,"Número",1,null,null,null,null,null,"Coordinador Desarrollo Integral/ servidores del Sistema","2020-01-02","2020-02-29"]
[null,"Gestión del Talento Humano","Permanencia del Talento Humano",4,"Desarrollar las actividades del Sistema de Gestión de la Seguridad y Salud en el Trabajo SG-SST, verificando los avances y cumplimiento de las metas establecidas.",null,"Sistema de Gestión de Seguridad y Salud en el Trabajo","Actividades desarrolladas ","Porcentaje de cumplimiento de las actividades del Sistema de Gestión de Seguridad y Salud en el Trabajo SG-SST",1,"Porcentaje",0.1,0.2,0.2,0.25,0.15,0.1,"Coordinador Desarrollo Integral/ servidores del Sistema","2020-01-02","2020-12-31"]
[null,"Gestión del Talento Humano","Permanencia del Talento Humano",5,"Elaborar el Programa de Bienestar Social ",null,"Programa de Bienestar Social","Documento Programa de Bienestar Social realizado","Documento aprobado y divulgado",1,"Número",1,null,null,null,null,null,"Coordinador Desarrollo Integral/ servidores Bienestar Social","2020-01-02","2020-12-31"]
[null,"Gestión del Talento Humano","Permanencia del Talento Humano",6,"Desarrollar el Programa de Bienestar Social, verificando los avances y cumplimiento de las metas establecidas.",null,"Programa de Bienestar Social","Actividades desarrolladas ","Porcentaje de cumplimiento de las actividades de Bienestar Social",1,"Porcentaje",0.1,0.2,0.25,0.25,0.1,0.1,"Coordinador Desarrollo Integral/ servidores Bienestar Social","2020-01-02","2020-12-31"]
[null,"Gestión del Talento Humano","Permanencia del Talento Humano",7,"Elaborar el Plan Institucional de Formación y Capacitación",null,"Plan Institucional de Formación y Capacitación","Documento el Plan Institucional de Formación y Capacitación realizado","Documento aprobado y divulgado",1,"Número",0.3,0.7,null,null,null,null,"Coordinador Desarrollo Integral/ servidores Capacitación","2020-01-02","2020-04-30"]
[null,"Gestión del Talento Humano","Permanencia del Talento Humano",8,"Desarrollar las actividades del Plan Institucional de Formación y Capacitación, verificando los avances y cumplimiento de las metas establecidas.",null,"Plan Institucional de Formación y Capacitación","Capacitaciones realizadas\n","Porcentaje de cumplimiento de las actividades del Plan Institucional de Formación y Capacitación ",1,"Porcentaje",0.05,0.1,0.3,0.3,0.2,0.05,"Coordinador Desarrollo Integral/ servidores Capacitación","2020-01-02","2020-12-31"]
[null,"Gestión del Talento Humano","Permanencia del Talento Humano",9,"Elaborar el Plan de Estímulos",null,"Plan de Estímulos - Plan Anual de Incentivos","Documento Plan de Estimulos realizado","Documento aprobado y divulgado",1,"Número",0.5,0.5,null,null,null,null,"Coordinador Desarrollo Integral/ servidores RNEC","2020-01-02","2020-04-30"]
[null,"Gestión del Talento Humano","Permanencia del Talento Humano",10,"Desarrollar las actividades del Plan de Estímulos, verificando los avances y cumplimiento de las metas establecidas.",null,"Plan de Estímulos - Plan Anual de Incentivos","Actividades desarrolladas ","Porcentaje de cumplimiento de las actividades del Plan de Estímulos ",1,"Porcentaje",null,null,0.5,null,null,0.5,"Coordinador Desarrollo Integral/ servidores RNEC","2020-06-01","2020-12-31"]
[null,"Gestión del Talento Humano","Permanencia del Talento Humano",11,"Realizar la digitalización y cargue en el sistema de las Historias Laborales de los Servidores de la Planta de Personal.",null,"N/A","Hoja de Control","Número de hoja de control generadas.\n\nSede central= 180\nDesconcentrado= 706 (Monitoreo desde la sede central)",180,"Número",17,29,45,45,29,15,"Nivel Central:\nCoordinadora de Registro y Control \n\nNivel Desconcentrado:\nDelegados Departamentales y Registradores Distritales","2020-01-01","2020-12-31"]
[null,"Gestión del Talento Humano","Permanencia del Talento Humano",12,"Diligenciar el formato único de inventario documental de las Historias Laborales de Servidores Supernumerarios, vinculados en el 2019",null,"N/A","Formato Único de Inventario Documental","No. de Formatos Único de Inventario Documental - FUID diligenciados\n\nSede central: 1\nNivel desconcentrado: 33",34,"Número",0,11,8,7,8,0,"Nivel Central:\nCoordinadora de Registro y Control \n\nNivel Desconcentrado:\nDelegados Departamentales y Registradores Distritales","2020-03-01","2020-10-31"]
[null,"Gestión del Talento Humano","Permanencia del Talento Humano",13,"Realizar la transferencia al archivo central del inventario documental.",null,"N/A","Acta de entrega Trasferencia primaria.","No. de Actas e Historias Laborales entregadas al archivo central.\n\nSede central: 1\nNivel desconcentrado: 33",34,"Número",0,33,1,0,0,0,"Nivel Central:\nCoordinadora de Registro y Control \n\nNivel Desconcentrado:\nDelegados Departamentales y Registradores Distritales","2020-03-01","2020-06-30"]
[null,"Gestión del Talento Humano","Permanencia del Talento Humano",1,"Realizar la Gestión de la Asistencia Técnica con Apoyo Logístico.",null,"Plan Institucional de Formación y Capacitación","Capacitaciones realizadas\n","Cantidad  de Capacitaciones realizadas",9,"Número",0,0,3,3,1,2,"Gerencia del Talento Humano / Coordinadores supervisores de los contratos","2020-04-01","2020-12-31"]
[null,"Gestión del Talento Humano","Permanencia del Talento Humano",2,"Realizar actividades de la gestión del conocimiento y la transmisión de saberes.",null,"Plan Institucional de Formación y Capacitación","Capacitaciones realizadas\n","Cantidad  de Capacitaciones realizadas",2,"Número",0,0,0,1,1,0,"Gerencia del Talento Humano / Coordinadores supervisores de los contratos","2020-04-01","2020-12-31"]
[null,"Gestión del Talento Humano","Permanencia del Talento Humano",3,"Realizar actividades de formación en el afianzamiento  de las competencias y fortalecimiento de los conocimientos relacionados con los productos y servicios misionales a entregar.",null,"Plan Institucional de Formación y Capacitación","Capacitaciones realizadas\n","Cantidad  de Capacitaciones realizadas",3,"Número",0,0,1,1,1,0,"Gerencia del Talento Humano / Coordinador de Desarrollo Integral del Talento Humano","2020-04-01","2020-12-31"]
[null,"Gestión del Talento Humano","Permanencia del Talento Humano",4,"Fomentar la participación de los servidores de la R.N.E.C. en cursos, seminarios, congresos, diplomados y otros, en temas misionales de la Entidad a través de actividades de capacitación por demanda.",null,"Plan Institucional de Formación y Capacitación","Capacitaciones realizadas\n","Cantidad  de Capacitaciones realizadas",0.05,"Número",0,0,0,2,2,1,"Gerencia del Talento Humano / Coordinador de Desarrollo Integral del Talento Humano","2020-04-01","2020-12-31"]
[null,"Gestión del Talento Humano","Permanencia del Talento Humano",27,"Formación en técnicas de atención misional a grupos poblacionales. (Personas con discapacidad, enfoque étnico, ley de víctimas y restitución de tierras, mujeres y conflicto armado, niños, niñas y adolescentes, orientación sexual e identidad de género, personas mayores.)",null,"Plan Anticorrupción y de Atención al Ciudadano","Actividades de formación realizadas","Actividades de Formación ejecutadas / (n)*Actividades de Formación programadas.",1,"Porcentaje",null,{"$f":"1/5","v":0.2},{"$f":"1/5","v":0.2},{"$f":"1/5","v":0.2},{"$f":"1/5","v":0.2},{"$f":"1/5","v":0.2},"Gerencia del Talento Humano\nCoordinación de Desarrollo Integral del Talento Humano\nDelegados Departamentales\nRegistraduría del Distrito Capital","2020-04-01","2020-12-31"]
[null,"Gestión de Comunicación  Pública y Estratégica","Comunicación Organizacional",28,"Rediseñar la sección particular de Transparencia y  Acceso a la Información Pública",null,"Plan Anticorrupción y de Atención al Ciudadano","Sección de Transparencia  y Acceso a la Información Pública rediseñada en la pagina principal  de la Registraduría Nacional del Estado Civil.","Sección de Transparencia y Acceso a la información Pública para la ciudadania rediseñada",1,"Número",null,null,null,null,null,1,"Responsable: Oficina de Comunicaciones y Prensa\n\nParticipes: Oficina de Planeación\n","2020-11-01","2020-12-31"]
[null,"Planeación y Direccionamiento Estratégico","Planeación de la Gestión Institucional",2,"Realizar seguimiento a los acuerdos de gestión de los directivos del nivel central, Registradores Distritales, Delegados Departamentales y Registradores Especiales del segundo semestre  de 2019",null,"N/A","Reporte de seguimiento a los acuerdo de gestión","Cantidad de reportes realizados ",1,"Número",1,null,null,null,null,null,"Oficina de Planeación","2020-01-08"]
[null,"Gestión de Comunicación  Pública y Estratégica","Comunicación Organizacional",30,"Actualizar y publicar la información mínima obligatoria en el portal web de la Registraduría Nacional del Estado Civil para la vigencia 2019.",null,"Plan Anticorrupción y de Atención al Ciudadano","Información y contenidos actualizados y publicados en el portal web de la Registraduría Nacional del Estado Civil.\n\nRelacion de documentos actualizados y publicados en el portal web de la RNEC","Cantidad de documentos y/o contenidos publicados y actualizados en la página web./ (n)*Documentos y/o contenidos mínimos a actualizar y publicar.",1,"Porcentaje",{"$f":"1/6","v":0.16666666666666666},0.16666666666666666,0.16666666666666666,0.16666666666666666,0.16666666666666666,0.16666666666666666,"Responsable: Oficina de Prensa y Comunicaciones.\n\nPartícipes: todas las áreas responsables de la información.","1/01/2020\n","2020-12-31"]
[null,"Gestión Administrativa y Financiera","Gestión de los Recursos Físicos",31,"Actualizar el formulario de atención al ciudadano de la página web.",null,"Plan Anticorrupción y de Atención al Ciudadano","Modificación del Formulario ","Cantidad de ajustes solicitados/ Cantidad de ajustes realizados.",1,"Porcentaje",1,null,null,null,null,null,"Gerencia Adminitrativa y Financiera, Gerencia de informática y Oficina de Planeación","1/01/2020\n","29/02/2019"]
[null,"Registro Civil e Identificación","Registro y Actualización del Sistema",32,"Implementar las estrategias y acciones para fortalecer la política institucional de protección de datos personales.",null,"Plan Anticorrupción y de Atención al Ciudadano","Acciones y Estrategias implementadas en relación a la política institucional de protección de Datos Personales.","Informe sobre acciones y Estrategias implementadas elaborado.",1,"Número",null,null,null,null,null,1,"Registraduría Delegada para el Registro Civil y la Identificación.","2020-11-01","2020-12-31"]
[null,"Gestión de Comunicación  Pública y Estratégica","Comunicación Organizacional",33,"Publicar el Registro de publicaciones (Art.11, Lit. j, Ley 1712 de 2014  Art. 37 y 38, Decreto. 103 de 2015)",null,"Plan Anticorrupción y de Atención al Ciudadano","Registro de publicaciones que contenga los documentos publicados y automáticamente disponibles para su consulta y descarga en el portal web de la RNEC de conformidad con la Ley 1712 de 2014.","Cantidad de documentos registrados./(n)*(Cantidad de documentos publicados en el periodo)",1,"Porcentaje",{"$f":"1/6","v":0.16666666666666666},0.16666666666666666,0.16666666666666666,0.16666666666666666,0.16666666666666666,0.16666666666666666,"Oficina de Prensa y Comunicaciones","1/01/2020\n","2020-12-31"]
[null,"Gestión Jurídica","Representación Judicial",1,"Dar respuesta oportuna a las acciones de tutela, garantizando la defensa de los intereses de la Entidad.",null,"N/A","Tutelas respondidas","Cantidad de tutelas tramitados / ((n)*Cantidad de tutelas recibidos en el periodo)",1,"Porcentaje",0.16666666666666666,0.16666666666666666,0.16666666666666666,0.16666666666666666,0.16666666666666666,0.16666666666666666,"Coordinación de Tutelas","2020-01-14","2020-12-31"]
[null,"Gestión Jurídica","Representación Judicial",2,"Proyectar las impugnaciones contra los fallos adversos a la entidad cuando haya lugar.",null,"N/A","Impugnaciones realizadas"," Cantidad de impugnaciones tramitados / ((n)*Cantidad de impugnaciones recibidos en el periodo)",1,"Porcentaje",0.16666666666666666,0.16666666666666666,0.16666666666666666,0.16666666666666666,0.16666666666666666,0.16666666666666666,"Coordinación de Tutelas","2020-01-14","2020-12-31"]
[null,"Gestión Jurídica","Representación Judicial",3,"Realizar seguimiento a cumplimiento de fallos de tutela, evitando que se promuevan incidentes de desacato, por omisión de la Entidad.",null,"N/A","Fallos seguidos","Cantidad de fallos tramitados / ((n)*Cantidad de fallos recibidos en el periodo)",1,"Porcentaje",0.16666666666666666,0.16666666666666666,0.16666666666666666,0.16666666666666666,0.16666666666666666,0.16666666666666666,"Coordinación de Tutelas","2020-01-14","2020-12-31"]
[null,"Gestión Jurídica","Representación Judicial",4,"Ejercer apropiadamente la defensa de la Entidad en los procesos Judiciales, administrativos, conciliaciones extrajudiciales, casos contra la UGPP y demás que se adelanten contra ella.",null,"N/A","Actuaciones realizadas","Cantidad de actuaciones realizadas en periodo/((n)*(Cantidad de actuaciones programadas en el periodo))",1,"Porcentaje",0.16666666666666666,0.16666666666666666,0.16666666666666666,0.16666666666666666,0.16666666666666666,0.16666666666666666,"Coordinación de Defensa Judicial","2020-01-14","2020-12-31"]
[null,"Gestión Jurídica","Representación Judicial",5,"Dar respuesta clara, oportuna y de fondo a la diferentes consultas radicadas ante la oficina jurídica, de conformidad con los imperativos normativos que regulan cada caso en concreto. así mismo, prestar asesoría y apoyo a nivel desconcentrado para efectos de ejercer la defensa dentro de los procesos judiciales y administrativos, así como velar y atender otros temas de interés que puedan afectar a la Entidad.",null,"N/A","Consultas respondidas","Cantidad de consultas tramitados /((n)*Cantidad de consultas recibidos en el periodo)",1,"Porcentaje",0.16666666666666666,0.16666666666666666,0.16666666666666666,0.16666666666666666,0.16666666666666666,0.16666666666666666,"Coordinación de Defensa Judicial","2020-01-14","2020-12-31"]
[null,"Gestión Jurídica","Representación Judicial",6,"Realizar seguimiento a todos los procesos judiciales cuya competencia este asignada a las delegaciones departamentales, de conformidad con el reporte de procesos judiciales que realizan periódicamente dichas delegaciones.",null,"N/A","Cuadro de Control al día","Cantidad de informes tramitados / ((n)*Cantidad de informes recibidos en el periodo)",12,"Número",2,2,2,2,2,2,"Coordinación de Defensa Judicial","2020-01-14","2020-12-31"]
[null,"Gestión Jurídica","Representación Judicial",7,"Sustanciar algunas resoluciones de competencia del Señor Registrador Nacional, como: segundas instancias disciplinarios, segundas instancias imposición sanciones a jurados de votación del Distrito, trámites Ley moralidad administrativa etc. ",null,"N/A","Actos Administrativos ","Cantidad de actos tramitados / ((n)*Cantidad de Actos Administrativos recibidos en el periodo)",1,"Porcentaje",{"$f":"1/6","v":0.16666666666666666},0.16666666666666666,0.16666666666666666,0.16666666666666666,0.16666666666666666,0.16666666666666666,"Coordinación de Defensa Judicial","2020-01-14","2020-12-31"]
[null,"Gestión Jurídica","Representación Judicial",8,"Seguimiento de cumplimiento sentencias condenatorias.",null,"N/A","Seguimiento a sentecias condenatorias","Cantidad de actualizaciones tramitados /((n)*Cantidad de Actualizaciones recibidos en el periodo)",1,"Porcentaje",0.16666666666666666,0.16666666666666666,0.16666666666666666,0.16666666666666666,0.16666666666666666,0.16666666666666666,"Coordinación de Defensa Judicial","2020-01-14","2020-12-31"]
[null,"Gestión Jurídica","Representación Judicial",9,"Verificar lo atinente a las provisiones contables con ocasión de la adopción del método que para el efecto maneja la Agencia Nacional de Defensa Jurídica del Estado.",null,"N/A","Cuadro de provisiones contables","Cantidad de actualizaciones tramitados / ((n)*Cantidad de Actualizaciones recibidos en el periodo)",12,"Número",2,2,2,2,2,2,"Coordinación de Defensa Judicial","2020-01-14","2020-12-31"]
[null,"Gestión Jurídica","Representación Judicial",10,"Realizar seguimiento en la elaboración de los documentos técnicos de celebrar o no un acuerdo conciliatorio y lo pertinente en la procedencia del medio de control de repetición",null,"N/A","Actas","Cantidad de actas tramitados / ((n)*Cantidad de solicitudes totales de actas para el periodo)",1,"Porcentaje",{"$f":"1/6","v":0.16666666666666666},0.16666666666666666,0.16666666666666666,0.16666666666666666,0.16666666666666666,0.16666666666666666,"Comité de Conciliación y Defensa Judicial","2020-01-14","2020-12-31"]
[null,"Gestión Jurídica","Representación Judicial",11,"Elaborar constancias y actas del Comité para la atención de diligencias prejudiciales y judiciales a Nivel Nacional y seguimientos.",null,"N/A","Actas y Constancias","Cantidad de actas tramitados / ((n)*Cantidad de solicitudes totales de actas para el periodo)",1,"Porcentaje",0.16666666666666666,0.16666666666666666,0.16666666666666666,0.16666666666666666,0.16666666666666666,0.16666666666666666,"Comité de Conciliación y Defensa Judicial","2020-01-14","2020-12-31"]
[null,"Gestión Jurídica","Representación Judicial",12,"Recopilar y clasificar información para la elaboración de informes a la PGN.",null,"N/A","Informes enviados a la PGN ","Cantidad de informes tramitados / ((n)*Cantidad de solicitudes totales en el periodo)",1,"Porcentaje",0.16666666666666666,0.16666666666666666,0.16666666666666666,0.16666666666666666,0.16666666666666666,0.16666666666666666,"Comité de Conciliación y Defensa Judicial","2020-01-14","2020-12-31"]
[null,"Gestión Jurídica","Representación Judicial",13,"Apoyar la formulación de las Políticas de Defensa judicial",null,"N/A","Políticas formuladas","Política",1,"Porcentaje",0.16666666666666666,0.16666666666666666,0.16666666666666666,0.16666666666666666,0.16666666666666666,0.16666666666666666,"Comité de Conciliación y Defensa Judicial","2020-01-14","2020-12-31"]
[null,"Gestión Jurídica","Representación Judicial",14,"Realizar seguimiento y control de los casos de conciliación a Nivel Nacional",null,"N/A","Seguimientos realidos a casos de consiliación","Cantidad de casos con seguimiento / ((n)*Cantidad de casos recibidos en el periodo)",1,"Porcentaje",0.16666666666666666,0.16666666666666666,0.16666666666666666,0.16666666666666666,0.16666666666666666,0.16666666666666666,"Comité de Conciliación y Defensa Judicial","2020-01-14","2020-12-31"]
[null,"Gestión Jurídica","Representación Judicial",15,"Dar directrices en materia de Conciliación ",null,"N/A","Documentos de directrices","Cantidad de directrices",1,"Porcentaje",0.16666666666666666,0.16666666666666666,0.16666666666666666,0.16666666666666666,0.16666666666666666,0.16666666666666666,"Comité de Conciliación y Defensa Judicial","2020-01-14","2020-12-31"]
[null,"Gestión Jurídica","Representación Judicial",16,"Seguimiento a las Políticas de Prevención del Daño Antijurídico del año 2020",null,"N/A","Seguimiento realizado a las  Políticas de Prevención del Daño Antijurídico del año 2020","Seguimiento realizado",1,"Porcentaje",0.16666666666666666,0.16666666666666666,0.16666666666666666,0.16666666666666666,0.16666666666666666,0.16666666666666666,"Comité de Conciliación y Defensa Judicial","2020-01-14","2020-12-31"]
[null,"Gestión Jurídica","Representación Judicial",17,"Realizar vigilancia, seguimiento y control del Procedimiento Administrativo Sancionatorio a través del Módulo Registradores",null,"N/A","Seguimientos realizados a los procedimientos administrativos sancionatorios a través del módulo registradores","Reporte del Aplicativo",1,"Porcentaje",0.16666666666666666,0.16666666666666666,0.16666666666666666,0.16666666666666666,0.16666666666666666,0.16666666666666666,"Coordinación de Cobro Coactivo","2020-01-14","2020-12-31"]
[null,"Gestión Jurídica","Representación Judicial",18,"Realizar vigilancia, seguimiento y control a través del del Aplicativo de Cobros Coactivos (procesos).",null,"N/A","Seguimiento realizado a cobros coaccivos","Reporte del Aplicativo",1,"Número",0.16666666666666666,0.16666666666666666,0.16666666666666666,0.16666666666666666,0.16666666666666666,0.16666666666666666,"Coordinación de Cobro Coactivo","2020-01-14","2020-12-31"]
[null,"Gestión Jurídica","Representación Judicial",19,"Impulsar los procesos de Cobros Coactivos, generando un efectivo recaudo.",null,"N/A","Oficios de actuaciones procesales","Cantidad de procesos impulsados / ((n)*Cantidad de procesos atendidos en el peridos)",1,"Porcentaje",0.16666666666666666,0.16666666666666666,0.16666666666666666,0.16666666666666666,0.16666666666666666,0.16666666666666666,"Coordinación de Cobro Coactivo","2020-01-14","2020-12-31"]
[null,"Gestión Jurídica","Representación Judicial",20,"Realizar supervisión del Contrato Interadministrativo Marco de Compraventa de Cartera CM-041-2017 y de sus actas de incorporación.",null,"N/A","Supervisión","(Cantidad de solicitudes atendidad en el periodo) / ((n)*Cantidad de solciitudes recibidas en el periodo)",1,"Porcentaje",0.16666666666666666,0.16666666666666666,0.16666666666666666,0.16666666666666666,0.16666666666666666,0.16666666666666666,"Coordinación de Cobro Coactivo","2020-01-14","2020-12-31"]
[null,"Gestión Jurídica","Representación Judicial",21,"Reporte de novedades de los Procesos de Cobro Coactivo a la Dirección Financiera de manera mensual.",null,"N/A","Novedades reportadas de procesos de cobros coacctivos","Cantidad de informes remitidos",12,"Número",2,2,2,2,2,2,"Coordinación de Cobro Coactivo","2020-01-14","2020-12-31"]
[null,"Gestión Jurídica","Representación Judicial",22,"Conciliar los ingresos reportados por las diferentes Entidades Bancarias de los Procesos de Cobro Coactivo de manera mensual.",null,"N/A","Conciliaciones realizadas en proceso de cobros coacctivos","Cantidad de informes remitidos",12,"Número",2,2,2,2,2,2,"Coordinación de Cobro Coactivo","2020-01-14","2020-12-31"]
[null,"Gestión Administrativa y Financiera","Gestión Contractual",23,"Atender en el marco de sus competencias  la gestión relativa a la contratación administrativa de la RNEC y el FRR.",null,"N/A","Minutas, modificaciones y liquidaciones suscritas.","Cantidad de Minutas, modificaciones y liquidaciones suscritas.",1,"Porcentaje",0.16666666666666666,0.16666666666666666,0.16666666666666666,0.16666666666666666,0.16666666666666666,0.16666666666666666,"Coordinación de Contratos","2020-01-14","2020-12-31"]
[null,"Gestión Administrativa y Financiera","Gestión Contractual",24,"Atender las posibles imposiciones de multas, sanciones y declaratorias de incumplimiento que se remitan y sean competencia de la oficina jurídica. ",null,"N/A","Multas, sanciones o declaratorias de incumplimiento","Cantidad de multas, sanciones o declaratorias de incumplimiento",1,"Porcentaje",0.16666666666666666,0.16666666666666666,0.16666666666666666,0.16666666666666666,0.16666666666666666,0.16666666666666666,"Coordinación de Contratos","2020-01-14","2020-12-31"]
[null,"Gestión Tecnológica de la Información y las Comunicaciones",null,34,"Actualizar, consolidar y publicar el Registro de Activos de la información, el índice de información clasificada y reservada y el esquema de publicación de la información . ",null,"Plan Anticorrupción y de Atención al Ciudadano","Registro de activos de información actualizado con la siguiente información y criterios: \n1- En formato Excel y disponible en datos abiertos.\n2- listado de todas las categorías de la información publicadas y disponibles de la RNEC. \n3- Características generales: Nombre o título de la categoría de información. descripción del contenido, fecha e idioma, Medio de conservación (físico, análogo y/o digital).\n-Formato (hoja de cálculo, imagen, audio, video, documento de texto, etc.).\n4-  Todo registro disponible para ser solicitado por el público.\n\nÍndice de información clasificada y reservada actualizada con base en los siguientes elementos: \n1- Características generales de los documentos clasificados y reservados.\n2- Nombre y categoría del documento clasificado y reservado.\n3- Motivos o fundamentos de la clasificación o la reserva - motivación y la individualización del acto en que conste tal calificación. Fundamento constitucional o legal.\nFundamento jurídico de la excepción; Excepción total o parcial.\n4- En formato Excel y disponible en datos abiertos.\n5- Idioma.\n6- Medio de conservación (físico, análogo y/o digital).\n7- Fecha de generación de la información.\n8- Nombre del responsable de la información.\n9- Objetivo legítimo de la excepción.\n10- Fecha de la calificación.\n11- Plazo de clasificación o reserva\n\nEsquema de publicación de la información publicado y actualizado como mínimo con los siguientes criterios e  información: \n1- Lista de la información publicada en el sitio web.\n2- Identificación de las clases de información que la RNEC publicará de manera proactiva y que en todo caso deberá comprender la información mínima obligatoria.\n2- Características Generales de la información publicada o a publicar.\n3- Periodicidad de la información a divulgar.\n4- Criterios generales de publicación de la información\n5-  Los cuadros de clasificación documental que faciliten la consulta de los documentos públicos que se conservan en los archivos de la RNEC, de acuerdo con la reglamentación establecida por el Archivo General de la Nación.\n6- Característica de la Información y Formatos en los que se encuentra la información. \n7- adelantar un procedimiento participativo para la adopción y actualización del Esquema de Publicación, con mecanismos de consulta a ciudadanos, interesados y usuarios en los procesos de adopción y actualización del Esquema de Publicación.\n","1 Registro de activos actualizado y publicado, 1 Índice de información clasificada y reservada publicado  y 1 Esquema de Publicación de la Información actualizado y publicado",3,"Número",null,null,null,3,null,null,"Registro de activos de información: Responsables de la consolidación:  Gerencia de Informática.\n\nResponsables de la publicación: Oficina de Prensa y Comunicaciones\n\nResponsables de la actualización:  Registraduría Delegada para el Registro Civil y la Identificación, Registraduría Delegada en lo Electoral, Gerencia Administrativa y Financiera\nGerencia de Informática, Gerencia de Talento Humano, Oficina de Planeación, Oficina de Control Disciplinario, Oficina de Prensa y Comunicaciones y todas las demás áreas con activos de información.\n\nÍndice de Información clasificada y Reservada: Oficina Jurídica.\n\n\nEsquema de publicación de la información:  Oficina de Prensa y Comunicaciones.","2020-07-01","2020-08-31"]
[null,"Gestión Tecnológica de la Información y las Comunicaciones","Gestión de Infraestructura Tecnológica",1,"Monitorear permanente a la infraestructura del Centro de Computo.",null,"Plan Estratégico de Tecnológias de la Información y las comunicaciónes PETI","Informes de monitoreo.","Cantidad de Informes  de operación Presentados.",12,"Número",2,2,2,2,2,2,"Coordinador Grupo Administracion e Infraestructura Tecnológica.","2020-01-01","2020-12-31"]
[null,"Gestión Tecnológica de la Información y las Comunicaciones","Gestión de Infraestructura Tecnológica",2,"Realizar los mantenimientos a los dispositivos tecnológicos",null,"Plan Estratégico de Tecnológias de la Información y las comunicaciónes PETI","Informes De Operación","Cantidad de Informes  de operación Presentados.",12,"Número",2,2,2,2,2,2,"Coordinador Grupo Administracion e Infraestructura Tecnológica.","2020-01-01","2020-12-31"]
[null,"Gestión Tecnológica de la Información y las Comunicaciones","Gestión de Infraestructura Tecnológica",3,"Realizar copias de respaldo periódicas de conformidad con los requerimientos, así como su almacenamiento y custodia",null,"Plan Estratégico de Tecnológias de la Información y las comunicaciónes PETI","Informes De ejecución.","Cantidad de Informes  de operación Presentados.",12,"Número",2,2,2,2,2,2,"Coordinador Grupo Administracion e Infraestructura Tecnológica.","2020-01-01","2020-12-31"]
[null,"Gestión Tecnológica de la Información y las Comunicaciones","Gestión de Infraestructura Tecnológica",4,"Monitorear  el Data Center Alterno que salvaguarda la información operativa y misional de la entidad para garantizar su operación. ",null,"Plan Estratégico de Tecnológias de la Información y las comunicaciónes PETI","Informes de monitoreo.","Cantidad de Informes  de operación Presentados.",12,"Número",2,2,2,2,2,2,"Coordinador Grupo Administracion e Infraestructura Tecnológica.","2020-01-01","2020-12-31"]
[null,"Gestión Tecnológica de la Información y las Comunicaciones","Gestión de Infraestructura Tecnológica",5,"Administrar y monitorear la operación del canal principal y de respaldo de la sede CAN.",null,"Plan Estratégico de Tecnológias de la Información y las comunicaciónes PETI","Informes De ejecución.","Informes  de operación Presentados.",12,"Número",2,2,2,2,2,2,"Coordinador Grupo Administracion e Infraestructura Tecnológica.","2020-01-01","2020-12-31"]
[null,"Gestión Tecnológica de la Información y las Comunicaciones","Gestión de Infraestructura Tecnológica",6,"Administrar los recursos compartidos en servidores virtuales.",null,"Plan Estratégico de Tecnológias de la Información y las comunicaciónes PETI","Disponibilidad del sistema de respaldo de servidores virtuales","Tiempo disponible/(n)*Tiempo Esperado",1,"Porcentaje",{"$f":"1/6","v":0.16666666666666666},0.16666666666666666,0.16666666666666666,0.16666666666666666,0.16666666666666666,0.16666666666666666,"Coordinador Grupo Administracion e Infraestructura Tecnológica.","2020-01-01","2020-12-31"]
[null,"Gestión Tecnológica de la Información y las Comunicaciones","Gestión de Infraestructura Tecnológica",7,"Administrar los servicios de infraestructura tecnológica que brinda la entidad para su permanente operación.",null,"Plan Estratégico de Tecnológias de la Información y las comunicaciónes PETI","Disponibilidad de los servicios","Informes  de operación Presentados.",12,"Número",2,2,2,2,2,2,"Coordinador Grupo Administracion e Infraestructura Tecnológica.","2020-01-01","2020-12-31"]
[null,"Gestión Tecnológica de la Información y las Comunicaciones","Gestión de Infraestructura Tecnológica",8,"Administrar los esquemas de seguridad con los que cuenta el Centro de Computo para las áreas restringidas",null,"Plan Estratégico de Tecnológias de la Información y las comunicaciónes PETI","Cantidad de Informes generados durante cada periodo","Informes  de operación Presentados.",12,"Número",2,2,2,2,2,2,"Coordinador Grupo Administracion e Infraestructura Tecnológica.","2020-01-01","2020-12-31"]
[null,"Gestión Tecnológica de la Información y las Comunicaciones","Gestión de Infraestructura Tecnológica",9,"Diseñar y elaborar el Plan Estrategico de Tecnológias de la Información y las Comunicaciones PETI para la Entidad.",null,"Plan Estratégico de Tecnológias de la Información y las comunicaciónes PETI","Documento PETI","Informes de avances generados",6,"Número",1,1,1,1,1,1,"Coordinador Grupo Integración y Gestón.","2020-01-01","2020-12-31"]
[null,"Gestión Tecnológica de la Información y las Comunicaciones","Gestión de Software",1,"Atender los requerimientos de desarrollo de software y analizar la viabilidad para desarrollo in house o adquisición de los mismos.",null,"Plan Estratégico de Tecnológias de la Información y las comunicaciónes PETI","Porcentaje de disponibilidad de requerimientos","Requerimientos atendidos/(n)*Requerimeintos esperados",1,"Porcentaje",0,0.2,0.2,0.2,0.2,0.2,"Coordinador Grupo Desarrollo y Programación.","2020-01-01","2020-12-31"]
[null,"Gestión Tecnológica de la Información y las Comunicaciones","Gestión de Software",2,"Mantener operativo y actualizado los aplicativos que hacen parte de la operación y los temas misionales.",null,"Plan Estratégico de Tecnológias de la Información y las comunicaciónes PETI","Informes generados ","Informes  de operación Presentados.",12,"Número",2,2,2,2,2,2,"Coordinador Grupo Desarrollo y Programación.","2020-01-01","2020-12-31"]
[null,"Gestión Tecnológica de la Información y las Comunicaciones","Gestión de Software",3,"Verificar la ejecución de los mantenimientos y actualizaciones de software adquirido a terceros. ",null,"Plan Estratégico de Tecnológias de la Información y las comunicaciónes PETI","Informes generados ","Matenimiento realizados/(n)*Matenimientos programados",1,"Número",0,0.2,0.2,0.2,0.2,0.2,"Coordinador Grupo Desarrollo y Programación.","2020-01-01","2020-12-31"]
[null,"Gestión Tecnológica de la Información y las Comunicaciones","Soporte Técnico",1," Atender los requerimientos e incidentes asociados a los servicios de software.",null,"Plan Estratégico de Tecnológias de la Información y las comunicaciónes PETI","Porcentaje de Cumplimiento de Niveles de Servicio en Incidentes por Prioridad Para el Total de Reportes. ","Requerimientos atendidos/(n)*Requerimeintos solicitados",1,"Porcentaje",{"$f":"1/6","v":0.16666666666666666},0.16666666666666666,0.16666666666666666,0.16666666666666666,0.16666666666666666,0.16666666666666666,"Coordinador Grupo Desarrollo y Programación.","2020-01-01","2020-12-31"]
[null,"Gestión Tecnológica de la Información y las Comunicaciones","Soporte Técnico",2,"Atender los requerimientos presentados por usuarios para la prestación del servicio ANI-PMT",null,"Plan Estratégico de Tecnológias de la Información y las comunicaciónes PETI","Porcentaje de Cumplimiento de Niveles de Servicio por Prioridad Para el Total de Reportes. ","Requerimientos atendidos/(n)*Requerimeintos solicitados",1,"Porcentaje",0.16666666666666666,0.16666666666666666,0.16666666666666666,0.16666666666666666,0.16666666666666666,0.16666666666666666,"Coordinador Grupo Soporte Técnico para el Registro Civil y la Identificación","2020-01-01","2020-12-31"]
[null,"Gestión Tecnológica de la Información y las Comunicaciones","Soporte Técnico",3,"Atender los requerimientos ofimáticos y de hardware  recibidos a través de línea de atención y correo electrónico e la RNEC.",null,"Plan Estratégico de Tecnológias de la Información y las comunicaciónes PETI","Porcentaje de Cumplimiento de Niveles de Servicio por Prioridad Para el Total de Reportes.","Requerimientos atendidos/(n)*Requerimeintos solicitados",1,"Porcentaje",0.16666666666666666,0.16666666666666666,0.16666666666666666,0.16666666666666666,0.16666666666666666,0.16666666666666666,"Coordinador Grupo Soporte Técnico y Telecomunicaciones.","2020-01-01","2020-12-31"]
[null,"Gestión Tecnológica de la Información y las Comunicaciones","Proyecto: Fortalecimiento de la Red Corporativa de Telecomunicaciones - PMT, Electoral y Administrativa Nacional",1,"Mantener las capacidades y soporte de los servicios.",null,"Plan Estratégico de Tecnológias de la Información y las comunicaciónes PETI","Índice de capacidad en la prestación de servicios de tecnología","Informes de Operación Presentados.",12,"Número",2,2,2,2,2,2,"Coordinador Grupo Administracion e Infraestructura Tecnológica.","2020-01-01","2020-12-31"]
[null,"Gestión Tecnológica de la Información y las Comunicaciones","Proyecto: Fortalecimiento de la Red Corporativa de Telecomunicaciones - PMT, Electoral y Administrativa Nacional",2,"Operar servicios tecnológicos con terceros.",null,"Plan Estratégico de Tecnológias de la Información y las comunicaciónes PETI","Índice de capacidad en la prestación de servicios de tecnología","Informes de Operación Presentados.",12,"Número",2,2,2,2,2,2,"Coordinador Grupo Administracion e Infraestructura Tecnológica.","2020-01-01","2020-12-31"]
[null,"Gestión Tecnológica de la Información y las Comunicaciones","Proyecto: Fortalecimiento de la Red Corporativa de Telecomunicaciones - PMT, Electoral y Administrativa Nacional",3,"Realizar soporte y mantenimiento de los servicios tecnológicos.",null,"Plan Estratégico de Tecnológias de la Información y las comunicaciónes PETI","Porcentaje de Disponibilidad de Conectividad Nacional","Tiempo disponible/(n)*Tiempo Esperado",1,"Porcentaje",{"$f":"1/6","v":0.16666666666666666},0.16666666666666666,0.16666666666666666,0.16666666666666666,0.16666666666666666,0.16666666666666666,"Coordinador Grupo Administracion e Infraestructura Tecnológica.","2020-01-01","2020-12-31"]
[null,"Gestión Tecnológica de la Información y las Comunicaciones","Proyecto: Fortalecimiento de la Red Corporativa de Telecomunicaciones - PMT, Electoral y Administrativa Nacional",4,"Realizar instalaciones para mejorar la infraestructura tecnológica",null,"Plan Estratégico de Tecnológias de la Información y las comunicaciónes PETI","Porcentaje de Disponibilidad de Conectividad Nacional","Tiempo disponible/(n)*Tiempo Esperado",1,"Porcentaje",0.16666666666666666,0.16666666666666666,0.16666666666666666,0.16666666666666666,0.16666666666666666,0.16666666666666666,"Coordinador Grupo Administracion e Infraestructura Tecnológica.","2020-01-01","2020-12-31"]
[null,"Gestión Tecnológica de la Información y las Comunicaciones","Proyecto: Fortalecimiento del servicio del Sistema del Archivo Nacional de Identificación ANI y Sistemas conexos Nacional",1,"Fortalecer la capacidad de la infraestructura tecnológica para garantizar alta disponibilidad  ",null,"Plan Estratégico de Tecnológias de la Información y las comunicaciónes PETI","Índice de capacidad en la prestación de servicios de tecnología","Informes  de seguimiento Presentados.",12,"Número",2,2,2,2,2,2,"Coordinador Grupo Soporte Técnico para el Registro Civil y la Identificación","2020-01-01","2020-12-31"]
[null,"Gestión Tecnológica de la Información y las Comunicaciones","Proyecto: Fortalecimiento del servicio del Sistema del Archivo Nacional de Identificación ANI y Sistemas conexos Nacional",2,"Fortalecer las herramientas de seguridad, privacidad y trazabilidad",null,"Plan Estratégico de Tecnológias de la Información y las comunicaciónes PETI","Índice de capacidad en la prestación de servicios de tecnología","Informes  de seguimiento Presentados.",12,"Número",2,2,2,2,2,2,"Coordinador Grupo Soporte Técnico para el Registro Civil y la Identificación","2020-01-01","2020-12-31"]
[null,"Gestión Tecnológica de la Información y las Comunicaciones","Proyecto: Fortalecimiento del servicio del Sistema del Archivo Nacional de Identificación ANI y Sistemas conexos Nacional",3,"Fortalecer los servicios de interoperabilidad con sistemas de información internos y externos con terceros",null,"Plan Estratégico de Tecnológias de la Información y las comunicaciónes PETI","Índice de capacidad en la prestación de servicios de tecnología","Informes  de seguimiento Presentados.",12,"Número",2,2,2,2,2,2,"Coordinador Grupo Soporte Técnico para el Registro Civil y la Identificación","2020-01-01","2020-12-31"]
[null,"Gestión Tecnológica de la Información y las Comunicaciones","Proyecto: Fortalecimiento del servicio del Sistema del Archivo Nacional de Identificación ANI y Sistemas conexos Nacional",4,"Implementar mecanismos de control para la operación y continuidad de los Servicios Tecnológicos",null,"Plan Estratégico de Tecnológias de la Información y las comunicaciónes PETI","Índice de capacidad en la prestación de servicios de tecnología","Informes  de seguimiento Presentados.",12,"Número",2,2,2,2,2,2,"Coordinador Grupo Soporte Técnico para el Registro Civil y la Identificación","2020-01-01","2020-12-31"]
[null,"Gestión Tecnológica de la Información y las Comunicaciones","Proyecto: Fortalecimiento del servicio del Sistema del Archivo Nacional de Identificación ANI y Sistemas conexos Nacional",5,"Mantener las capacidades y soporte de los servicios.",null,"Plan Estratégico de Tecnológias de la Información y las comunicaciónes PETI","Índice de capacidad en la prestación de servicios de tecnología","Informes  de seguimiento Presentados.",12,"Número",2,2,2,2,2,2,"Coordinador Grupo Soporte Técnico para el Registro Civil y la Identificación","2020-01-01","2020-12-31"]
[null,"Gestión Tecnológica de la Información y las Comunicaciones","Proyecto: Fortalecimiento del servicio del Sistema del Archivo Nacional de Identificación ANI y Sistemas conexos Nacional",6,"Realizar soporte y mantenimiento de los servicios tecnológicos",null,"Plan Estratégico de Tecnológias de la Información y las comunicaciónes PETI","Índice de capacidad en la prestación de servicios de tecnología","Informes  de seguimiento Presentados.",12,"Número",2,2,2,2,2,2,"Coordinador Grupo Soporte Técnico para el Registro Civil y la Identificación","2020-01-01","2020-12-31"]
[null,"Gestión Tecnológica de la Información y las Comunicaciones","Proyecto: Mejoramiento de la Red Eléctrica y de Comunicaciones a Nivel Nacional",1,"Implementar infraestructuras lógicas y  eléctricas seguras en las sedes de la Registraduria ",null,"Plan Estratégico de Tecnológias de la Información y las comunicaciónes PETI","Índice de capacidad en la prestación de servicios de tecnología","Puntos instalados/(n)*Puntos por instalar",1,"Porcentaje",{"$f":"1/6","v":0.16666666666666666},0.16666666666666666,0.16666666666666666,0.16666666666666666,0.16666666666666666,0.16666666666666666,"Coordinador Grupo Soporte Técnico y Telecomunicaciones.","2020-01-01","2020-12-31"]
[null,"Gestión Tecnológica de la Información y las Comunicaciones","Proyecto: Mejoramiento de la Red Eléctrica y de Comunicaciones a Nivel Nacional",2,"Efectuar instalaciones de elementos de protección tecnológica complementarios en la red.",null,"Plan Estratégico de Tecnológias de la Información y las comunicaciónes PETI","Índice de capacidad en la prestación de servicios de tecnología","Elementos de protección instalados/(n)*Elementos de protección por instalar",1,"Porcentaje",0.16666666666666666,0.16666666666666666,0.16666666666666666,0.16666666666666666,0.16666666666666666,0.16666666666666666,"Coordinador Grupo Soporte Técnico y Telecomunicaciones.","2020-01-01","2020-12-31"]
[null,"Gestión Tecnológica de la Información y las Comunicaciones","Proyecto: Servicio de respaldo de los sistemas de información de procesos de identificación, electorales y administrativos a nivel Nacional",1,"Disponer del servicio de datacenter para el respaldo de la información tecnológica implementada.",null,"Plan Estratégico de Tecnológias de la Información y las comunicaciónes PETI","Índice de capacidad en la prestación de servicios de tecnología","Informes  de operación Presentados.",12,"Número",2,2,2,2,2,2,"Coordinador Grupo Administracion e Infraestructura Tecnológica.","2020-01-01","2020-12-31"]
[null,"Gestión Tecnológica de la Información y las Comunicaciones","Proyecto: Servicio de respaldo de los sistemas de información de procesos de identificación, electorales y administrativos a nivel Nacional",2,"Implementar servicios tecnológicos de software y hardware de respaldo.",null,"Plan Estratégico de Tecnológias de la Información y las comunicaciónes PETI","Índice de capacidad en la prestación de servicios de tecnología","Informes  de operación Presentados.",12,"Número",2,2,2,2,2,2,"Coordinador Grupo Administracion e Infraestructura Tecnológica.","2020-01-01","2020-12-31"]
[null,"Gestión Tecnológica de la Información y las Comunicaciones","Proyecto: Servicio de respaldo de los sistemas de información de procesos de identificación, electorales y administrativos a nivel Nacional",3,"Proveer plataforma tecnológica de comunicaciones.",null,"Plan Estratégico de Tecnológias de la Información y las comunicaciónes PETI","Índice de capacidad en la prestación de servicios de tecnología","Informes  de operación Presentados.",12,"Número",2,2,2,2,2,2,"Coordinador Grupo Administracion e Infraestructura Tecnológica.","2020-01-01","2020-12-31"]
[null,"Gestión Tecnológica de la Información y las Comunicaciones","Proyecto: Servicio de respaldo de los sistemas de información de procesos de identificación, electorales y administrativos a nivel Nacional",4,"Implementar la infraestructura tecnológica en seguridad informática.",null,"Plan Estratégico de Tecnológias de la Información y las comunicaciónes PETI","Índice de capacidad en la prestación de servicios de tecnología","Informes  de operación Presentados.",12,"Número",2,2,2,2,2,2,"Coordinador Grupo Administracion e Infraestructura Tecnológica.","2020-01-01","2020-12-31"]
[null,"Gestión Tecnológica de la Información y las Comunicaciones","Proyecto: Servicio de respaldo de los sistemas de información de procesos de identificación, electorales y administrativos a nivel Nacional",5,"Realizar soporte y mantenimiento de los servicios tecnológicos.",null,"Plan Estratégico de Tecnológias de la Información y las comunicaciónes PETI","Índice de capacidad en la prestación de servicios de tecnología","Informes  de operación Presentados.",12,"Número",2,2,2,2,2,2,"Coordinador Grupo Administracion e Infraestructura Tecnológica.","2020-01-01","2020-12-31"]
[null,"Gestión Tecnológica de la Información y las Comunicaciones","Proyecto: Mejoramiento y renovación de la infraestructura tecnológica para la Registraduría Nacional del Estado Civil Nacional",1,"Fortalecer la infraestructura de Hardware.",null,"Plan Estratégico de Tecnológias de la Información y las comunicaciónes PETI","Índice de capacidad en la prestación de servicios de tecnología","Cantidad de Eqipos entregados/(n)*Cantidad de Equipos adquiridos",1,"Porcentaje",null,null,null,0.2,0.4,0.4,"Coordinador Grupo Administracion e Infraestructura Tecnológica.","2020-01-01","2020-12-31"]
[null,"Gestión Tecnológica de la Información y las Comunicaciones","Proyecto: Mejoramiento y renovación de la infraestructura tecnológica para la Registraduría Nacional del Estado Civil Nacional",2,"Gestionar la adquisición y renovación  de licenciamiento  para servicios tecnológicos",null,"Plan Estratégico de Tecnológias de la Información y las comunicaciónes PETI","Índice de capacidad en la prestación de servicios de tecnología","Cantidad de Eqipos entregados/(n)*Cantidad de Equipos adquiridos",1,"Porcentaje",null,null,null,0.2,0.4,0.4,"Coordinador Grupo Administracion e Infraestructura Tecnológica.","2020-01-01","2020-12-31"]
[null,"Gestión y Control Disciplinario","Actuaciones Disciplinarias",1,"Tramitar las quejas - informes o anónimos que se allegan a al oficina.",null,"N/A","Autos de Remisión por Competencia - Inhibitorios - Indagación - Investigación ","(Tramites Rezagados+Tramitados en el periodo) / ((n)*Quejas + informes + anónimos recibidos) ",1,"Porcentaje",0.1,0.2,0.2,0.22,0.1,0.18,"Auxiliar Administrativo - Técnico Administrativo - Profesional Universitario - Profesional Especializado - Jefe de Oficina ","2020-01-01","2020-12-31"]
[null,"Gestión y Control Disciplinario","Actuaciones Disciplinarias",2,"Atender los procesos disciplinarios del periodo, con celeridad y bajo el marco del debido proceso.",null,"N/A","Procesos Disciplinarios atendidos correspondientes al período","Procesos gestionados en el periodo/ ((n)*Procesos programados para gestionar en el periodo)",1,"Porcentaje",0.1,0.2,0.2,0.22,0.1,0.18,"Auxiliar Administrativo - Técnico Administrativo - Profesional Universitario - Profesional Especializado - Jefe de Oficina ","2020-01-01","2020-12-31"]
[null,"Gestión y Control Disciplinario","Actuaciones Disciplinarias",3,"Atender los procesos disciplinarios correspondientes a vigencias anteriores  con celeridad y bajo el marco del debido proceso. ",null,"N/A","Procesos Disciplinarios atendidos correspondientes a otras vigencias ","Procesos gestionados en el periodo/ (n)*92",1,"Porcentaje",null,0.2,0.2,0.2,0.2,0.2,"Auxiliar Administrativo - Técnico Administrativo - Profesional Universitario - Profesional Especializado - Jefe de Oficina ","2020-03-01","2020-12-31"]
[null,"Gestión y Control Disciplinario","Actuaciones Disciplinarias",4,"Analizar los procesos disciplinarios de vigencias anteriores, a fin de evaluar la decisión que en derecho corresponda. ",null,"N/A","Informe de anális de procesos disciplinarios de vigencias anteriores","Cantidad de Informes realizados ",1,"Número",null,1,null,null,null,null,"Auxiliar Administrativo - Técnico Administrativo - Profesional Universitario - Profesional Especializado - Jefe de Oficina ","2020-03-01","2020-04-30"]
[null,"Gestión y Control Disciplinario","Actuaciones Disciplinarias",5,"Realizar las observaciones pertinentes a los informes de procesos disciplinarios que se siguen en el país.",null,"N/A","Informes Disciplinarios con Observaciones ","Cantidad de Informes revisados",330,"Número",33,66,66,66,33,66,"Auxiliar Administrativo - Técnico Administrativo - Profesional Universitario - Profesional Especializado - Jefe de Oficina ","2020-01-01","2020-12-31"]
[null,"Gestión y Control Disciplinario","Actuaciones Disciplinarias",6,"Realizar actividades de control preventivo, a fin de evitar la ocurrencia de hechos que contraríen los principios de la función pública por parte de los servidores de la Registraduría Nacional del Estado Civil, advirtiendo oportunamente  los riesgos de caer en estas conductas.  ",null,"N/A","Actividades Control Preventivo ","Cantidad de actividades realizadas ",9,"Número",null,2,2,2,1,2,"Auxiliar Administrativo - Técnico Administrativo - Profesional Universitario - Profesional Especializado - Jefe de Oficina ","2020-01-01","2020-12-31"]
[null,"Gestión y Control Disciplinario","Actuaciones Disciplinarias",7,"Realizar reuniones quincenales con 4 operadores disciplinarios del país y sus repectivos Delegados Departamentales de manera virtual, a fin de afianzar el proceso de asesoría de la actividad disciplinaria. ",null,"N/A","Reuniones de Asesoría ","Cantidad de reuniones realizadas ",66,"Número",8,16,17,16,8,1,"Auxiliar Administrativo - Técnico Administrativo - Profesional Universitario - Profesional Especializado - Jefe de Oficina ","2020-01-01","2020-12-31"]
[null,"Planeación y Direccionamiento Estratégico","Servicio al Colombiano",35,"Desarrollar  capacitaciones a los servidores públicos en Transparencia y acceso a la Información publica y Datos abiertos",null,"Plan Anticorrupción y de Atención al Ciudadano","Capacitación sobre  Transparencia y acceso a la Información publica y datos abiertos","Cantidad de Funcionarios que aprobaron la capacitación/ (n)*Cantidad de funcionarios que se inscribieron en la capacitación.",1,"Porcentaje",0.2,0.2,0.2,0.2,null,null,"Oficina de Planeación ","2020-01-01","2020-08-31"]
[null,"Gestión de Comunicación  Pública y Estratégica","Comunicación Organizacional",36,"Monitoreo mensual de la información publicada en la página web efectuado por la Oficina de Prensa y Comunicaciones. ",null,"Plan Anticorrupción y de Atención al Ciudadano","Informe de monitoreo al esquema de publicación mensual","(Cantidad de monitoreos realizados*100)/ 12",1,"Porcentaje",{"$f":"1/6","v":0.16666666666666666},0.16666666666666666,0.16666666666666666,0.16666666666666666,0.16666666666666666,0.16666666666666666,"Oficina de Prensa y Comunicaciones","2020-01-01","2020-12-31"]
[null,"Gestión del Sistema de Control Interno","Seguimiento a la Gestión Institucional",37,"Realizar seguimiento  cuatrimestral  a las acciones programadas en la estrategia de transparencia y acceso a la información pública del Plan Anticorrupción y de atención al Ciudadano.",null,"Plan Anticorrupción y de Atención al Ciudadano","Informes de seguimiento  a la ejecución de la estrategia de transparencia y acceso a la información pública  en el primer, segundo y tercer cuatrimestre de la vigencia 2020.","Cantidad de Informes de seguimiento a la ejecución de tareas del componente de transparencia y acceso a la información pública. ",2,"Número",null,null,1,null,1,null,"Oficina de Control Interno.","2020-05-15","2020-09-15"]
[null,"Planeación y Direccionamiento Estratégico","Servicio al Colombiano",1,"Dar tratamiento y respuesta oportuna  a las PQRSDC's recibidas en el sexto bimestre de la vigencia 2019 por parte del Grupo de Peticiones, Quejas y Reclamos de Oficinas Centrales.",null,"N/A","Reporte de asuntos pqrsdc´s tramitados por el Grupo de Pqr.","Cantidad de solicitudes con tratamiento y respuesta oportuna en el bimestre/(n) * Total de solicitudes recibidas en el bimestre.  ",1,"Porcentaje",1,null,null,null,null,null,"Grupo de Peticiones, Quejas y Reclamos.","2019-01-01","2020-01-15"]
[null,"Planeación y Direccionamiento Estratégico","Servicio al Colombiano",2,"Dar tratamiento y respuesta oportuna y en los términos de Ley a las PQRSDC's recibidas en la vigencia 2020 por parte del Grupo de Peticiones, Quejas y Reclamos de Oficinas Centrales.",null,"N/A","Reporte de asuntos pqrsdc´s tramitados por el Grupo de Pqr.","Cantidad de solicitudes con tratamiento y respuesta oportuna en el bimestre/ (n) * Total de solicitudes recibidas en el bimestre.  ",1,"Porcentaje",null,0.2,0.2,0.2,0.2,0.2,"Grupo de Peticiones, Quejas y Reclamos.","2019-01-01","2020-12-31"]
[null,"Planeación y Direccionamiento Estratégico","Servicio al Colombiano",3,"Desarrollar las actividades programadas en el Plan Anticorrupción y de Atención al Colombiano a cargo de la Oficina de Planeación y el Grupo de Peticiones, Quejas y Reclamos, en el primer y segundo cuatrimestre de la vigencia 2020. ",null,"N/A","Reporte cumplimiento actividades Plan Anticorrupción y de Atención al Colombiano.","Cantidad de actividades programadas en el cuatrimestre/ (n) * Total de actividades que reportan cumplimiento en el cuatrimestre.  ",1,"Porcentaje",null,null,0.5,null,0.5,null,"Oficina de Planeación y Grupo de Peticiones, Quejas y Reclamos. ","2019-01-31","2020-12-31"]
[null,"Planeación y Direccionamiento Estratégico","Servicio al Colombiano",4,"Elaborar una propuesta para la mejora del proceso del servicio al colombiano",null,"N/A","Documento de propuesta","Documento presentado",1,"Número",1,null,null,null,null,null,"Oficina de Planeación","2020-01-08","2020-02-15"]
[null,"Planeación y Direccionamiento Estratégico","Planeación de la Gestión Institucional",3,"Consolidar el plan de acción institucional del Nivel Central",null,"N/A","Plan de Acción Institucional Nivel Central","Documento PAI",1,"Número",1,null,null,null,null,null,"Oficina de Planeación","2020-01-15","2020-01-22"]
[null,"Planeación y Direccionamiento Estratégico","Planeación de la Gestión Institucional",4,"Consolidar el plan de acción institucional del Nivel Desconcentrado",null,"N/A","Plan de Acción Institucional Nivel Desconcentrado","Documento PAI",1,"Número",1,null,null,null,null,null,"Oficina de Planeación","2020-01-15","2020-01-24"]
[null,"Planeación y Direccionamiento Estratégico","Planeación de la Gestión Institucional",5,"Elaborar reporte del seguimiento al plan de acción nivel central y delegaciones vigencia 2020 (I - V Bimestre)",null,"N/A","Reporte de seguimiento PAI ","Cantidad de informes realizados ",5,"Número",null,1,1,1,1,1,"Oficina de Planeación","2020-03-02","2020-12-22"]
[null,"Planeación y Direccionamiento Estratégico","Planeación de la Gestión Institucional",6,"Rediseñar el tablero de Control  para el cuatrienio 2020-2023",null,"N/A","Tablero de Control Rediseñado","Tablero rediseñado y puesto en funcionamiento",1,"Porcentaje",null,1,null,null,null,null,"Oficina de Planeación","2020-02-01","2020-04-30"]
[null,"Planeación y Direccionamiento Estratégico","Planeación de la Gestión Institucional",7,"Actualizar de la información del Tablero de Control",null,"N/A","Actualizaciones realizadas","% de actualizaciones realizadas",1,"Porcentaje",0.16667000000000001,0.16667000000000001,0.16667000000000001,0.16667000000000001,0.16667000000000001,0.16667000000000001,"Oficina de Planeación","2020-01-01","2020-12-31"]
[null,"Planeación y Direccionamiento Estratégico","Planeación de la Gestión Institucional",8,"Consolidar el Informe  de la Gestión Institucional 2019",null,"N/A","Informe de Gestión Institucional","Informe elaborado y publicado",1,"Número",null,null,null,null,null,null,"Profesional Especializado"]
[null,"Planeación y Direccionamiento Estratégico","Planeación de la Gestión Institucional",9,"Elaborar informe de seguimiento de los proyectos de inversión vigencia 2019",null,"N/A","Informe seguimiento a Proyectos de Inversión "," Informe elaborado",1,"Número",1,null,null,null,null,null,"Profesional Especializado","2020-02-03","2020-02-07"]
[null,"Planeación y Direccionamiento Estratégico","Planeación de la Gestión Institucional",10,"Elaborar el Plan Estratégico de la RNEC 2020 - 2023",null,"N/A","Plan Estratégico de la RNEC 2020 - 2023","Documento elaborado",1,"Número",null,1,null,null,null,null,"Profesional Especializado"]
[null,"Planeación y Direccionamiento Estratégico","Planeación de la Gestión Institucional",11,"Elaborar la metodología (instructivo y circular), analizar, consolidar y registrar en el aplicativo SIIF Nación del Ministerio de Hacienda y Crédito Público, el Anteproyecto de Presupuesto de funcionamiento e inversión vigencia 2021 de la Registraduría Nacional del Estado Civil, Fondo Rotatorio de la Registraduría Nacional, Fondo Social de Vivienda y del Consejo Nacional Electoral",null,"N/A","Anteproyectos de Presupuesto","Anteproyectos de Presupuesto elaborados y Registrados\nRNEC\nFRR\nFSV\nCNE",1,"Porcentaje",0.2,0.8,null,null,null,null,"Profesionales Especializado","2020-02-03","2020-04-17"]
[null,"Planeación y Direccionamiento Estratégico","Planeación de la Gestión Institucional",12,"Asesorar  en la actualización e inscripción  de los proyectos de inversión - vigencia 2020 y 2021.",null,"N/A","Asesorías realizadas","Cantidad de asesorías realizadas",1,"Porcentaje",null,0.2,0.2,0.2,0.2,0.2,"Profesionales Especializado","2020-01-07","2020-12-10"]
[null,"Planeación y Direccionamiento Estratégico","Planeación de la Gestión Institucional",13,"Elaborar la presentación del Marco de Gastos de Mediano Plazo - MGMP 2020-2023 de acuerdo a los lineamientos dados por Minhacienda y DNP.",null,"N/A","Presentación MGMP 2021 - 2024","Presentación elaborada y sustentada",1,"Número",null,null,1,null,null,null,"Profesionales Especializado","2020-05-18","2020-06-30"]
[null,"Planeación y Direccionamiento Estratégico","Planeación de la Gestión Institucional",14,"Elaborar el Plan Operativo Anual de Inversión- POAI en el aplicativo SUIFP - DNP vigencia 2021.",null,"N/A","Plan Operativo Anual de Inversión - 2021","Plan Operativo Anual de Inversión elaborado",1,"Número",null,null,null,1,null,null,"Profesional Especializado","2020-07-01","2020-07-31"]
[null,"Planeación y Direccionamiento Estratégico","Planeación de la Gestión Institucional",16,"Elaborar informe de seguimiento de los proyectos de inversión vigencia 2020",null,"N/A","Informe seguimiento a Proyectos de Inversión "," Informes elaborados",5,"Número",null,1,1,1,1,1,"Profesional Especializado","2020-03-11","2020-11-27"]
[null,"Planeación y Direccionamiento Estratégico","Planeación de la Gestión Institucional",17,"Diagnosticar de las Registradurías Auxiliares que requieren la instalación de equipos, sistemas e implementos de bajo consumo de agua ",null,"Plan de Gestión Ambiental","Documento de diagnostico","Documento de diagnostico",1,"Porcentaje",1,null,null,null,null,null,"Oficina de Planeación","2020-01-01","2020-02-29"]
[null,"Planeación y Direccionamiento Estratégico","Planeación de la Gestión Institucional",18,"Monitorear el consumo de Agua en la Registraduria sede central y las 23 Registraduria Auxiliares de Bogotá",null,"Plan de Gestión Ambiental","Reporte de consumo de agua en la Registraduria sede central y las 23 Registraduria Auxiliares de Bogotá","Cantidad de reportes realizados / (n) * Total de reportes programados",6,"Número",0.16667000000000001,0.16667000000000001,0.16667000000000001,0.16667000000000001,0.16667000000000001,0.16667000000000001,"Oficina de Planeación","2020-01-01","2020-12-31"]
[null,"Planeación y Direccionamiento Estratégico","Planeación de la Gestión Institucional",19,"Diagnosticar el uso de fuentes de iluminación sostenibles en las 23 Registradurías Auxiliares de Bogotá y la Sede Central",null,"Plan de Gestión Ambiental","Documento de diagnostico","Documento de diagnostico",1,"Número",1,null,null,null,null,null,"Oficina de Planeación","2020-01-01","2020-02-29"]
[null,"Planeación y Direccionamiento Estratégico","Planeación de la Gestión Institucional",20,"Monitorear control consumo de Energía en la Registraduria sede central y 23 Registradurias Auxiliares de Bogotá",null,"Plan de Gestión Ambiental","Reporte de consumo de energía en la Registraduria sede central y las 23 Registraduria Auxiliares de Bogotá","Cantidad de reportes realizados / (n) * Total de reportes programados",6,"Número",0.16667000000000001,0.16667000000000001,0.16667000000000001,0.16667000000000001,0.16667000000000001,0.16667000000000001,"Oficina de Planeación","2020-01-01","2020-12-31"]
[null,"Planeación y Direccionamiento Estratégico","Planeación de la Gestión Institucional",21,"Gestionar la disposición final de Residuos Peligrosos (Vertimientos de aguas industriales, Biosanitarios, planta eléctrica, ascensores, vehículos) con empresas que cuenten con licencia ambiental vigente.",null,"Plan de Gestión Ambiental","Certificados de disposición","Certificados de disposición",6,"Número",null,null,null,null,null,1,"Oficina de Planeación","2020-11-01","2020-12-31"]
[null,"Planeación y Direccionamiento Estratégico","Planeación de la Gestión Institucional",22,"Gestionar la disposición final de RAEES -Residuos de aparatos eléctricos y electrónicos: (Equipos, tóner, baterías y pilas), con empresas que cuenten con licencia ambiental vigente",null,"Plan de Gestión Ambiental","Certificados de disposición","Certificados de disposición",3,"Número",null,null,null,null,null,1,"Oficina de Planeación","2020-11-01","2020-12-31"]
[null,"Planeación y Direccionamiento Estratégico","Planeación de la Gestión Institucional",23,"Desarrollar proyectos de cooperación internacional encaminados al fortalecimiento de la participación política con población vulnerable.",null,"Plan Anticorrupción y de Atención al Ciudadano","Proyectos de cooperación","Cantidad de proyectos de cooperación ",1,"Número",null,null,null,null,null,1,"Oficina de Asuntos Internacionales ","2020-01-01","2020-12-31"]
[null,"Planeación y Direccionamiento Estratégico","Planeación de la Gestión Institucional",23,"Gestionar la disposición final de residuos especiales (luminarias, escombros, aceite vegetal usado), con empresas que cuenten con licencia ambiental vigente",null,"Plan de Gestión Ambiental","Certificados de disposición","Certificados de disposición",2,"Número",null,null,null,null,null,1,"Oficina de Planeación","2020-11-01","2020-12-31"]
[null,"Planeación y Direccionamiento Estratégico","Planeación de la Gestión Institucional",24,"Desarrollar el plan de  gestión integral de residuos aprovechables en Sede central",null,"Plan de Gestión Ambiental","Plan de  gestión integral de residuos aprovechables en Sede central","Plan de  gestión integral de residuos aprovechables en Sede central",100,"Porcentaje",1,null,null,null,null,null,"Oficina de Planeación","2020-01-01","2020-02-29"]
[null,"Planeación y Direccionamiento Estratégico","Planeación de la Gestión Institucional",25,"Desarrollar propuesta para la implementación de puntos ecológicos en la sede central",null,"Plan de Gestión Ambiental","Documento de propuesta","Documento de propuesta",100,"Porcentaje",1,null,null,null,null,null,"Oficina de Planeación","2020-01-01","2020-02-29"]
[null,"Planeación y Direccionamiento Estratégico","Planeación de la Gestión Institucional",26,"Gestionar el convenio con Asociaciones de recicladores de oficio, para la entrega de los Residuos Aprovechables generados",null,"Plan de Gestión Ambiental","Convenio con asociación de recicladores","Convenios firmados / (n) * Convenios programados","Firmar 5 convenios con asociación de recicladores","Porcentaje",null,0.2,0.2,0.2,0.2,0.2,"Oficina Jurídica, servidores gestión ambiental","2020-03-01","2020-12-31"]
[null,"Planeación y Direccionamiento Estratégico","Planeación de la Gestión Institucional",27,"Sensibilizar a los servidores de sede central, sobre reciclaje y uso adecuado de los puntos ecológicos",null,"Plan de Gestión Ambiental","Capacitaciones realizadas","Capacitaciones realizadas/ (n) * Capacitaciones programadas"," 11 capacitaciones","Porcentaje",null,0.2,0.2,0.2,0.2,0.2,"Servidores Gestión Ambiental","2020-03-02","2020-12-31"]
[null,"Planeación y Direccionamiento Estratégico","Planeación de la Gestión Institucional",28,"Realizar el seguimiento y control a la generación de todos los residuos generados en sede central y Registraduria Distrital",null,"Plan de Gestión Ambiental","Bitácora control ",null,"Elaborar una bitácora del control","Porcentaje",0.16667000000000001,0.16667000000000001,0.16667000000000001,0.16667000000000001,0.16667000000000001,0.16700000000000001,"Servidores Gestión Ambiental","2020-01-01","2020-12-31"]
[null,"Planeación y Direccionamiento Estratégico","Planeación de la Gestión Institucional",29,"Realizar investigaciones y publicaciones de impacto nacional,  relevantes y pertinentes para fortalecer a la Registraduría Nacional: impacto de pedagogías de formación en democracia; Código Electoral; elecciones y mecanismos de participación; registro e identificación de personas; avances en la formulación de una política de divulgación de datos abiertos.",null,"Plan Anticorrupción y de Atención al Ciudadano","Investigaciones y Publicaciones.","Cantidad de Investigaciones y Publicaciones realizadas y publicadas.",1,"Número",null,null,null,null,null,null,"Centro de Estudios en Democracia y Asuntos Electorales-CEDAE","2020-02-01","2020-12-31"]
[null,"Planeación y Direccionamiento Estratégico","Planeación de la Gestión Institucional",29,"Diagnosticar el consumo de papel en la RNEC",null,"Plan de Gestión Ambiental","Documento de diagnostico","Documento de diagnostico","Un documento de diagnostico","Número",1,null,null,null,null,null,"Oficina de planeación, Servidores Gestión Ambiental y Gestión Documental","2020-01-01","2020-02-29"]
[null,"Planeación y Direccionamiento Estratégico","Planeación de la Gestión Institucional",30,"Desarrollar propuesta para racionalizar el uso papel a través de la simplificación y eliminación de documentos en la gestión documental de la entidad",null,"Plan de Gestión Ambiental","Documento de propuesta","Documento de propuesta","Un documento de propuesta","Número",1,null,null,null,null,null,"Oficina de planeación, Servidores Gestión Ambiental y Gestión Documental","2020-01-01","2020-02-29"]
[null,"Planeación y Direccionamiento Estratégico","Planeación de la Gestión Institucional",31,"Desarrollar la propuesta para implementar la calificación digital en convocatorias laborales en la RNEC ",null,"Plan de Gestión Ambiental","Documento de propuesta","Documento de propuesta","Un documento de propuesta","Número",1,null,null,null,null,null,"Gerencia del Talento Humano, Gerencia de Informática, Servidores Gestión Ambiental","2020-01-01","2020-02-29"]
[null,"Planeación y Direccionamiento Estratégico","Planeación de la Gestión Institucional",32,"Capacitar servidores sobre el uso adecuado de las fotocopiadoras e impresoras con el fin de evitar el desperdicio de papel",null,"Plan de Gestión Ambiental","Capacitaciones realizadas","Capacitaciones realizadas/ (n) * Capacitaciones programadas","Una capacitación","Número",1,null,1,null,null,null,"Gerencia de Informática, Contratista de fotocopiadoras e impresoras","2020-05-01","31/06/2020"]
[null,"Planeación y Direccionamiento Estratégico","Planeación de la Gestión Institucional",33,"Desarrollar una propuesta para implementar ejercicios de capacitador de capacitadores apara el fomento de la gestión ambiental en la entidad.",null,"Plan de Gestión Ambiental","Documento de propuesta",null,"Un documento de propuesta","Número",1,null,null,null,null,null,"Servidores Gestión Ambiental","2020-01-01","2020-02-29"]
[null,"Planeación y Direccionamiento Estratégico","Planeación de la Gestión Institucional",34,"Gestionar campañas de sensibilización y divulgación de temas ambientales",null,"Plan de Gestión Ambiental","Campañas","Campañas Presentadas / (n) * Campañas Programas","4 Campañas","Número",4,1,1,null,1,1,"Oficina de Comunicaciones y prensa, servidores Gestión Ambiental","2020-03-01","2020-12-31"]
[null,"Planeación y Direccionamiento Estratégico","Sistema de Gestión y Mejoramiento Institucional",1,"Diseñar cursos Virtuales para el nivel central y desconcentrado sobre el SGC",null,"N/A","Curso de Transparencia y acceso a la información pública y datos abiertos\n\nCurso  Normas de Calidad ISO 9001:2015 y 54001:2019","Cantidad de cursos diseñados ",2,"Número",null,2,null,null,null,null,"Oficina de Planeación","2020-02-01","2020-02-29"]
[null,"Planeación y Direccionamiento Estratégico","Sistema de Gestión y Mejoramiento Institucional",2,"Desarrollar cursos virtuales sobre el SGC para el nivel desconcentrado",null,"N/A","Curso Normas de Calidad ISO 9001:2015 y 54001:2019","Cantidad de cursos desarrollados",4,"Número",null,null,2,2,null,null,"Oficina de Planeación","2020-03-01","2020-08-31"]
[null,"Planeación y Direccionamiento Estratégico","Sistema de Gestión y Mejoramiento Institucional",3,"Actualizar y consolidar el Mapa de riesgos Estratégico ",null,"N/A","Mapa de Riesgos estratégicos","Mapa de riesgo de proceso actualizado y publicado",1,"Porcentaje",null,null,1,null,null,null,"Oficina de Planeación","2020-03-01","2020-04-30"]
[null,"Planeación y Direccionamiento Estratégico","Sistema de Gestión y Mejoramiento Institucional",4,"Actualizar y consolidar el Mapa de riesgos de procesos vigencia 2020",null,"N/A","Mapa de Riesgo de procesos","Mapa de riesgo de proceso actualizado y publicado",1,"Porcentaje",null,null,1,null,null,null,"Oficina de Planeación","2020-03-01","2020-04-30"]
[null,"Planeación y Direccionamiento Estratégico","Sistema de Gestión y Mejoramiento Institucional",5,"Actualizar y consolidar el Mapa de riesgos de procesos vigencia 2021",null,"N/A","Mapa de Riesgo de procesos","Mapa de riesgo de proceso actualizado y publicado",1,"Porcentaje",null,null,null,null,null,1,"Oficina de Planeación","2020-11-01","2020-12-31"]
[null,"Planeación y Direccionamiento Estratégico","Sistema de Gestión y Mejoramiento Institucional",6,"Crear, modificar y controlar  los  documentos del Sistema Integrado de Gestión de acuerdo a las solicitudes presentadas y aprobadas",null,"N/A","Listado maestro de documentos","Cantidad de reportes realizados",6,"Número",1,1,1,1,1,1,"Oficina de Planeación","2020-01-01","2020-12-01"]
[null,"Planeación y Direccionamiento Estratégico","Sistema de Gestión y Mejoramiento Institucional",7,"Socializar los documentos inherentes al Sistema de Gestión de Calidad",null,"N/A","Documentos socializados","Cantidad de documentos publicados ",1.0000200000000001,"Porcentaje",0.16667000000000001,0.16667000000000001,0.16667000000000001,0.16667000000000001,0.16667000000000001,0.16667000000000001,"Oficina de Planeación","2020-01-01","2020-12-01"]
[null,"CEDAE","Proyecto: Fortalecimiento del Centro de Estudios en Democracia y Asuntos Electorales - CEDAE - Nacional",1,"Realizar seminarios, foros, conversatorios, mesas de trabajo y talleres lúdicos sobre las temáticas misionales y transversales de la Registraduría Nacional del Estado Civil dirigidos a usuarios internos y externos de la entidad",null,"Plan Institucional de Formación y Capacitación","Seminarios\nForos\nTalleres\nConversatorios\nMesas de Trabajo","Cantidad de actividades realizadas",10,"Número",null,2,2,2,3,1,"Coordinador  CEDAE","2020-02-01","2020-12-31"]
[null,"CEDAE","Proyecto: Fortalecimiento del Centro de Estudios en Democracia y Asuntos Electorales - CEDAE - Nacional",2,"Elaborar una política de investigación para la Registraduría Nacional del Estado Civil.",null,"Plan Institucional de Formación y Capacitación","Documento Politica de Investigación ","Cantidad de documentos elaborados",1,"Número",null,1,null,null,null,null,"Coordinador  CEDAE","2020-02-01","2020-04-30"]
[null,"CEDAE","Proyecto: Fortalecimiento del Centro de Estudios en Democracia y Asuntos Electorales - CEDAE - Nacional",3,"Definir líneas de investigación en los temas misionales de la Registraduría Nacional del Estado Civil, elaborando documentos de fundamentación de las líneas y un banco de proyectos en temas de mecanismos de participación, elecciones, registro civil e identificación de personas.",null,"Plan Institucional de Formación y Capacitación","Documento de fundamentación de las lineas de investigación de la Registraduria Nacional del Estado Civil","Cantidad de documentos elaborados",2,"Número",null,null,1,1,null,null,"Coordinador  CEDAE","2020-02-01","2020-06-30"]
[null,"CEDAE","Proyecto: Fortalecimiento del Centro de Estudios en Democracia y Asuntos Electorales - CEDAE - Nacional",4,"Gestionar la posibilidad de crear un grupo de investigación  y hacer el respectivo registro en la plataforma GrupLac de COLCIENCIAS",null,"Plan Institucional de Formación y Capacitación","Registro en el sistema GrupLAC de la Plataforma ","Registro",1,"Número",null,1,null,null,null,null,"Coordinador  CEDAE","2020-02-01","2020-04-30"]
[null,"CEDAE","Proyecto: Fortalecimiento del Centro de Estudios en Democracia y Asuntos Electorales - CEDAE - Nacional",5,"Realizar investigaciones y publicaciones de impacto nacional,  relevantes y pertinentes para fortalecer a la Registraduría Nacional: impacto de pedagogías de formación en democracia; Código Electoral; elecciones y mecanismos de participación; registro e identificación de personas; avances en la formulación de una política de divulgación de datos abiertos",null,"Plan Institucional de Formación y Capacitación","Investigaciones, Publicaciones realizadas ","Cantidad de Investigaciones, Publicaciones realizadas ",4,"Número",null,null,null,null,1,1,"Coordinador  CEDAE","2020-02-01","2020-12-31"]
[null,"CEDAE","Proyecto: Fortalecimiento del Centro de Estudios en Democracia y Asuntos Electorales - CEDAE - Nacional",6,"Publicar un número por año de la revista Democracia Actual que cumpla con los requisitos de indexación en Publindex",null,"Plan Institucional de Formación y Capacitación","Revista publicada","Cantidad de Revistas publicadas",1,"Número",null,null,null,null,null,1,"Coordinador  CEDAE","2020-02-01","2020-12-31"]
[null,"CEDAE","Proyecto: Fortalecimiento del Centro de Estudios en Democracia y Asuntos Electorales - CEDAE - Nacional",7,"Diseñar y desarrollar el Plan de Capacitación del CEDAE",null,"Plan Institucional de Formación y Capacitación","Documento el Plan de Capacitación del CEDAE desarrollado","Cantidad de documentos elaborados",1,"Número",null,1,null,null,1,1,"Coordinador  CEDAE","2020-01-01","2020-12-31"]
[null,"Planeación y Direccionamiento Estratégico","Sistema de Gestión y Mejoramiento Institucional",1,"Elaborar los convenios solicitados por las entidades publicas con el cumpimiento  de los requisitos señalados en la ley y las resoluciones expedidas por la registraduria par tal  fin. ",null,"N/A","Convenios con entidaes publicas firmados","(Cantidad  de convenios Rezagados +Cantidad de convenios elaborados en el Periodo ) /(n)*Cantidad de convenios solicitados por entidades publicas en el periodo ",1,"Porcentaje",{"$f":"1/6","v":0.16666666666666666},0.16666666666666666,0.16666666666666666,0.16666666666666666,0.16666666666666666,0.16666666666666666,"Oficina de Convenios","2020-01-01","2020-12-31"]
[null,"Planeación y Direccionamiento Estratégico","Sistema de Gestión y Mejoramiento Institucional",2,"Elaborar Actas de reuniones para realizar Seguimiento  a los convenios celebrados  con el  fin de resolver inconvenientes presentados con la base de datos dispuesta por la Registraduria ",null,"N/A","Actas de reuniones de seguimiento a convenios ","(Cantidad  de actas Rezagados +Cantidad de Actas elaborados en el Periodo ) /(n)*Cantidad de Actas elaboradas para seguimiento  de los convenios celebrados )",1,"Porcentaje",0.16666666666666666,0.16666666666666666,0.16666666666666666,0.16666666666666666,0.16666666666666666,0.16666666666666666,"Oficina de Convenios ","2020-01-01","2020-12-31"]
[null,"Planeación y Direccionamiento Estratégico","Sistema de Gestión y Mejoramiento Institucional",3,"Realizar Video Conferencias con los Delegados Departamentales para el  mejoramiento  y fortalecimiento  de la gestión institucional ",null,"N/A","Actas de videoconferencia ","(cantidad de video  Conferencias Rezagadas +Cantidad  de Video Conferencias Realizadas en el periodo ) /(n)*Cantidad de Video Conferencias solicitadas en el  periodo ",1,"Número",0.16666666666666666,0.16666666666666666,0.16666666666666666,0.16666666666666666,0.16666666666666666,0.16666666666666666,"Secretaria General ","2020-01-01","2020-12-31"]
[null,"Planeación y Direccionamiento Estratégico","Sistema de Gestión y Mejoramiento Institucional",4,"Realizar reuniones para el  cumplimiento  del Plan anual  de Adquisiciones nivel central ",null,"N/A","Actas reuniones para el  cumplimiento  del Plan anual  de Adquisiciones nivel central ","(cantidad Actas de reuniones de seguimiento  realizaddas  ) /(n)*Cantidad de reuniones de seguimiento  realizadas ",1,"Porcentaje",0.16666666666666666,0.16666666666666666,0.16666666666666666,0.16666666666666666,0.16666666666666666,0.16666666666666666,"Secretaria General ","2020-01-01","2020-12-31"]
[null,"Registro Civil e Identificación","Certificación, Documentación y Servicios",38,"Desarrollar el proyecto de racionalización del tiempo de los trámites cédula de ciudadanía por primera vez,  duplicado, rectificación  y renovación realizados en el exterior. Proyecto “Web Service para generación de NIST de Cancillería\"",null,"Plan Anticorrupción y de Atención al Ciudadano","Requerimientos técnicos validados para interoperar el Sistema Nacional de Identificación y el Sistema Integral de Trámites-SITAC de tal forma que permita reducir el tiempo de expedición del documento de los colombianos en el exterior. Este desarrollo corresponde a una tarea conjunta entre Cancillería y Registraduría, el cual podrá ser implementado cuando se garantice la interoperabilidad con el sistema de identificación de la Registraduría","% de valor ejecutado en la racionalización del trámite vs valor esperado en la racionalización del trámite fijado en el aplicativo y formato del SUIT del Departamento Administrativo de la Función Pública.",1,"Porcentaje",0.16666666666666666,0.16666666666666666,0.16666666666666666,0.16666666666666666,0.16666666666666666,0.16666666666666666,"Dirección Nacional de  Identificación \nGerencia Informática.","2020-01-01","2020-12-31"]
[null,"Registro Civil e Identificación","Certificación, Documentación y Servicios",39,"Implementar la estación integrada de Servicios EIS   para enrolamiento de  los trámites de CC y TI  ( primera vez, duplicado, renovación y rectificación) ",null,"Plan Anticorrupción y de Atención al Ciudadano","Lograr realizar los trámites  de cédula de ciudadanía y tarjeta de identidad,  en las Registradurías del país que cuenten con  la estación EIS, con cargue en tiempo real, en el  flujo de producción  mediante  un ambiente web.","% de valor ejecutado en la racionalización del trámite vs valor esperado en la racionalización del trámite fijado en el aplicativo y formato del SUIT del Departamento Administrativo de la Función Pública.",1,"Porcentaje",0.16666666666666666,0.16666666666666666,0.16666666666666666,0.16666666666666666,0.16666666666666666,0.16666666666666666,"Dirección Nacional de  Identificación \nGerencia Informática.","2020-01-01","2020-12-31"]
[null,"Registro Civil e Identificación","Certificación, Documentación y Servicios",40,"Implementar una  APP para tramitar duplicado de cedula de ciudadanía   desde un dispositivo electrónico,  con autenticación y  reconocimiento facial y con pago en línea.",null,"Plan Anticorrupción y de Atención al Ciudadano","Lograr realizar los trámites  de duplicado de  cédula de ciudadanía  a través de una  APP desde un dispositivo electrónico con autenticación y  reconocimiento facial y con pago en línea.","% de valor ejecutado en la racionalización del trámite vs valor esperado en la racionalización del trámite fijado en el aplicativo y formato del SUIT del Departamento Administrativo de la Función Pública.",1,"Porcentaje",0.16666666666666666,0.16666666666666666,0.16666666666666666,0.16666666666666666,0.16666666666666666,0.16666666666666666,"Dirección Nacional de  Identificación \nGerencia Informática.- Gerencia Administrativa y Financiera ","2020-01-01","2020-12-31"]
[null,"Registro Civil e Identificación","Certificación, Documentación y Servicios",41,"Implementar el proyecto de cédula electrónica y digital  para los trámites de duplicado y rectificación de cédula de ciudadanía.",null,"Plan Anticorrupción y de Atención al Ciudadano","Expedición de la cédula electrónica y digital para los colombianos,","% de valor ejecutado en la racionalización del trámite vs valor esperado en la racionalización del trámite fijado en el aplicativo y formato del SUIT del Departamento Administrativo de la Función Pública.",1,"Porcentaje",0.16666666666666666,0.16666666666666666,0.16666666666666666,0.16666666666666666,0.16666666666666666,0.16666666666666666,"Registraduria Delegada para el Registro Civil e Identificación - Dirección Nacional de Identificación  - Gerencia Informática","2020-01-01","2020-12-31"]
[null,"Registro Civil e Identificación","Certificación, Documentación y Servicios",42,"Eliminar el trámite de renovaciones tarjetea de identidad ",null,"Plan Anticorrupción y de Atención al Ciudadano","Trámite de renovación de tarjeta de identidad eliminado.","% de valor ejecutado en la racionalización del trámite vs valor esperado en la racionalización del trámite fijado en el aplicativo y formato del SUIT del Departamento Administrativo de la Función Pública.",1,"Porcentaje",0.16666666666666666,0.16666666666666666,0.16666666666666666,0.16666666666666666,0.16666666666666666,0.16666666666666666,"Registraduría Delegada para el Registro Civil y la Identificación  Dirección Nacional de Identificación","2020-01-01","2020-12-31"]
[null,"Registro Civil e Identificación","Registro y Actualización del Sistema",43,"Continuar con la racionalización mediante la Interoperabilidad Externa entre Registradurías y Hospitales y Clínicas con convenio  para la actualización de la información con base a los datos de registro civil desde la herramienta SRC-Web. \nContinuar con las actividades de interoperabilidad externa que conduzcan a un mayor número de Oficinas de Registraduria y Hospitales/Clínicas con la herramienta SRC-Web para garantizar la actualización de las bases de datos a partir de la información registrada en el formato de registro civil de nacimiento en formato de papel o digital, reduciendo el número de pasos, los tiempos y costos para que el ciudadano pueda acceder a la información del registro civil sin requerir trámites adicionales (postgrabacion de registro civil de nacimiento), para expedición de certificados, copias y preparación de documentos de identificación.",null,"Plan Anticorrupción y de Atención al Ciudadano","Información de todos los registros civiles generados en los centros de salud y notarias oportunamente en las base de datos de registro civil, para expedición de certificados, copias y preparación de documentos de identificación (tarjeta de identidad y cédula de ciudadanía)","% de valor ejecutado en la racionalización del trámite vs valor esperado en la racionalización del trámite fijado en el aplicativo y formato del SUIT del Departamento Administrativo de la Función Pública.",1,"Porcentaje",0.16666666666666666,0.16666666666666666,0.16666666666666666,0.16666666666666666,0.16666666666666666,0.16666666666666666," Dirección Nacional de Registro Civil y Gerencia Informática.","2020-01-01","2020-12-31"]
[null,"Registro Civil e Identificación","Registro y Actualización del Sistema",44,"Programar otras acciones de racionalización de trámites. ",null,"Plan Anticorrupción y de Atención al Ciudadano","Listado de trámites a racionalizar en la vigencia 2021. ","Documento : Matriz de racionalización de trámites  para el  componente  Racionalización de trámites  vigencia 2021 elaborado.",1,"Número",null,null,null,null,null,1,"Responsable: Registraduría Delegada para el Registro Civil y Dirección Nacional de Identificación.\n\nPartícipes: Oficina de Planeación.","2020-09-01","2020-12-31"]
[null,"Gestión del Sistema de Control Interno","Seguimiento a la Gestión Institucional",45,"Realizar seguimiento  cuatrimestral  a las acciones programadas en la estrategia de racionalización de trámites  del Plan Anticorrupción y de atención al Ciudadano.",null,"Plan Anticorrupción y de Atención al Ciudadano","Informes de seguimiento  a la ejecución de la estrategia de racionalización de trámites  del Plan Anticorrupción en el primer, segundo y tercer cuatrimestre de la vigencia 2020.","Cantidad de Informes de seguimiento a la ejecución de tareas del componente de racionalización de trámites.",2,"Número",null,null,1,null,1,null,"Oficina de Control Interno.","2020-05-15","2020-09-15"]
[null,"Planeación y Direccionamiento Estratégico","Sistema de Gestión y Mejoramiento Institucional",46,"Actualizar la Politica de Administración de Riesgos ",null,"Plan Anticorrupción y de Atención al Ciudadano","Politica de Administración de Riesgos ","Politica de Administración de Riesgos divulgada",1,"Número",null,null,null,1,null,null,"Oficina de Planeación","2020-07-01","2020-08-31"]
[null,"Gestión del Sistema de Control Interno","Seguimiento a la Gestión Institucional",47,"Monitorear el mapa de riesgos de corrupción vigencia 2020.",null,"Plan Anticorrupción y de Atención al Ciudadano","Documento de monitoreo al Mapa de Riesgos de Corrupción","Documentos de monitoreo al Mapa de riesgos de Corrupción.",3,"Número",null,null,1,null,1,null,"Oficina de Control Interno..","2020-05-15","2020-09-15"]
[null,"Gestión del Sistema de Control Interno","Seguimiento a la Gestión Institucional",48,"Monitorear permanentemente del mapa de riesgos de corrupción vigencia 2020.",null,"Plan Anticorrupción y de Atención al Ciudadano","Documento de monitoreo al Mapa de Riesgos de Corrupción","Mapa de riesgos de Corrupción monitoreados  de manera  cuatrimestral.",1,"Número",null,null,1,null,1,null,"Oficina de Control Interno.","2020-05-15","2020-09-15"]
[null,"Gestión del Sistema de Control Interno","Seguimiento a la Gestión Institucional",49,"Realizar seguimiento  a los mapas de riesgos de corrupción vigencia 2020",null,"Plan Anticorrupción y de Atención al Ciudadano","Informes de seguimiento  al mapa de riesgos de corrupción","Porcentaje de avance  en el desarrollo de las actividades planteadas en los mapas de Riesgos de Corrupción",1,"Porcentaje",null,null,1,null,1,null,"Oficina de Control Interno.","2020-05-15","2020-09-15"]
[null,"Gestión del Sistema de Control Interno","Seguimiento a la Gestión Institucional",50,"Publicar el  primer, segundo y tercer informe de seguimiento al Mapa de Riesgos de Corrupción vigencia 2020.",null,"Plan Anticorrupción y de Atención al Ciudadano","Informes de seguimiento  al mapa de riesgos de corrupción publicados","Cantidad de Informes de seguimiento elaborados",3,"Número",null,null,1,null,1,null,"Oficina de Control Interno.","2020-05-15","2020-09-15"]
[null,"Gestión del Sistema de Control Interno","Seguimiento a la Gestión Institucional",51,"Aprobación del  Mapa de Riesgos de Corrupción  vigencia 2020",null,"Plan Anticorrupción y de Atención al Ciudadano","Documento  Plan Anticorrupción y de Atención al  Ciudadano  y Mapa  de Riesgos de Corrupción socializado.","Acta  de aprobación  definitiva del Plan Anticorrupción y de Atención al Ciudadano  y Mapas de Riesgos de Corrupción ",1,"Número",null,null,null,null,null,null,"Comité de Coordinación  de Control Interno.","2020-01-01","2020-01-31"]
[null,"Planeación y Direccionamiento Estratégico","Sistema de Gestión y Mejoramiento Institucional",52,"Divulgar el Mapa de Riesgo de Corrupción de la RNEC del nivel central y desconcentrado para la vigencia 2020 en su versión definitiva. ",null,"Plan Anticorrupción y de Atención al Ciudadano","Mapa de Riesgos de Corrupción de la RNEC vigencia 2020 divulgado","Indicador de cumplimiento: publicación del Mapa de Riesgos de Corrupción de la RNEC en su nivel central y desconcentrado.",1,"Número",1,null,null,null,null,null,"Responsable: Oficina de Planeación.",null,"2020-01-31"]
[null,"Planeación y Direccionamiento Estratégico","Sistema de Gestión y Mejoramiento Institucional",53,"Adecuar las herramientas metodológicas de orientación al interior de la RNEC para la construcción del Mapa de Riesgos de Corrupción de la RNEC para la vigencia 2020.",null,"Plan Anticorrupción y de Atención al Ciudadano","Taller realizado para la construcción del Mapa de Riesgos de Corrupción de la RNEC. ","Taller Mapa de Riesgos de Corrupción–Vigencia 2020 realizado",1,"Número",null,1,null,null,null,null,"Oficina de Planeación","2020-03-01","2020-04-30"]
[null,"Planeación y Direccionamiento Estratégico","Sistema de Gestión y Mejoramiento Institucional",54,"Enviar las herramientas metodológicas de orientación al interior de la Entidad para la construcción del Mapa de Riesgos de Corrupción del nivel central y desconcentrado - vigencia 2020.",null,"Plan Anticorrupción y de Atención al Ciudadano","Memorando de envío de las herramientas metodológicas para la construcción del mapa de riesgos de corrupción","Oficio- Memorando: Solicitud  de construcción del Mapa de Riesgos de Corrupción a todos los responsables de los macroprocesos del nivel central y a las delegaciones departamentales y a sus equipos de trabajo. ",1,"Número",null,null,1,null,null,null,"Responsable: Oficina de Planeación","2020-05-01","2020-06-30"]
[null,"Planeación y Direccionamiento Estratégico","Sistema de Gestión y Mejoramiento Institucional",55,"Efectuar el análisis de los riesgos de corrupción por parte de cada responsable de Macroprocesos en el nivel central y desconcentrado junto con su equipo de trabajo. ",null,"Plan Anticorrupción y de Atención al Ciudadano","Taller de  Mapa de Riesgos de Corrupción–Vigencia 2020 realizado por los funcionarios competentes en el tema","Riesgos de corrupción, identificados,  construidos, evaluados y valorados por los funcionarios competentes de acuerdo a la normatividad, metodologías y talleres vigentes.\n\n(i) Identificación de los objetivos del proceso, las causas, los riesgos de corrupción y las consecuencias.\n\n(ii) Análisis de la probabilidad e impacto de los riesgos de corrupción. \n\n(iii) Evaluación del riesgo de corrupción con posterioridad a la aplicación de controles preventivos y correctivos de carácter manual u automático. ",1,"Número",null,null,1,null,null,null,"Responsables: Líderes de los macroprocesos al  en el nivel central, Delegaciones Departamentales y Registraduría Distrital. ","2020-05-01","2020-06-30"]
[null,"Planeación y Direccionamiento Estratégico","Sistema de Gestión y Mejoramiento Institucional",56,"Acompañar y asesorar a las áreas en la elaboración del Mapa de Riesgos de Corrupción con el fin de fortalecer la construcción del Mapa de Riesgos en nivel central, Registraduría Distrital y Delegaciones Departamentales. ",null,"Plan Anticorrupción y de Atención al Ciudadano","Asesorías prestadas a las áreas para la adecuada construcción del Mapa de Riesgos de Corrupción, mediante correo electrónico, vía telefónica, presencial y en talleres. ","Cantidad de asesorías realizadas a las áreas en la elaboración del mapa de riesgos de corrupción",null,"Número",null,null,1,null,null,null,"Responsables: Oficina de Planeación, Registraduría Distrital y Delegaciones Departamentales. ","2020-05-01","2020-06-30"]
[null,"Planeación y Direccionamiento Estratégico","Sistema de Gestión y Mejoramiento Institucional",57,"Atender las observaciones en la Revisión y validación del Mapa de Riesgos de Corrupción del nivel desconcentrado por parte de cada uno de los responsables de macroprocesos del nivel central.",null,"Plan Anticorrupción y de Atención al Ciudadano","Mapa de Riesgos de Corrupción del nivel desconcentrado revisado y validado por parte de cada uno de los responsables de macroprocesos del nivel central. ","Cantidad de observaciones atendidas\n",null,"Número",null,null,1,null,null,null,"Oficina de Planeación. ","2020-05-01","2020-06-30"]
[null,"Planeación y Direccionamiento Estratégico","Sistema de Gestión y Mejoramiento Institucional",58,"Divulgar el Mapa de Riesgo de Corrupción de la RNEC del nivel central y desconcentrado para la vigencia 2020  en su versión definitiva. ",null,"Plan Anticorrupción y de Atención al Ciudadano","Mapa de Riesgos de Corrupción de la RNEC vigencia 2020 divulgado","Indicador de cumplimiento: publicación del Mapa de Riesgos de Corrupción de la RNEC en su nivel central y desconcentrado conforme a ley. ",1,"Número",null,null,1,null,null,null,"Responsable: Oficina de Planeación.","2020-05-01","2020-06-30"]
[null,"Planeación y Direccionamiento Estratégico","Sistema de Gestión y Mejoramiento Institucional",59,"Consolidar el Mapa de Riesgos de Corrupción del nivel central y desconcentrado de la RNEC para la vigencia 2020.",null,"Plan Anticorrupción y de Atención al Ciudadano","Mapa de Riesgos de Corrupción de la RNEC 2020 "," Mapa de Riesgos de Corrupción de la RNEC 2020 ",1,"Número",null,null,1,null,null,null,"Responsable: Oficina de Planeación. ","2020-05-01","2020-06-30"]
[null,"Gestión del Sistema de Control Interno","Seguimiento a la Gestión Institucional",60,"Aprobación del Mapa de Riesgos de Corrupción 2020",null,"Plan Anticorrupción y de Atención al Ciudadano","Documento Plan Anticorrupción y de Atención al Colombiano y Mapa de Riesgos de Corrupción socializado, apropiado y aprobado por parte de la Alta Dirección de la Entidad en sesión de Comité Directivo.","Indicador de cumplimiento: aprobación definitiva mediante acta del Plan Anticorrupción y de Atención al Colombiano y Mapas de Riesgos de Corrupción. ",1,"Número",null,null,null,null,null,1,"Responsable: Comité de Control Interno","2020-06-30","2020-12-31"]
[null,"Planeación y Direccionamiento Estratégico","Sistema de Gestión y Mejoramiento Institucional",61,"Socialización del  Mapa de Riesgos de Corrupción -2020- vía correo electrónico, intranet y boletín de prensa con los funcionarios y contratistas de la Entidad, y vía página web, foro o encuesta con la ciudadanía, órganos de control, otras entidades públicas y privadas y demás interesados externos a la RNEC.",null,"Plan Anticorrupción y de Atención al Ciudadano","Documento proyecto de Mapa de Riesgos de Corrupción socializado vía correo electrónico, intranet y boletín de prensa con los funcionarios y contratistas de la Entidad, y vía página web, foro o encuesta con la ciudadanía, órganos de control, otras entidades públicas y privadas y demás interesados externos a la RNEC.","Indicador de cumplimiento: Consulta y socialización del Mapa de Riesgos de Corrupción con actores internos y externos. \n\nCantidad de actores externos que participaron en la socialización del mapa de riesgo de corrupción. ",2,"Número",null,null,2,null,null,null,"Responsable: Oficina de Planeación.\n\nPartícipes: Oficina de Prensa y Comunicaciones y líderes de los macroprocesos a nivel central.","2020-05-01","2020-06-30"]
[null,"Planeación y Direccionamiento Estratégico","Sistema de Gestión y Mejoramiento Institucional",62,"Ajustar los Mapas de Riesgos de Corrupción de conformidad con las sugerencias y hallazgos producto de la socialización previa a nivel interno y externo.",null,"Plan Anticorrupción y de Atención al Ciudadano","Mapa de Riesgos de Corrupción de la RNEC vigencia 2020 ajustado. ","Mapa de Riesgos de Corrupción vigencia 2020 ajustado",1,"Número",null,null,1,null,null,null,"Responsable: Oficina de Planeación","2020-05-01","2020-06-30"]
[null,"Gestión del Talento Humano","Permanencia del Talento Humano",63,"Realizar las actividades de práctica ética inherentes al Plan de Acción de Gestión Ética formulado desde la Sede Central.",null,"Plan Anticorrupción y de Atención al Ciudadano","Actividades de formación realizadas","Actividades de Práctica Ética ejecutadas / (n)*Actividades de Práctica Ética programadas.",1,"Porcentaje",null,0.2,0.2,0.2,0.2,0.2,"Gerencia del Talento Humano\nEquipo de Apoyo a la Gestión Ética\nPartícipes: Delegados Departamentales\nRegistraduría del Distrito Capital","2020-03-01","2020-12-31"]
[null,"Planeación y Direccionamiento Estratégico","Planeación de la Gestión Institucional",35,"Buscar y consolidar las buenas prácticas a nivel internacional sobre participación política ciudadana. ",null,"Plan Anticorrupción y de Atención al Ciudadano","Documento consolidado con las buenas prácticas en participación política","Documento consolidado de buenas prácticas elaborado.",1,"Número",null,null,null,null,null,1,"Oficina de Asuntos Internacionales ","2020-11-01","2020-12-31"]
[null,"Planeación y Direccionamiento Estratégico","Planeación de la Gestión Institucional",36,"Replicar acciones y buenas prácticas de organizaciones internacionales en materia de participación política ",null,"Plan Anticorrupción y de Atención al Ciudadano","Informes, acciones, generación de contenido replicando las buenas prácticas ","Informe de replicabilidad de buenas prácticas",1,"Número",null,null,null,null,1,null,"Oficina de Asuntos Internacionales ","2020-09-01","2020-10-31"]
[null,"Planeación y Direccionamiento Estratégico","Planeación de la Gestión Institucional",37,"Establecer contactos con las diferentes ONG’S internacionales que trabajen en temas de participación política.",null,"Plan Anticorrupción y de Atención al Ciudadano","Base de datos aliados, alianzas y convenios ","Cantidad de alianzas consolidadas y fortalecimiento de participación política.",1,"Número",null,null,null,null,null,1,"Oficina de Asuntos Internacionales ","2020-11-01","2020-12-31"]
[null,"Planeación y Direccionamiento Estratégico","Planeación de la Gestión Institucional",38,"Realizar seminarios, foros, conversatorios, mesas de trabajo y talleres lúdicos sobre las temáticas misionales y transversales de la Registraduría Nacional del Estado Civil dirigidos a usuarios internos y externos de la entidad",null,"Plan Anticorrupción y de Atención al Ciudadano","Seminarios\nForos\nTalleres\nConversatorios\nMesas de Trabajo","Cantidad de actividades programadas/ (n)*Cantidad de actividades realizadas",1,"Porcentaje",null,0.2,0.2,0.2,0.2,0.2,"Centro de Estudios en Democracia y Asuntos Electorales-CEDAE","2020-03-01","2019-12-31"]
[null,"Planeación y Direccionamiento Estratégico","Planeación de la Gestión Institucional",39,"Realizar seminarios, foros, conversatorios, mesas de trabajo y talleres lúdicos sobre las temáticas misionales y transversales de la Registraduría Nacional del Estado Civil dirigidos a usuarios internos y externos de la entidad",null,"Plan Anticorrupción y de Atención al Ciudadano","Seminarios\nForos\nTalleres\nConversatorios\nMesas de Trabajo","Cantidad de actividades programadas/ (n)*Cantidad de actividades realizadas",1,"Porcentaje",{"$f":"1/6","v":0.16666666666666666},0.16666666666666666,0.16666666666666666,0.16666666666666666,0.16666666666666666,0.16666666666666666,"Centro de Estudios en Democracia y Asuntos Electorales-CEDAE","2020-02-02","2020-12-31"]
[null,"Planeación y Direccionamiento Estratégico","Planeación de la Gestión Institucional",40,"Realizar seminarios, foros, conversatorios, mesas de trabajo y talleres lúdicos sobre las temáticas misionales y transversales de la Registraduría Nacional del Estado Civil dirigidos a usuarios internos y externos de la entidad",null,"Plan Anticorrupción y de Atención al Ciudadano","Seminarios\nForos\nTalleres\nConversatorios\nMesas de Trabajo","Cantidad de actividades realizadas/ (n)*Cantidad de actividades realizadas",1,"Porcentaje",0.16666666666666666,0.16666666666666666,0.16666666666666666,0.16666666666666666,0.16666666666666666,0.16666666666666666,"Centro de Estudios en Democracia y Asuntos Electorales-CEDAE","2020-02-03","2019-12-31"]
[null,"Planeación y Direccionamiento Estratégico","Planeación de la Gestión Institucional",41,"Capacitar y sensibilizar a los servidores públicos de la RNEC en materia de rendición de cuentas.",null,"Plan Anticorrupción y de Atención al Ciudadano"," Una capacitación realizada","Capacitaciones realizadas/ (n)*capacitaciones programadas.",1,"Porcentaje",0.16666666666666666,0.16666666666666666,0.16666666666666666,0.16666666666666666,0.16666666666666666,0.16666666666666666,"Oficina de Planeación","2020-02-04","2020-12-31"]
[null,"Gestión de Comunicación  Pública y Estratégica","Comunicación Organizacional",71,"Acciones de free press para dar a conocer a través de los medios de comunicación el día, hora y canales a través de los cuales se llevarán a cabo los diferentes eventos de  rendición de cuentas. Aviso en permanente en página web para dar a conocer el día, hora y canales a través de los cuales se llevará a cabo los diferentes eventos de  rendición de cuentas.\n\nEstrategia en redes sociales para dar a conocer el día, hora y canales a través de los cuales se llevará a cabo los diferentes eventos de  rendición de cuentas.",null,"Plan Anticorrupción y de Atención al Ciudadano","Aviso en permanente en página web para dar a conocer el día, hora y canales a través de los cuales se llevará a cabo los diferentes eventos de  rendición de cuentas.","Publicación de los insumos de los eventos de rendición de cuentas.",1,"Número",null,null,null,null,null,1,"Oficina de Prensa y Comunicaciones.","2020-09-01","2020-11-30"]
[null,"Registro Civil e Identificación","Registro y Actualización del Sistema",1,"Digitalizar  las primeras copias de Registros Civiles de Nacimiento, Matrimonio y Defunción (RCX) remitidas por las Delegaciones a la Dirección Nacional de Registro Civil.",null,"N/A","Registro Civil Digitalizado","Cantidad de primeras copias de RCX digitalizadas / (n) * Cantidad de primeras copias de RCX recibidas para digitalizar en el período",1,"Porcentaje",{"$f":"1/6","v":0.16666666666666666},0.16666666666666666,0.16666666666666666,0.16666666666666666,0.16666666666666666,0.16666666666666666,"Dirección Nacional de Registro Civil. DNRC","2020-01-01","2020-12-31"]
[null,"Registro Civil e Identificación","Registro y Actualización del Sistema",2,"Indexar los Registros Civiles de Nacimiento, Matrimonio y Defunción (RCX) que no han sido incorporadas a la base de datos.",null,"N/A","Registro Civil Indexado","Cantidad de registros civiles indexados / (n) * Cantidad de registros civiles digitalizados\n en el período ",1,"Porcentaje",0.16666666666666666,0.16666666666666666,0.16666666666666666,0.16666666666666666,0.16666666666666666,0.16666666666666666,"Dirección Nacional de Registro Civil. DNRC","2020-01-01","2020-12-31"]
[null,"Registro Civil e Identificación","Registro y Actualización del Sistema",3,"Realizar  trámites de Duplicado de  cédula de ciudadanía y tarjetas de identidad en línea a través del proveedor de servicios de pago en línea PSE   (documentos que cumplieron con los requisitos para ser producidos).",null,"N/A","Solicitudes  de duplicado de cédulas de ciudadanía y tarjetas de identidad en línea.","Cantidad de tramites de duplicado de cédulas de ciudadanía y tarjeta de identidad recibidas en línea / (n) * Cantidad de solicitudes de duplicado de cédulas de ciudadanía y tarjeta de identidad recibidas en línea",1,"Porcentaje",0.16666666666666666,0.16666666666666666,0.16666666666666666,0.16666666666666666,0.16666666666666666,0.16666666666666666,"Dirección Nacional de Identificación. DNI","2020-01-01","2020-12-31"]
[null,"Registro Civil e Identificación","Registro y Actualización del Sistema",4,"Producir y enviar a la oficina de origen las tarjetas de identidad cargadas en el flujo de producción que cumplieron los requisitos de calidad. ",null,"N/A","Tarjeta de identidad  producidas.","Cantidad de tarjetas de identidad enviadas a la oficina de origen rezagadas del período anterior + Cantidad de cédulas de ciudadanía  enviadas a la oficina de origen enviadas del período actual) / (n) *  Cantidad de tarjetas de identidad producidas en el período  ",1,"Porcentaje",0.16666666666666666,0.16666666666666666,0.16666666666666666,0.16666666666666666,0.16666666666666666,0.16666666666666666,"Dirección Nacional de Identificación. DNI","2020-01-01","2020-12-31"]
[null,"Registro Civil e Identificación","Registro y Actualización del Sistema",5,"Producir y enviar a la oficina de origen las cédulas de ciudadanía cargadas en el flujo de producción que cumplieron los requisitos de calidad. ",null,"N/A","Cédula de ciudadanía producidas.","(Cantidad de cédulas de ciudadanía  enviadas a la oficina de origen rezagadas del período anterior + Cantidad de cédulas de ciudadanía  enviadas a la oficina de origen enviadas del período actual) / (n) * Cantidad de cédulas de ciudadanía producidas en el período",1,"Porcentaje",0.16666666666666666,0.16666666666666666,0.16666666666666666,0.16666666666666666,0.16666666666666666,0.16666666666666666,"Dirección Nacional de Identificación. DNI","2020-01-01","2020-12-31"]
[null,"Registro Civil e Identificación","Certificación, Documentación  y Servicios",1,"Certificar la firma de los registradores del estado civil en los registros civiles de Nacimiento, Matrimonio y Defunción (RCX).",null,"N/A","Registro Civiles (RCX) certificados","Cantidad de solicitudes tramitadas en el período / (n) * Cantidad de solicitudes para certificar la firma digital recibidas en el período",1,"Porcentaje",0.16666666666666666,0.16666666666666666,0.16666666666666666,0.16666666666666666,0.16666666666666666,0.16666666666666666,"Dirección Nacional de Registro Civil","2020-01-01","2020-12-31"]
[null,"Registro Civil e Identificación","Certificación, Documentación  y Servicios",2,"Expedir copias  y certificación  de registros civiles de Nacimiento.",null,"N/A","Copias y certificaciones de registro civiles de Nacimiento expedidos","Cantidad de copias de registro civil de nacimiento expedidas/ (n) * Cantidad de solicitudes de copias de registro civil de nacimiento recibidas en el período",1,"Porcentaje",0.16666666666666666,0.16666666666666666,0.16666666666666666,0.16666666666666666,0.16666666666666666,0.16666666666666666,"Dirección Nacional de Registro Civil","2020-01-01","2020-12-31"]
[null,"Registro Civil e Identificación","Certificación, Documentación  y Servicios",3,"Expedir copias  y certificación  de registros civiles de Matrimonio.",null,"N/A","Copias y certificaciones de registro Civil de Matrimonio expedidos","Cantidad de copias de registro civil de matrimonio expedidas/ (n) * Cantidad de solicitudes de copias de registro civil de matrimonio recibidas en el período",1,"Porcentaje",0.16666666666666666,0.16666666666666666,0.16666666666666666,0.16666666666666666,0.16666666666666666,0.16666666666666666,"Dirección Nacional de Registro Civil","2020-01-01","2020-12-31"]
[null,"Registro Civil e Identificación","Certificación, Documentación  y Servicios",4,"Expedir copias  y certificación de registros civiles de Defunción.",null,"N/A","Copias y certificaciones de registros Civiles de Defunción expedidos","Cantidad de copias de registro civil de defunción expedidas/ (n) * Cantidad de solicitudes de copias de registro civil de defunción recibidas en el período",1,"Porcentaje",0.16666666666666666,0.16666666666666666,0.16666666666666666,0.16666666666666666,0.16666666666666666,0.16666666666666666,"Dirección Nacional de Registro Civil","2020-01-01","2020-12-31"]
[null,"Registro Civil e Identificación","Certificación, Documentación  y Servicios",5,"Expedir en las Registradurías autorizadas, copias de RCX, inscritos en cualquier oficina registral a nivel nacional.",null,"N/A","Copias de RCX, expedidas en las Registradurías  autorizadas, que corresponden a RCX inscritos en cualquier oficina registral a nivel Nacional.","Cantidad de copias de registro civil inscritos en cualquier oficina a nivel nacional, expedidas por las Registradurías autorizadas / (n) * Cantidad de solicitudes copias de registro civil inscritos en cualquier oficina a nivel nacional, recibidas por las Registradurías autorizadas en el período",1,"Porcentaje",0.16666666666666666,0.16666666666666666,0.16666666666666666,0.16666666666666666,0.16666666666666666,0.16666666666666666,"Dirección Nacional de Registro Civil","2020-01-01","2020-12-31"]
[null,"Registro Civil e Identificación","Certificación, Documentación  y Servicios",6,"Expedir certificados excepcionales de información no sujeta a reserva legal.",null,"N/A","Certificaciones de documentos de identidad expedidos","Cantidad de certificados excepcionales de información sujeta a reserva legal expedidos/ (n) * Cantidad de certificados excepcionales de información sujeta a reserva legal recibidos en el período",1,"Porcentaje",{"$f":"1/6","v":0.16666666666666666},0.16666666666666666,0.16666666666666666,0.16666666666666666,0.16666666666666666,0.16666666666666666,"Dirección Nacional de Identificación ","2020-01-01","2020-12-31"]
[null,"Registro Civil e Identificación","Certificación, Documentación  y Servicios",7,"Suscribir y legalizar el documento que establece los términos y condiciones para el Acceso a la Información biográfica y/o biométrica por parte de las Entidades públicas y privadas.  ",null,"N/A","Contratos suscritos para el acceso a la base de datos biográfica y biométrica de la RNEC.","Cantidad de documentos suscritos y legalizados en el período/ (n)*cantidad de documentos para suscribir y legalizar recibidos en el período",1,"Porcentaje",0.16666666666666666,0.16666666666666666,0.16666666666666666,0.16666666666666666,0.16666666666666666,0.16666666666666666,"Grupo de Acceso a la Información y Protección de Datos Personales. GAIPDP","2020-01-01","2020-12-31"]
[null,"Registro Civil e Identificación","Proyecto: Fortalecimiento de la plataforma tecnológica que soporta el sistema de identificación y registro civil PMT II",1,"Realizar mantenimiento de la plataforma PMT II.",null,"Plan Anual de Adquisiciones","Equipos atendidos ","Cantidad de equipos atendidos por mantenimiento correctivo en el período/ (n)*cantidad de equipos recibidos en el período para mantenimiento correctivo",1,"Porcentaje",0.16666666666666666,0.16666666666666666,0.16666666666666666,0.16666666666666666,0.16666666666666666,0.16666666666666666,"Registraduría Delegada para el Registro Civil y la Identificación. RDRCI","2020-01-01","2020-12-31"]
[null,"Registro Civil e Identificación","Proyecto: Fortalecimiento de la plataforma tecnológica que soporta el sistema de identificación y registro civil PMT II",2,"Ofrecer la disponibilidad de la plataforma PMT II.",null,"Plan Anual de Adquisiciones","Casos atendidos por la mesa de ayuda","Cantidad de casos atendidos en la mesa de ayuda durante el período/ (n)*cantidad de casos recibidos en la mesa de ayuda durante el período",1,"Porcentaje",0.16666666666666666,0.16666666666666666,0.16666666666666666,0.16666666666666666,0.16666666666666666,0.16666666666666666,"Registraduría Delegada para el Registro Civil y la Identificación. RDRCI","2020-01-01","2020-12-31"]
[null,"Registro Civil e Identificación","Proyecto: Fortalecimiento de la plataforma tecnológica que soporta el sistema de identificación y registro civil PMT II",3,"Disponer de un soporte técnico a usuarios.",null,"Plan Anual de Adquisiciones","Disponibilidad de la plataforma","Porcentaje de disponibilidad de la plataforma de Identidad y Registro durante el periodo.",1,"Porcentaje",0.16666666666666666,0.16666666666666666,0.16666666666666666,0.16666666666666666,0.16666666666666666,0.16666666666666666,"Registraduría Delegada para el Registro Civil y la Identificación. RDRCI","2020-01-01","2020-12-31"]
[null,"Registro Civil e Identificación","Proyecto: Fortalecimiento de la plataforma tecnológica que soporta el sistema de identificación y registro civil PMT II",4,"Cargar información del trámite del colombiano",null,"Plan Anual de Adquisiciones","Trámites cargados al sistema","Cantidad de trámites cargados en el Sistema durante el período/ (n)*cantidad de trámites recibidos durante el período",1,"Porcentaje",0.16666666666666666,0.16666666666666666,0.16666666666666666,0.16666666666666666,0.16666666666666666,0.16666666666666666,"Registraduría Delegada para el Registro Civil y la Identificación. RDRCI","2020-01-01","2020-12-31"]
[null,"Registro Civil e Identificación","Proyecto: Fortalecimiento de la plataforma tecnológica que soporta el sistema de identificación y registro civil PMT II",5,"Validar información del trámite",null,"Plan Anual de Adquisiciones","Trámites validados en el sistema","Cantidad de trámites cargados en el sistema durante el período/ (n)*Cantidad de trámites recibidos durante el período",1,"Porcentaje",0.16666666666666666,0.16666666666666666,0.16666666666666666,0.16666666666666666,0.16666666666666666,0.16666666666666666,"Registraduría Delegada para el Registro Civil y la Identificación. RDRCI","2020-01-01","2020-12-31"]
[null,"Registro Civil e Identificación","Proyecto: Fortalecimiento de la plataforma tecnológica que soporta el sistema de identificación y registro civil PMT II",6,"Producir documentos de identificación",null,"Plan Anual de Adquisiciones","Documentos de identidad producidos","Cantidad  de documentos (T.I y CC) producidos el período/ (n)*Cantidad de documentos (T.I y CC) recibidos durante el período",1,"Porcentaje",0.16666666666666666,0.16666666666666666,0.16666666666666666,0.16666666666666666,0.16666666666666666,0.16666666666666666,"Registraduría Delegada para el Registro Civil y la Identificación. RDRCI","2020-01-01","2020-12-31"]
[null,"Registro Civil e Identificación","Proyecto: Fortalecimiento de la plataforma tecnológica que soporta el sistema de identificación y registro civil PMT II",7,"Implementar el sistema de atención integrado de identificación: Componente de enrolamiento en vivo web para documentos de identidad (Estación de identificación web)",null,"Plan Anual de Adquisiciones","Estaciones EIS en funcionamiento","Cantidad  de estaciones EIS en funcionamiento en el período/ (n)*Cantidad de estaciones EIS programadas ",1,"Porcentaje",0.16666666666666666,0.16666666666666666,0.16666666666666666,0.16666666666666666,0.16666666666666666,0.16666666666666666,"Registraduría Delegada para el Registro Civil y la Identificación. RDRCI","2020-01-01","2020-12-31"]
[null,"Registro Civil e Identificación","Proyecto: Fortalecimiento del Sistema de Información de Registro Civil Nacional",1,"Incorporar Registros Civiles a través de una herramienta tecnológica por parte de oficinas con función registral y autorizadas diferentes a la Registraduria Nacional del Estado Civil",null,"Plan Anual de Adquisiciones","Registros civiles  incorporados en base de datos, a través de la herramienta tecnológica SRC WEB  ","Cantidad de registros civiles incorporados en la base de datos/ (n)*Cantidad de registros civiles recibidos para incorporar en la base de datos ",0.3,"Porcentaje",null,null,null,null,null,0.3,"Dirección Nacional de Registro Civil","2020-01-01","2020-12-31"]
[null,"Registro Civil e Identificación","Proyecto: Fortalecimiento del Sistema de Información de Registro Civil Nacional",2,"Desarrollar estrategias de divulgación a población diferencial respecto a la importancia del registro civil.",null,"Plan Anual de Adquisiciones","Eventos de divulgación realizados","Cantidad  de eventos realizados en el período/ (n)*cantidad de eventos programados ",18,"Número",null,null,null,null,0.5,0.5,"Dirección Nacional de Registro Civil","2020-01-01","2020-12-31"]
[null,"Registro Civil e Identificación","Proyecto: Fortalecimiento del Sistema de Información de Registro Civil Nacional",3,"Implementar el aplicativo web (SRC-WEB), en las oficinas con función registral a nivel nacional. ( Registradurías, Notarias, Clínicas y Hospitales)",null,"Plan Anual de Adquisiciones","Oficinas con función registral que realizan la inscripción en el aplicativo web (SRC-WEB) para lo cual se contempla la instalación en 255 oficinas.","Cantidad de oficinas implementadas en el aplicativo WEB (SRC-WEB) durante el período/ (n) * Cantidad de oficinas programadas para implementar el aplicativo WEB  (SRC-WEB)",1,"Porcentaje",null,null,null,null,0.3,0.7,"Dirección Nacional de Registro Civil","2020-01-01","2020-12-31"]
[null,"Registro Civil e Identificación","Proyecto: Fortalecimiento de la capacidad de atención en Identificación para la población en condición de vulnerabilidad, APD. Nacional",1,"Tramitar registros civiles de nacimiento a través de las jornadas de registro civil e identificación realizadas por la UDAPV",null,"Plan Anual de Adquisiciones","Registros civiles tramitados. \n\nTeniendo en cuenta que las atenciones de la UDAPV son a demanda el avance programado por bimestre es la atención del 100% de las solicitud. Con lo cual se espera que los registros civiles tramitados sean 11.015","Cantidad de registros civiles tramitados a través de las jornadas de registro civil e identificación  llevadas a cabo por la UDAPV durante el período / (n)* cantidad de solicitudes de registro civil recibidas, durante las jornadas realizadas en el periodo. ",1,"Porcentaje",{"$f":"1/6","v":0.16666666666666666},0.16666666666666666,0.16666666666666666,0.16666666666666666,0.16666666666666666,0.16666666666666666,"Unidad  de Atención a Población Vulnerable - UDAPV","2020-01-01","2020-12-31"]
[null,"Registro Civil e Identificación","Proyecto: Fortalecimiento de la capacidad de atención en Identificación para la población en condición de vulnerabilidad, APD. Nacional",2,"Tramitar contraseñas de documentos de identidad (Tarjeta de Identidad y Cédulas de ciudadanía) a través de las jornadas de registro civil e identificación  llevadas a cabo por la UDAPV",null,"Plan Anual de Adquisiciones","Contraseñas de documentos de identidad elaborados durante las jornadas.  \n\nTeniendo en cuenta que las atenciones de la UDAPV son a demanda el avance programado por bimestre es la atención del 100% de las solicitud. Con lo cual se espera que las contraseñas de documentos de identidad  sean 111.374","Cantidad de contraseñas de documentos de identidad (Tarjeta de Identidad y Cédulas de ciudadanía) tramitadas a través de las jornadas de registro civil e identificación  llevadas a cabo por la UDAPV durante el período / (n)* cantidad de solicitudes de contraseñas de documentos de identidad (Tarjeta de Identidad y Cédulas de ciudadanía) recibidas a través de las jornadas de registro civil e identificación  llevadas a cabo por la UDAPV durante el período",1,"Porcentaje",0.16669999999999999,0.16669999999999999,0.16669999999999999,0.16669999999999999,0.16669999999999999,0.16650000000000001,"Unidad  de Atención a Población Vulnerable - UDAPV","2020-01-01","2020-12-31"]
[null,"Registro Civil e Identificación","Proyecto: Fortalecimiento de la capacidad de atención en Identificación para la población en condición de vulnerabilidad, APD. Nacional",3,"Realizar jornadas de identificación en los Departamento  según la regionalización para la vigencia.",null,"Plan Anual de Adquisiciones","Departamentos atendidos.\n\nEn la vigencia 2020 se realizara jornadas en los 31 departamentos del territorio Nacional.","Cantidad de Departamentos atendidos por la UDAPV durante el período/ (n) * cantidad de Departamentos programados en el período",1,"Porcentaje",{"$f":"1/6","v":0.16666666666666666},0.16666666666666666,0.16666666666666666,0.16666666666666666,0.16666666666666666,0.16666666666666666,"Unidad  de Atención a Población Vulnerable - UDAPV","2020-01-01","2020-12-31"]
[null,"Registro Civil e Identificación","Proyecto: Fortalecimiento de la capacidad de atención en Identificación para la población en condición de vulnerabilidad, APD. Nacional",4,"Realizar la entrega de documentos de identidad (Tarjeta de Identidad y Cédulas de ciudadanía) tramitados en las jornadas de Registro Civil e Identificación adelantadas por la UDAPV en vigencias anteriores que se encuentran disponibles en las Registraduría municipales.",null,"Plan Anual de Adquisiciones","Documentos de identidad tramitados","Cantidad de documentos de identidad entregados por la UDAPV a través de las jornadas llevadas a cabo durante el período / (n)* cantidad de documentos de identidad programados para entregar en el período",1,"Porcentaje",0,0,{"$f":"1/3","v":0.33333333333333331},{"$f":"1/3","v":0.33333333333333331},{"$f":"1/3","v":0.33333333333333331},0,"Unidad  de Atención a Población Vulnerable - UDAPV","2020-01-01","2020-12-31"]
[null,"Gestión de Comunicación  Pública y Estratégica","Comunicación Organizacional",72,"Implementar un formulario web en el cual los servidores públicos de la RNEC puedan aportar ideas para la definición de espacios para la rendición de cuentas.",null,"Plan Anticorrupción y de Atención al Ciudadano","Formulario web implementado. ","Formulario web implementado. ",1,"Número",null,null,null,null,null,1,"Responsables: Oficina de Prensa y Comunicaciones\n\nPartícipes: Oficina de Planeación","2020-12-01","2020-11-30"]
[null,"Gestión de Comunicación  Pública y Estratégica","Comunicación Organizacional",73,"Diseñar y habilitar los mecanismos físicos o virtuales en donde los colombianos  puedan consignar sus sugerencias, necesidades, inquietudes y requerimientos frente a los temas que considere deben ser tenidos en cuenta en los espacios y eventos de dialogo y rendición de cuentas.",null,"Plan Anticorrupción y de Atención al Ciudadano","Encuestas y consultas de temas de interés para los eventos de rendición de cuentas  diseñadas, habilitadas y dirigidas a los colombianos. ","Cantidad de encuestas realizadas./(n)*Cantidad de encuestas programadas en el periodo\n",1,"Porcentaje",null,null,null,null,{"$f":"1/2","v":0.5},{"$f":"1/2","v":0.5},"Responsables: Oficina de Prensa y Comunicaciones.\n\nPartícipes: Registradurías Delegadas de Electoral y  Registro Civil e Identificación.","2020-09-01","2020-11-30"]
[null,"Planeación y Direccionamiento Estratégico","Planeación de la Gestión Institucional",42,"Realizar la Rendición de cuentas del nivel desconcentrado.  ",null,"Plan Anticorrupción y de Atención al Ciudadano","Rendición de cuentas de los registradores distritales y delegados departamentales","Indicador de cumplimiento:  Informes y eventos de rendición de cuentas del nivel desconcentrado efectuados. ",1,"Número",null,null,null,null,null,1,"Responsables: Oficina de Planeación, Oficina de Control Interno, Oficina de Prensa y Comunicaciones, Delegados Departamentales y Registradores Distritales.","2020-12-01","2020-12-31"]
[null,"Planeación y Direccionamiento Estratégico","Planeación de la Gestión Institucional",75,"Elaborar el Informe de Rención de Cuentas 2020",null,"Plan Anticorrupción y de Atención al Ciudadano","Informe de Rendición de Cuentas 2020.","Cantidad de Informe de Rendición de Cuentas elaborado.",1,"Número",null,null,null,null,null,1,"Responsable: Oficina de Planeación.\n","2020-12-01","2020-12-31"]
[null,"Planeación y Direccionamiento Estratégico","Planeación de la Gestión Institucional",76,"Realizar la Audiencia Pública Participativa de Rendición de cuentas de la RNEC de la vigencia 2020.",null,"Plan Anticorrupción y de Atención al Ciudadano","Rendición de Cuentas realizada","Memorias de la audiencia pública participativa de rendición de cuentas. \n\nListas de asistencia a la audiencia pública participativa de rendición de cuentas. ",1,"Número",null,null,null,null,null,1,"Responsables: Oficina de Planeación, Oficina de Control Interno, Oficina de Prensa y Comunicaciones y Delegados departamentales en los que se realiza la mesa de diálogo y rendición de cuentas.","2020-12-01","2020-12-31"]
[null,"Planeación y Direccionamiento Estratégico","Planeación de la Gestión Institucional",77,"Aplicar los instrumentos metodológicos para efectuar la evaluación de cada uno de los canales, medios, espacios y  eventos de la estrategia de rendición de cuentas.",null,"Plan Anticorrupción y de Atención al Ciudadano","Encuestas de percepción de canales, medios, espacios y eventos de rendición de cuentas efectuadas, consolidadas y analizadas.","Cantidad de encuestas realizadas./(n)*Cantidad de encuestas programadas en el periodo\n",1,"Porcentaje",null,null,null,null,{"$f":"1/2","v":0.5},{"$f":"1/2","v":0.5},"Responsable: Oficina de Planeación","2020-09-01","2020-12-31"]
[null,"Gestión del Sistema de Control Interno","Seguimiento a la Gestión Institucional",78,"Realizar  Seguimiento  Cuatrimestral a las acciones programadas  en la estrategia de Rendición de Cuentas del Plan Anticorrupción y de Atención al Ciudadano.",null,"Plan Anticorrupción y de Atención al Ciudadano","Informe de seguimiento a la ejecución de la estrategia de Rendición de Cuentas en el primer, segundo y tercer  cuatrimestre de la vigencia 2020.","Porcentaje de avance  en la ejecución de las actividades de la estrategia de Rendición de Cuentas",1,"Porcentaje",null,null,{"$f":"1/2","v":0.5},null,{"$f":"1/2","v":0.5},null,"Oficina de Control Interno.","2020-05-15","2020-09-15"]
[null,"Gestión del Sistema de Control Interno","Seguimiento a la Gestión Institucional",79,"Consolidar, elaborar, socializar y publicar el informe general anual de evaluación  de los resultados  de la Estrategia de Rendición de Cuentas y el documento memoria de la Rendición de Cuentas vigencia 2020",null,"Plan Anticorrupción y de Atención al Ciudadano","Informe  general anual de evaluación de la Estrategia de Rendición de Cuentas","Informe anual  que contenga el resultado de la implementación y desarrollo de las actividades contenidas en la Estrategia de Rendición de Cuentas del Plan Anticorrupción  vigencia 2020",1,"Número",null,null,null,null,null,1,"Oficina de Control Interno.","2020-12-01","2020-12-31"]
[null,"Gestión del Sistema de Control Interno","Seguimiento a la Gestión Institucional",80,"Elaborar y divulgar el Plan de Mejoramiento Institucional a partir  de los acuerdos, propuestas y evaluaciones que resultan de las acciones del proceso de Rendición de Cuentas de la RNEC",null,"Plan Anticorrupción y de Atención al Ciudadano","Plan de Mejoramiento Institucional ","Plan de Mejoramiento de la estrategia de Rendición de Cuentas ",1,"Número",null,null,null,null,null,1,"Oficina de Control Interno.","2020-12-01","2020-12-31"]